Workbook

Sheet 7-8 дев
A1: № | B1: Район | C1: Школа | D1: Фамилия | E1: Имя | F1: Отчество | G1: пол | H1: д.р. | I1: класс | J1: класс участия | K1: теория | L1: Балл | M1: легкая атлетика | N1: пересчет | O1: балл | P1: гимнастика | Q1: балл | R1: Общий балл | S1: Апел.балл | T1: Итог балл | U1: Макс.балл | V1: Статус | W1: Учитель | X1: Наименование ОУ | Y1: Район
A2: 1 | B2: Вахитовский район | C2: МАОУ"Средняя общеобразовательная школа №18 с углубленным изучением английского языка" | D2: Архипова | E2: П. | F2: Е. | G2: Ж | H2: 16.06.2006 | I2: 8 | J2: 8 | K2: 38 | L2: =30*K2/45 -> 25.33333333 | M2: 8.39,0 | N2: 519 | O2: =35*470.4/N2 -> 31.72254335 | P2: 19.4 | Q2: =35*P2/20 -> 33.95 | R2: =L2+O2+Q2 -> 91.00587669 | T2: 91.00587669 | U2: 100 | V2: Победитель | W2: Галиуллин ШамильМазгутович | X2: Муниципальное автономное общеобразовательное учреждение"Средняя общеобразовательная школа №18 с углубленным изучением английского языка" | Y2: Вахитовский район
A3: 2 | B3: Советский район | C3: МБОУ «Гимназия № 183» Советского района г.Казани | D3: Габдрахманова | E3: И. | F3: Л. | G3: Ж | H3: 09.06.2007 | I3: 7 | J3: 7 | K3: 36 | L3: 24 | M3: 8.28,8 | N3: 508.8 | O3: 32.35849057 | P3: 19.4 | Q3: 33.95 | R3: 90.30849057 | T3: 90.30849057 | U3: 100 | V3: Победитель | W3: Валиахметов ИльшатГайсович | X3: Муниципальное бюджетное общеобразовательное учреждение «Гимназия № 183» Советского района г.Казани | Y3: Советский район
A4: 3 | B4: Приволжский район | C4: МБОУ "Татарско-русская средняя общеобразовательная школа №68 с углубленным изучением отдельных предметов" | D4: Мифтахова | E4: А. | F4: Р. | G4: Ж | H4: 03.01.2008 | I4: 7 | J4: 7 | K4: 40 | L4: 26.66666667 | M4: 8.55,7 | N4: 535.7 | O4: 30.73361956 | P4: 18.7 | Q4: 32.725 | R4: 90.12528623 | T4: 90.12528623 | U4: 100 | V4: Победитель | W4: Хуртов СергейГеннадьевич | X4: Муниципальное бюджетное общеобразовательное учреждение "Татарско-русская средняя общеобразовательная школа №68 с углубленным изучением отдельных предметов" | Y4: Приволжский район
A5: 4 | B5: Приволжский район | C5: МБОУ "Лицей №83 - Центр образования" | D5: Мазняк | E5: Д. | F5: И. | G5: Ж | H5: 14.07.2006 | I5: 8 | J5: 8 | K5: 42 | L5: 28 | M5: 9.19,4 | N5: 559.4 | O5: 29.43153379 | P5: 18.6 | Q5: 32.55 | R5: 89.98153379 | T5: 89.98153379 | U5: 100 | V5: Победитель | W5: Исакова ИннаЮрьевна | X5: Муниципальное бюджетное общеобразовательное учреждение "Лицей №83 - Центр образования" | Y5: Приволжский район
A6: 5 | B6: Приволжский район | C6: МАОУ "Гимназия №19" | D6: Воронова | E6: В. | F6: А. | G6: Ж | H6: 10.08.2007 | I6: 7 | J6: 7 | K6: 40 | L6: 26.66666667 | M6: 9.00,6 | N6: 540.6 | O6: 30.45504994 | P6: 18.5 | Q6: 32.375 | R6: 89.49671661 | T6: 89.49671661 | U6: 100 | V6: Победитель | W6: Зиятдинов ВадимРинатович | Y6: Муниципальное автономное общеобразовательное учреждение "Гимназия №19"
A7: 6 | B7: Приволжский район | C7: МБОУ "Лицей №83 - Центр образования" | D7: Шарипова | E7: А. | F7: Ф. | G7: Ж | H7: 17.06.2007 | I7: 7 | J7: 7 | K7: 40 | L7: 26.66666667 | M7: 9.23,9 | N7: 563.9 | O7: 29.19666608 | P7: 19 | Q7: 33.25 | R7: 89.11333274 | T7: 89.11333274 | U7: 100 | V7: Призер | W7: Новикова ЭльвираГермановна | X7: Муниципальное бюджетное общеобразовательное учреждение "Лицей №83 - Центр образования" | Y7: Приволжский район
A8: 7 | B8: Приволжский район | C8: МАОУ "Гимназия №19" | D8: Трушик | E8: А. | F8: А. | G8: Ж | H8: 12.11.2006 | I8: 8 | J8: 8 | K8: 42 | L8: 28 | M8: 10.04,4 | N8: 604.4 | O8: 27.24023825 | P8: 19.3 | Q8: 33.775 | R8: 89.01523825 | T8: 89.01523825 | U8: 100 | V8: Призер | W8: Баранов Глеб Валерьевич
A9: 8 | B9: Советский район | C9: МАОУ "Лицей №121 имени Героя Советского Союза С.А.Ахтямова" Советского района г.Казани | D9: Кондратьева | E9: В. | F9: А. | G9: Ж | H9: 21.09.2006 | I9: 8 | J9: 8 | K9: 38 | L9: 25.33333333 | M9: 9.27,7 | N9: 567.7 | O9: 29.00123305 | P9: 19.8 | Q9: 34.65 | R9: 88.98456638 | T9: 88.98456638 | U9: 100 | V9: Призер | W9: Слободчиков СергейЛьвович | X9: Муниципальное автономное общеобразовательное учреждение "Лицей №121 имени Героя Советского Союза С.А.Ахтямова" Советского района г.Казани | Y9: Советский район
A10: 9 | B10: Кировский район | C10: МБОУ "Политехнический лицей № 182" | D10: Беглова | E10: А. | F10: Д. | G10: Ж | H10: 06.08.2007 | I10: 7 | J10: 7 | K10: 31 | L10: 20.66666667 | M10: 8.38,6 | N10: 518.6 | O10: 31.74701118 | P10: 18 | Q10: 31.5 | R10: 83.91367785 | S10: 4.67 | T10: 88.58034452 | U10: 100 | V10: Призер | W10: Каргин АлександрСергеевич | X10: МБОУ "Политехнический лицей № 182" | Y10: Кировский район
A11: 10 | B11: Приволжский район | C11: МАОУ "Гимназия №19" | D11: Гатауллина | E11: К. | F11: И. | G11: Ж | H11: 01.03.2008 | I11: 7 | J11: 7 | K11: 41 | L11: 27.33333333 | M11: 9.41,9 | N11: 581.9 | O11: 28.29352122 | P11: 18.8 | Q11: 32.9 | R11: 88.52685456 | T11: 88.52685456 | U11: 100 | V11: Призер | W11: Зиятдинов ВадимРинатович | Y11: Муниципальное автономное общеобразовательное учреждение "Гимназия №19"
A12: 11 | B12: Приволжский район | C12: ОШИ"IT- лицей федерального государственного автономного образовательного учреждения высшего образования "Казанский (Приволжский) федеральный университет" | D12: Рафикова | E12: А. | F12: Р. | G12: Ж | H12: 17.06.2006 | I12: 8 | J12: 8 | K12: 41 | L12: 27.33333333 | M12: 9.36,9 | N12: 576.9 | O12: 28.53874155 | P12: 18.6 | Q12: 32.55 | R12: 88.42207488 | T12: 88.42207488 | U12: 100 | V12: Призер | W12: Чапурин АртёмИгоревич | X12: Общеобразовательная школа-интернат "IT- лицей федерального государственного автономного образовательного учреждения высшего образования "Казанский (Приволжский) федеральный университет" | Y12: Приволжский район
A13: 12 | B13: Приволжский район | C13: МБОУ "Гимназия №6" | D13: Иванова | E13: Р. | F13: М. | G13: Ж | H13: 19.04.2006 | I13: 8 | J13: 8 | K13: 40 | L13: 26.66666667 | M13: 9.48,7 | N13: 588.7 | O13: 27.9667063 | P13: 19.3 | Q13: 33.775 | R13: 88.40837297 | T13: 88.40837297 | U13: 100 | V13: Призер | W13: Халимов ИльнурФиргатович | X13: Муниципальное бюджетное общеобразовательное учреждение "Гимназия №6" | Y13: Приволжский район
A14: 13 | B14: Ново-Савиновский район | C14: МБОУ "Средняя общеобразовательная татарско-русская школа №113 с углубленным изучением отдельных предметов имени Героя России М.Р.Ахметшина" Ново-Савиновского района г. Казани" | D14: Павлова | E14: П. | F14: Р. | G14: Ж | H14: 2007-06-15 | I14: 8 | J14: 8 | K14: 39.2 | L14: 26.13333333 | M14: 9.38,8 | N14: 578.8 | O14: 28.44505874 | P14: 19.3 | Q14: 33.775 | R14: 88.35339208 | T14: 88.35339208 | U14: 100 | V14: Призер | W14: Рыжов АлександрВасильевич | X14: Муниципальное бюджетное общеобразовательное учреждение "Средняя общеобразовательная татарско-русская школа №113 с углубленным изучением отдельных предметов имени Героя России М.Р.Ахметшина" Ново-Савиновского района г. Казани" | Y14: Ново-Савиновский район
A15: 14 | B15: Ново-Савиновский район | C15: ГАОУ "Полилингвальный комплекс "Адымнар - путь к знаниям и согласию" г. Казани" | D15: Бадьярова | E15: В. | F15: С. | G15: Ж | H15: 10.08.2007 | I15: 7 | J15: 7 | K15: 35 | L15: 23.33333333 | M15: 8.57,5 | N15: 537.5 | O15: 30.63069767 | P15: 19.6 | Q15: 34.3 | R15: 88.26403101 | T15: 88.26403101 | U15: 100 | V15: Призер | W15: Кривова ИринаВладимировна | X15: Государственное автономное общеобразовательное учреждение "Полилингвальный комплекс "Адымнар - путь к знаниям и согласию" г. Казани" | Y15: Ново-Савиновский район
A16: 15 | B16: Ново-Савиновский район | C16: МБОУ "Средняя общеобразовательная татарско-русская школа №113 с углубленным изучением отдельных предметов имени Героя России М.Р.Ахметшина" Ново-Савиновского района г. Казани" | D16: Самигуллина | E16: А. | F16: А. | G16: Ж | H16: 08.09.2006 | I16: 8 | J16: 8 | K16: 37 | L16: 24.66666667 | M16: 9.24,1 | N16: 564.1 | O16: 29.18631448 | P16: 19.5 | Q16: 34.125 | R16: 87.97798115 | T16: 87.97798115 | U16: 100 | V16: Призер | W16: Рыжов АлександрВасильевич | X16: Муниципальное бюджетное общеобразовательное учреждение "Средняя общеобразовательная татарско-русская школа №113 с углубленным изучением отдельных предметов имени Героя России М.Р.Ахметшина" Ново-Савиновского района г. Казани" | Y16: Ново-Савиновский район
A17: 16 | B17: Советский район | C17: МБОУ "Гимназия №175" Советского района г.Казани | D17: Глебова | E17: Ю. | F17: Е. | G17: Ж | H17: 10.03.2007 | I17: 7 | J17: 7 | K17: 39 | L17: 26 | M17: 8.27,9 | N17: 507.9 | O17: 32.41582989 | P17: 16.7 | Q17: 29.225 | R17: 87.64082989 | T17: 87.64082989 | U17: 100 | V17: Призер | W17: Лекомцев ДаниилФедорович | X17: Муниципальное бюджетное общеобразовательное учреждение "Гимназия №175" Советского района г.Казани | Y17: Советский район
A18: 17 | B18: Ново-Савиновский район | C18: Инженерный лицей-интернат КНИТУ-КАИ | D18: Гибадуллина | E18: К. | F18: Н. | G18: Ж | H18: 21.08.2006 | I18: 8 | J18: 8 | K18: 36.4 | L18: 24.26666667 | M18: 10.00,4 | N18: 600.4 | O18: 27.42171885 | P18: 19.4 | Q18: 33.95 | R18: 85.63838552 | S18: 2 | T18: 87.63838552 | U18: 100 | V18: Призер | W18: Пестова АленаВалерьевна | X18: Инженерный лицей-интернат КНИТУ-КАИ | Y18: Ново-Савиновский район
A19: 18 | B19: Приволжский район | C19: МБОУ "Средняя общеобразовательная школа № 82 с углубленным изучением отдельных предметов им.Р.Г.Хасановой" | D19: Халикова | E19: Р. | F19: Д. | G19: Ж | H19: 09.09.2009 | I19: 5 | J19: 7 | K19: 38.2 | L19: 25.46666667 | M19: 10.18,5 | N19: 618.5 | O19: 26.6192401 | P19: 19.9 | Q19: 34.825 | R19: 86.91090676 | T19: 86.91090676 | U19: 100 | V19: Призер | W19: Хабиров РафикРафаэльевич | X19: Муниципальное бюджетное общеобразовательное учреждение "Средняя общеобразовательная школа № 82 с углубленным изучением отдельных предметов им.Р.Г.Хасановой" | Y19: Приволжский район
A20: 19 | B20: Московский район | C20: МБОУ "Гимназия № 102 имени М.С.Устиновой" Московского района города Казани" | D20: Зангирова | E20: Л. | F20: Д. | G20: Ж | H20: 19.01.2006 | I20: 8 | J20: 8 | K20: 35 | L20: 23.33333333 | M20: 9.28,2 | N20: 568.2 | O20: 28.97571278 | P20: 19.4 | Q20: 33.95 | R20: 86.25904611 | T20: 86.25904611 | U20: 100 | V20: Призер | W20: Тулупов ИгорьВячеславович | X20: Муниципальное бюджетное общеобразовательное учреждение "Гимназия № 102 имени М.С.Устиновой" Московского района города Казани" | Y20: Московский район
A21: 20 | B21: Советский район | C21: МБОУ "Гимназия №175" Советского района г.Казани | D21: Романова | E21: А. | F21: И. | G21: Ж | H21: 2006-07-19 | I21: 8 | J21: 8 | K21: 41 | L21: 27.33333333 | M21: 10.08,0 | N21: 608.8 | O21: 27.04336399 | P21: 18 | Q21: 31.5 | R21: 85.87669733 | T21: 85.87669733 | U21: 100 | V21: Призер | W21: Кириллова Ольга Владимировна | X21: МБОУСредняя общеобразовательная школа №175» | Y21: Советский район
A22: 21 | B22: Ново-Савиновский район | C22: МБОУ "Средняя общеобразовательная татарско-русская школа №113 с углубленным изучением отдельных предметов имени Героя России М.Р.Ахметшина" Ново-Савиновского района г. Казани" | D22: Гаязова | E22: К. | F22: Р. | G22: Ж | H22: 2008-03-12 | I22: 6 | J22: 7 | K22: 33.2 | L22: 22.13333333 | M22: 9.37,6 | N22: 577.6 | O22: 28.50415512 | P22: 19.9 | Q22: 34.825 | R22: 85.46248846 | T22: 85.46248846 | U22: 100 | V22: Призер | W22: Рыжов АлександрВасильевич | X22: Муниципальное бюджетное общеобразовательное учреждение "Средняя общеобразовательная татарско-русская школа №113 с углубленным изучением отдельных предметов имени Героя России М.Р.Ахметшина" Ново-Савиновского района г. Казани" | Y22: Ново-Савиновский район
A23: 22 | B23: Вахитовский район | C23: МАОУ "Средняя общеобразовательная школа №39 с углубленным изучением английского языка" | D23: Михеева | E23: А. | F23: С. | G23: Ж | H23: 13.01.2006 | I23: 8 | J23: 8 | K23: 38 | L23: 25.33333333 | M23: 10.06,8 | N23: 606.8 | O23: 27.13249835 | P23: 18.8 | Q23: 32.9 | R23: 85.36583169 | T23: 85.36583169 | U23: 100 | V23: Призер | W23: Хусаинов ДаниярДинисламович | X23: Муниципальное автономное общеобразовательное учреждение "Средняя общеобразовательная школа №39 с углубленным изучением английского языка" | Y23: Вахитовский район
A24: 23 | B24: Ново-Савиновский район | C24: МБОУ "Средняя общеобразовательная татарско-русская школа №113 с углубленным изучением отдельных предметов имени Героя России М.Р.Ахметшина" Ново-Савиновского района г. Казани" | D24: Быкова | E24: М. | F24: О. | G24: Ж | H24: 2009-09-23 | I24: 5 | J24: 7 | K24: 29.2 | L24: 19.46666667 | M24: 8.41,3 | N24: 521.3 | O24: 31.58258201 | P24: 19.6 | Q24: 34.3 | R24: 85.34924867 | T24: 85.34924867 | U24: 100 | V24: Призер | W24: Рыжов АлександрВасильевич | X24: Муниципальное бюджетное общеобразовательное учреждение "Средняя общеобразовательная татарско-русская школа №113 с углубленным изучением отдельных предметов имени Героя России М.Р.Ахметшина" Ново-Савиновского района г. Казани" | Y24: Ново-Савиновский район
A25: 24 | B25: Советский район | C25: МБОУ "Средняя общеобразовательная школа № 86 с углубленным изучением отдельных предметов" Советского района г.Казани" | D25: Лызенцова | E25: В. | F25: В. | G25: Ж | H25: 01.02.2008 | I25: 7 | J25: 7 | K25: 38 | L25: 25.33333333 | M25: 10.46,7 | N25: 646.7 | O25: 25.45848152 | P25: 19.1 | Q25: 33.425 | R25: 84.21681485 | T25: 84.21681485 | U25: 100 | V25: Призер | W25: Киямов АйнурАйратович | X25: Муниципальное бюджетное общеобразовательное учреждение "Средняя общеобразовательная школа № 86 с углубленным изучением отдельных предметов" Советского района г.Казани" | Y25: Советский район
A26: 25 | B26: Приволжский район | C26: МБОУ "Татаро-английская гимназия №16" | D26: Гайнуллина | E26: М. | F26: А. | G26: Ж | H26: 17.03.2007 | I26: 7 | J26: 7 | K26: 34 | L26: 22.66666667 | M26: 9.56,9 | N26: 596.9 | O26: 27.58250963 | P26: 19.3 | Q26: 33.775 | R26: 84.0241763 | T26: 84.0241763 | U26: 100 | V26: Призер | W26: Сивков ВиталийАлександрович | X26: Муниципальное бюджетное общеобразовательное учреждение "Татаро-английская гимназия №16" | Y26: Приволжский район
A27: 26 | B27: Приволжский район | C27: МАОУ "Гимназия №19" | D27: Шигапова | E27: А. | F27: И. | G27: Ж | H27: 09.06.2006 | I27: 8 | J27: 8 | K27: 41 | L27: 27.33333333 | M27: 11.45,0 | N27: 705 | O27: 23.35319149 | P27: 18.9 | Q27: 33.075 | R27: 83.76152482 | T27: 83.76152482 | U27: 100 | V27: Призер | W27: Хамидуллин ДинарФаилович | X27: Муниципальное автономное общеобразовательное учреждение "Гимназия №19" | Y27: Приволжский район
A28: 27 | B28: Московский район | C28: МБОУ "Гимназия № 75" Московского района г. Казани" | D28: Мышева | E28: У. | F28: Е. | G28: Ж | H28: 02.07.2007 | I28: 7 | J28: 7 | K28: 30 | L28: 20 | M28: 9.06,3 | N28: 546.3 | O28: 30.1372872 | P28: 19.1 | Q28: 33.425 | R28: 83.5622872 | T28: 83.5622872 | U28: 100 | V28: Призер | W28: Толометова ЭльвираФлитовна | X28: Муниципальное бюджетное общеобразовательное учреждение "Гимназия № 75" Московского района г. Казани" | Y28: Московский район
A29: 28 | B29: Кировский район | C29: МБОУ "Гимназия №152" Кировского района г.Казани" | D29: Исхакова | E29: А. | F29: А. | G29: Ж | H29: 30.08.2006 | I29: 8 | J29: 8 | K29: 29 | L29: 19.33333333 | M29: 9.23,5 | N29: 563.5 | O29: 29.2173913 | P29: 19.8 | Q29: 34.65 | R29: 83.20072464 | T29: 83.20072464 | U29: 100 | V29: Призер | W29: Галимова РозаИдрисовна | X29: Муниципальное бюджетное общеобразовательное учреждение "Гимназия №152" Кировского района г.Казани" | Y29: Кировский район
A30: 29 | B30: Авиастроительный район | C30: МБОУ "Гимназия №36" Авиастроительного района г.Казани" | D30: Смирнова | E30: А. | F30: С. | G30: Ж | H30: 16.11.2006 | I30: 8 | J30: 8 | K30: 34 | L30: 22.66666667 | M30: 10.23,6 | N30: 623.6 | O30: 26.40153945 | P30: 19.5 | Q30: 34.125 | R30: 83.19320612 | T30: 83.19320612 | U30: 100 | V30: Призер | W30: Мартынова ТатьянаГеоргиевна | X30: Муниципальное бюджетное общеобразовательное учреждение "Гимназия №36" Авиастроительного района г.Казани" | Y30: Авиастроительный район
A31: 30 | B31: Ново-Савиновский район | C31: МБОУ "Гимназия № 13 с татарским языком обучения" Ново-Савиновского района г. Казани | D31: Галявиева | E31: Э. | F31: Э. | G31: Ж | H31: 22.09.2006 | I31: 8 | J31: 8 | K31: 34 | L31: 22.66666667 | M31: 10.25,5 | N31: 625.5 | O31: 26.32134293 | P31: 19.4 | Q31: 33.95 | R31: 82.93800959 | T31: 82.93800959 | U31: 100 | V31: Призер | W31: Баранова АльбинаАльбертовна | X31: Муниципальное бюджетное общеобразовательное учреждение "Гимназия № 13 с татарским языком обучения" Ново-Савиновского района г. Казани | Y31: Ново-Савиновский район
A32: 31 | B32: Кировский район | C32: МБОУ "Гимназия №4 с татарским языком обучения" Кировского района г. Казани" | D32: Кашапова | E32: Р. | F32: Р. | G32: Ж | H32: 14.03.2006 | I32: 8 | J32: 8 | K32: 36 | L32: 24 | M32: 9.05,0 | N32: 545 | O32: 30.20917431 | P32: 16.3 | Q32: 28.525 | R32: 82.73417431 | T32: 82.73417431 | U32: 100 | V32: Призер | W32: Аюпов РамисРауфович | X32: Муниципальное бюджетное общеобразовательное учреждение "Гимназия №4 с татарским языком обучения" Кировского района г. Казани" | Y32: Кировский район
A33: 32 | B33: Ново-Савиновский район | C33: МАОУ "Лицей №146 "Ресурс" Ново-Савиновского района г. Казани" | D33: Воробьева | E33: М. | F33: С. | G33: Ж | H33: 13.02.2007 | I33: 7 | J33: 7 | K33: 28 | L33: 18.66666667 | M33: 8.52,1 | N33: 532.1 | O33: 30.94155234 | P33: 18.9 | Q33: 33.075 | R33: 82.68321901 | T33: 82.68321901 | U33: 100 | V33: Участник | W33: Федорченко Роман Вячеславович | X33: Муниципальное автономное общеобразовательное учреждение "Лицей №146 "Ресурс" Ново-Савиновского района г. Казани" | Y33: Ново-Савиновский район
A34: 33 | B34: Советский район | C34: МБОУ "Средняя общеобразовательная школа № 84 с углубленным изучением иностранных языков" Советского района г. Казани" | D34: Корюгина | E34: А. | F34: А. | G34: Ж | H34: 01.12.2006 | I34: 7 | J34: 7 | K34: 31 | L34: =30*K34/45 -> 20.66666667 | M34: 8.56,6 | N34: 536.6 | O34: 30.68207231 | P34: 17.9 | Q34: =35*P34/20 -> 31.325 | R34: 82.67373897 | T34: 82.67373897 | U34: 100 | V34: Участник | W34: Яшина ТамараНиколаевна | X34: Муниципальное бюджетное общеобразовательное учреждение "Средняя общеобразовательная школа № 84 с углубленным изучением иностранных языков" Советского района г. Казани" | Y34: Советский район
A35: 34 | B35: Авиастроительный район | C35: МБОУ "Лицей №145" Авиастроительного района г.Казани" | D35: Кузьмина | E35: А. | F35: И. | G35: Ж | H35: 01.02.2006 | I35: 8 | J35: 8 | K35: 34 | L35: 22.66666667 | M35: 9.49,3 | N35: 589.3 | O35: 27.9382318 | P35: 18.3 | Q35: 32.025 | R35: 82.62989847 | T35: 82.62989847 | U35: 100 | V35: Участник | W35: Андреянова НадеждаВячеславовна | X35: Муниципальное бюджетное общеобразовательное учреждение "Лицей №145" Авиастроительного района г.Казани" | Y35: Авиастроительный район
A36: 35 | B36: Московский район | C36: МБОУ "Гимназия № 102 имени М.С.Устиновой" Московского района города Казани" | D36: Алексеева | E36: А. | F36: Д. | G36: Ж | H36: 04.12.2005 | I36: 8 | J36: 8 | K36: 34 | L36: 22.66666667 | M36: 9.04,7 | N36: 544.77 | O36: 30.22192852 | P36: 16.4 | Q36: 28.7 | R36: 81.58859519 | T36: 81.58859519 | U36: 100 | V36: Участник | W36: Тулупов ИгорьВячеславович | X36: Муниципальное бюджетное общеобразовательное учреждение "Гимназия № 102 имени М.С.Устиновой" Московского района города Казани" | Y36: Московский район
A37: 36 | B37: Авиастроительный район | C37: МБОУ "Гимназия №10" Авиастроительного района г.Казани" | D37: Фархуллина | E37: Э. | F37: С. | G37: Ж | H37: 03.08.2006 | I37: 8 | J37: 8 | K37: 34 | L37: 22.66666667 | M37: 10.52,4 | N37: 652.4 | O37: 25.2360515 | P37: 19.1 | Q37: 33.425 | R37: 81.32771817 | T37: 81.32771817 | U37: 100 | V37: Участник | W37: Мубаракшина ФаридаМаликовна | X37: Муниципальное бюджетное общеобразовательное учреждение "Гимназия №10" Авиастроительного района г.Казани" | Y37: Авиастроительный район
A38: 37 | B38: Советский район | C38: МБОУ "Средняя общеобразовательная школа № 72 с углубленным изучением немецкого языка" Советского района г.Казани | D38: Моисеева | E38: Е. | F38: А. | G38: Ж | H38: 15.05.2007 | I38: 7 | J38: 7 | K38: 27 | L38: 18 | M38: 9.04,1 | N38: 544.1 | O38: 30.25914354 | P38: 18.8 | Q38: 32.9 | R38: 81.15914354 | T38: 81.15914354 | U38: 100 | V38: Участник | W38: Яковлева МаринаАлександровна | X38: Муниципальное бюджетное общеобразовательное учреждение "Средняя общеобразовательная школа № 72 с углубленным изучением немецкого языка" Советского района г.Казани | Y38: Советский район
A39: 38 | B39: Вахитовский район | C39: МАОУ "Лицей №131" | D39: Зиннатова | E39: А. | F39: Р. | G39: Ж | H39: 18.01.2006 | I39: 8 | J39: 8 | K39: 29.8 | L39: 19.86666667 | M39: 9.04,9 | N39: 544.9 | O39: 30.2147183 | P39: 17.7 | Q39: 30.975 | R39: 81.05638496 | T39: 81.05638496 | U39: 100 | V39: Участник | W39: Асхадуллин РинатФазылович | X39: Муниципальное автономное общеобразовательное учреждение "Лицей №131" | Y39: Вахитовский район
A40: 39 | B40: Советский район | C40: Муниципальное бюджетное общеобразовательное учреждение "Гимназия №93" Советского района г. Казани | D40: Зинкичева | E40: Э. | F40: М. | G40: М | H40: 13.09.2007 | I40: 7 | J40: 7 | K40: 29 | L40: 19.33333333 | M40: 8.56,0 | N40: 536 | O40: =IF(N40>0,35*423.6/N40,0) -> 27.66044776 | P40: 19.3 | Q40: 33.775 | R40: =Q40+O40+L40 -> 80.76878109 | T40: 80.76878109 | U40: 100 | V40: Участник | W40: Шкаева АлинаИльинична | X40: Муниципальное бюджетное общеобразовательное учреждение "Гимназия №93" Советского района г. Казани | Y40: Советский район
A41: 40 | B41: Советский район | C41: МБОУ "Гимназия № 8 -Центр образования" Советского района г. Казани" | D41: Ибрагимова | E41: Р. | F41: А. | G41: Ж | H41: 28.06.2007 | I41: 7 | J41: 7 | K41: 29 | L41: 19.33333333 | M41: 9.54,3 | N41: 594.3 | O41: =35*470.4/N41 -> 27.70318021 | P41: 19.1 | Q41: 33.425 | R41: =L41+O41+Q41 -> 80.46151355 | T41: 80.46151355 | U41: 100 | V41: Участник | W41: Корнеева НатальяАлексеевна | X41: Муниципальное бюджетное общеобразовательное учреждение "Гимназия № 8 -Центр образования" Советского района г. Казани" | Y41: Советский район
A42: 41 | B42: Московский район | C42: МБОУ "Гимназия № 94" Московского района г.Казани | D42: Файзрахманова | E42: Л. | F42: М. | G42: Ж | H42: 12.01.0006 | I42: 8 | J42: 8 | K42: 32 | L42: 21.33333333 | M42: 9.10,4 | N42: 550.4 | O42: 29.9127907 | P42: 16.5 | Q42: 28.875 | R42: 80.12112403 | T42: 80.12112403 | U42: 100 | V42: Участник | W42: Павлов АндрейИгоревич | X42: Муниципальное бюджетное общеобразовательное учреждение "Гимназия № 94" Московского района г.Казани | Y42: Московский район
A43: 42 | B43: Кировский район | C43: МБОУ "Русско-татарская средняя общеобразовательная школа №81 с углубленным изучением отдельных предметов имени В.А.Григорьева" | D43: Бурмакина | E43: А. | F43: А. | G43: Ж | H43: 16.09.2006 | I43: 8 | J43: 8 | K43: 24.4 | L43: 16.26666667 | M43: 8.36,1 | N43: 516.1 | O43: 31.90079442 | P43: 18.2 | Q43: 31.85 | R43: 80.01746109 | T43: 80.01746109 | U43: 100 | V43: Участник | W43: Черепанова ВалентинаВасильевна | X43: Муниципальное бюджетное общеобразовательное учреждение "Русско-татарская средняя общеобразовательная школа №81 с углубленным изучением отдельных предметов имени В.А.Григорьева" | Y43: Кировский район
A44: 43 | B44: Авиастроительный район | C44: МБОУ "Средняя общеобразовательная школа № 77" Авиастроительного района г.Казани" | D44: Крылова | E44: В. | F44: Н. | G44: Ж | H44: 12.12.2006 | I44: 8 | J44: 8 | K44: 31 | L44: 20.66666667 | M44: 10.45,0 | N44: 645 | O44: 25.5255814 | P44: 19.3 | Q44: 33.775 | R44: 79.96724806 | T44: 79.96724806 | U44: 100 | V44: Участник | W44: Королев АндрейАнатольевич | X44: Муниципальное бюджетное общеобразовательное учреждение "Средняя общеобразовательная школа № 77" Авиастроительного района г.Казани" | Y44: Авиастроительный район
A45: 44 | B45: Московский район | C45: МБОУ "Татарская гимназия № 2 имени Шигабутдина Марджани при Казанском Федеральном университете" Московского района города Казани | D45: Арысланова | E45: Д. | F45: Л. | G45: Ж | H45: 15.06.2006 | I45: 8 | J45: 8 | K45: 28 | L45: 18.66666667 | M45: 10.15,6 | N45: 615.6 | O45: 26.74463938 | P45: 19.3 | Q45: 33.775 | R45: 79.18630604 | T45: 79.18630604 | U45: 100 | V45: Участник | W45: Хабибуллин БакыйГабдулхаевич | X45: Муниципальное бюджетное общеобразовательное учреждение "Татарская гимназия № 2 имени Шигабутдина Марджани при Казанском Федеральном университете" Московского района города Казани | Y45: Московский район
A46: 45 | B46: Советский район | C46: МБОУ "Лицей № 149 с татарским языком обучения" Советского района г.Казани" | D46: Кульмамедова | E46: Л. | F46: Р. | G46: Ж | H46: 18.06.2006 | I46: 8 | J46: 8 | K46: 31 | L46: 20.66666667 | M46: 10.42,9 | N46: 642.9 | O46: 25.6089594 | P46: 18.8 | Q46: 32.9 | R46: 79.17562607 | T46: 79.17562607 | U46: 100 | V46: Участник | W46: Закиров РанисРаисович | X46: Муниципальное бюджетное общеобразовательное учреждение "Лицей № 149 с татарским языком обучения" Советского района г.Казани" | Y46: Советский район
A47: 46 | B47: Кировский район | C47: МБОУ "Гимназия №50" Кировского района г. Казани" | D47: Сергеева | E47: Р. | F47: Р. | G47: Ж | H47: 04.04.2006 | I47: 8 | J47: 8 | K47: 23.8 | L47: 15.86666667 | M47: 9.15,9 | N47: 555.9 | O47: 29.61683756 | P47: 19.2 | Q47: 33.6 | R47: 79.08350423 | T47: 79.08350423 | U47: 100 | V47: Участник | W47: Мычилкина ЗояДмитриевна | X47: Муниципальное бюджетное общеобразовательное учреждение "Гимназия №50" Кировского района г. Казани" | Y47: Кировский район
A48: 47 | B48: Ново-Савиновский район | C48: МБОУ "Средняя общеобразовательная школа №132 с углубленным изучением иностранных языков" Ново-Савиновского района г. Казани" | D48: Гиниятова | E48: К. | F48: Р. | G48: Ж | H48: 02.08.2008 | I48: 6 | J48: 7 | K48: 20 | L48: 13.33333333 | M48: 8.42,8 | N48: 522.8 | O48: 31.49196634 | P48: 19.4 | Q48: 33.95 | R48: 78.77529967 | T48: 78.77529967 | U48: 100 | V48: Участник | W48: Хубатуллина АльбинаИльгизовна | X48: Муниципальное бюджетное общеобразовательное учреждение "Средняя общеобразовательная школа №132 с углубленным изучением иностранных языков" Ново-Савиновского района г. Казани" | Y48: Ново-Савиновский район
A49: 48 | B49: Приволжский район | C49: МБОУ "Лицей №35 - образовательный центр "Галактика" Приволжского района города Казани" | D49: Кривоносова | E49: С. | F49: Н. | G49: Ж | H49: 22.01.2006 | I49: 8 | J49: 8 | K49: 27.4 | L49: 18.26666667 | M49: 10.08,9 | N49: 608.9 | O49: 27.03892265 | P49: 19.1 | Q49: 33.425 | R49: 78.73058931 | T49: 78.73058931 | U49: 100 | V49: Участник | W49: Хузиахметова ИринаИльинична | X49: Муниципальное бюджетное общеобразовательное учреждение "Лицей №35 - образовательный центр "Галактика" Приволжского района города Казани" | Y49: Приволжский район
A50: 49 | B50: Советский район | C50: МБОУ "Лицей № 159" Советского района г.Казани" | D50: Ермохина | E50: Е. | F50: Е. | G50: Ж | H50: 02.04.2006 | I50: 8 | J50: 8 | K50: 35 | L50: 23.33333333 | M50: 12.52,2 | N50: 772.2 | O50: 21.32090132 | P50: 19.3 | Q50: 33.775 | R50: 78.42923465 | T50: 78.42923465 | U50: 100 | V50: Участник | W50: Барлев ВикторАлександрович | X50: Муниципальное бюджетное общеобразовательное учреждение "Лицей № 159" Советского района г.Казани" | Y50: Советский район
A51: 50 | B51: Московский район | C51: МБОУ "Гимназия № 9" Московского района г. Казани" | D51: Яценко | E51: Д. | F51: Г. | G51: Ж | H51: 17.08.2006 | I51: 8 | J51: 8 | K51: 22 | L51: 14.66666667 | M51: 8.41,1 | N51: 521.1 | O51: 31.59470351 | P51: 18.2 | Q51: 31.85 | R51: 78.11137018 | T51: 78.11137018 | U51: 100 | V51: Участник | W51: Матросова СветланаЛьвовна | X51: Муниципальное бюджетное общеобразовательное учреждение "Гимназия № 9" Московского района г. Казани" | Y51: Московский район
A52: 51 | B52: Авиастроительный район | C52: МАОУ "Гимназия №37" Авиастроительного района г.Казани" | D52: Маценко | E52: К. | F52: Е. | G52: Ж | H52: 28.03.2007 | I52: 7 | J52: 7 | K52: 28 | L52: 18.66666667 | M52: 10.25,1 | N52: 625.1 | O52: 26.33818589 | P52: 18.8 | Q52: 32.9 | R52: 77.90485256 | T52: 77.90485256 | U52: 100 | V52: Участник | W52: Сарбаев ИгорьЕвгеньевич | X52: Муниципальное автономное общеобразовательное учреждение "Гимназия №37" Авиастроительного района г.Казани" | Y52: Авиастроительный район
A53: 52 | B53: Приволжский район | C53: МБОУ "Гимназия№52" | D53: Иванова | E53: А. | F53: Е. | G53: Ж | H53: 04.12.2006 | I53: 8 | J53: 8 | K53: 19.6 | L53: 13.06666667 | M53: 9.11,4 | N53: 551.4 | O53: 29.85854189 | P53: 19.9 | Q53: 34.825 | R53: 77.75020856 | T53: 77.75020856 | U53: 100 | V53: Участник | W53: Михеев ЭдуардРафаэльевич | X53: Муниципальное бюджетное общеобразовательное учреждение "Гимназия№52" | Y53: Приволжский район
A54: 53 | B54: Советский район | C54: МБОУ "Средняя общеобразовательная школа № 22 с углубленным изучением отдельных предметов - Центр образования" Советского района г.Казани" | D54: Топонцева | E54: В. | F54: М. | G54: Ж | H54: 13.12.2006 | I54: 8 | J54: 8 | K54: 24 | L54: 16 | M54: 9.24,2 | N54: 564.2 | O54: 29.18114144 | P54: 18.5 | Q54: 32.375 | R54: 77.55614144 | T54: 77.55614144 | U54: 100 | V54: Участник | W54: Жиряева РахиляРашитовна | X54: Муниципальное бюджетное общеобразовательное учреждение "Средняя общеобразовательная школа № 22 с углубленным изучением отдельных предметов - Центр образования" Советского района г.Казани" | Y54: Советский район
A55: 54 | B55: Авиастроительный район | C55: МБОУ "Средняя общеобразовательная школа с углубленным изучением отдельных предметов №62" Авиастроительного района г.Казани" | D55: Сидорова | E55: В. | F55: А. | G55: Ж | H55: 01.06.2006 | I55: 8 | J55: 8 | K55: 27 | L55: 18 | M55: 10.39,2 | N55: 639.2 | O55: 25.7571965 | P55: 19.1 | Q55: 33.425 | R55: 77.1821965 | T55: 77.1821965 | U55: 100 | V55: Участник | W55: Косова ЛюбовьНиколаевна | X55: Муниципальное бюджетное общеобразовательное учреждение "Средняя общеобразовательная школа с углубленным изучением отдельных предметов №62" Авиастроительного района г.Казани" | Y55: Авиастроительный район
A56: 55 | B56: Приволжский район | C56: МБОУ "Гимназия №21" | D56: Латыпова | E56: А. | F56: Р. | G56: Ж | H56: 07.01.2007 | I56: 7 | J56: 7 | K56: 21.8 | L56: 14.53333333 | M56: 8.59,7 | N56: 539.7 | O56: 30.50583658 | P56: 18.3 | Q56: 32.025 | R56: 77.06416991 | T56: 77.06416991 | U56: 100 | V56: Участник | W56: Хафизов ИльшатИсхакович | X56: Муниципальное бюджетное общеобразовательное учреждение "Гимназия №21" | Y56: Приволжский район
A57: 56 | B57: Ново-Савиновский район | C57: МБОУ "Средняя общеобразовательная школа №170 с углубленным изучением отдельных предметов" Ново-Савиновского района г. Казани" | D57: Авзалова | E57: А. | F57: И. | G57: Ж | H57: 07.03.2006 | I57: 8 | J57: 8 | K57: 26 | L57: 17.33333333 | M57: 10.17,6 | N57: 617.6 | O57: 26.65803109 | P57: 18.7 | Q57: 32.725 | R57: 76.71636442 | T57: 76.71636442 | U57: 100 | V57: Участник | W57: Саппарова АлександраЮрьевна | X57: Муниципальное бюджетное общеобразовательное учреждение "Средняя общеобразовательная школа №170 с углубленным изучением отдельных предметов" Ново-Савиновского района г. Казани" | Y57: Ново-Савиновский район
A58: 57 | B58: Авиастроительный район | C58: МБОУ "Гимназия №33" Авиастроительного района г.Казани" | D58: Маланьева | E58: Ю. | F58: В. | G58: Ж | H58: 21.02.2008 | I58: 6 | J58: 7 | K58: 21.8 | L58: 14.53333333 | M58: 9.33,2 | N58: 573.2 | O58: 28.72295883 | P58: 19 | Q58: 33.25 | R58: 76.50629216 | T58: 76.50629216 | U58: 100 | V58: Участник | W58: Аввакумова ЕкатеринаВикторовна | X58: Муниципальное бюджетное общеобразовательное учреждение "Гимназия №33" Авиастроительного района г.Казани" | Y58: Авиастроительный район
A59: 58 | B59: Приволжский район | C59: МБОУ "Русско-татарская средняя общеобразовательная школа №136" | D59: Кузнецова | E59: А. | F59: С. | G59: Ж | H59: 12.10.2006 | I59: 8 | J59: 8 | K59: 30 | L59: 20 | M59: 10.07,7 | N59: 607.7 | O59: 27.09231529 | P59: 16.8 | Q59: 29.4 | R59: 76.49231529 | T59: 76.49231529 | U59: 100 | V59: Участник | W59: Тростогон СергейАнатольевич | X59: Муниципальное бюджетное общеобразовательное учреждение "Русско-татарская средняя общеобразовательная школа №136" | Y59: Приволжский район
A60: 59 | B60: Приволжский район | C60: МБОУ "Гимназия №40" | D60: Недвигина | E60: У. | F60: В. | G60: Ж | H60: 01.12.2006 | I60: 8 | J60: 8 | K60: 34 | L60: 22.66666667 | M60: 11.48,9 | N60: 708.9 | O60: 23.22471435 | P60: 17.2 | Q60: 30.1 | R60: 75.99138101 | T60: 75.99138101 | U60: 100 | V60: Участник | W60: Утятникова ЛюдмилаГермановна | X60: Муниципальное бюджетное общеобразовательное учреждение "Гимназия №40" | Y60: Приволжский район
A61: 60 | B61: Советский район | C61: МБОУ "Средняя общеобразовательная школа № 144 с углубленным изучением отдельных предметов" Советского района г.Казани" | D61: Марданшина | E61: С. | F61: А. | G61: Ж | H61: 13.07.2006 | I61: 8 | J61: 8 | K61: 25 | L61: 16.66666667 | M61: 10.04,1 | N61: 604.1 | O61: 27.25376593 | P61: 17.8 | Q61: 31.15 | R61: 75.0704326 | T61: 75.0704326 | U61: 100 | V61: Участник | W61: Худобко ТатьянаЕвгеньевна | X61: Муниципальное бюджетное общеобразовательное учреждение "Средняя общеобразовательная школа № 144 с углубленным изучением отдельных предметов" Советского района г.Казани" | Y61: Советский район
A62: 61 | B62: Кировский район | C62: МБОУ "Средняя общеобразовательная школа №137 с углубленным изучением отдельных предметов"Кировского района г.Казани" | D62: Елистратова | E62: Э. | F62: Р. | G62: Ж | H62: 03.10.2006 | I62: 8 | J62: 8 | K62: 24 | L62: 16 | M62: 10.27,2 | N62: 627.2 | O62: 26.25 | P62: 18.7 | Q62: 32.725 | R62: 74.975 | T62: 74.975 | U62: 100 | V62: Участник | W62: Баранов ВладимирГеннадьевич | X62: Муниципальное бюджетное общеобразовательное учреждение "Средняя общеобразовательная школа №137 с углубленным изучением отдельных предметов"Кировского района г.Казани" | Y62: Кировский район
A63: 62 | B63: Московский район | C63: МБОУ "Средняя общеобразовательная школа № 99" Московского района г. Казани" | D63: Зиатдинова | E63: С. | F63: Р. | G63: Ж | H63: 10.10.2007 | I63: 7 | J63: 7 | K63: 29 | L63: 19.33333333 | M63: 10.44,7 | N63: 644.7 | O63: 25.53745928 | P63: 17 | Q63: 29.75 | R63: 74.62079262 | T63: 74.62079262 | U63: 100 | V63: Участник | W63: Горулёва СветланаАлександровна | X63: Муниципальное бюджетное общеобразовательное учреждение "Средняя общеобразовательная школа № 99" Московского района г. Казани" | Y63: Московский район
A64: 63 | B64: Ново-Савиновский район | C64: МБОУ "Средняя общеобразовательная школа №89 с углубленным изучением отдельных предметов" Ново-Савиновского района г. Казани" | D64: Баткова | E64: А. | F64: С. | G64: Ж | H64: 21.07.2006 | I64: 8 | J64: 8 | K64: 24 | L64: 16 | M64: 10.11,7 | N64: 611.7 | O64: 26.91515449 | P64: 18.1 | Q64: 31.675 | R64: 74.59015449 | T64: 74.59015449 | U64: 100 | V64: Участник | W64: Гатина ОльгаЮрьевна | X64: Муниципальное бюджетное общеобразовательное учреждение "Средняя общеобразовательная школа №89 с углубленным изучением отдельных предметов" Ново-Савиновского района г. Казани" | Y64: Ново-Савиновский район
A65: 64 | B65: Авиастроительный район | C65: МБОУ "Средняя общеобразовательная школа № 54 с углубленным изучением отдельных предметов" Авиастроительного района г.Казани" | D65: Данилова | E65: С. | F65: П. | G65: Ж | H65: 28.07.2006 | I65: 8 | J65: 8 | K65: 14.8 | L65: 9.866666667 | M65: 8.51,4 | N65: 531.4 | O65: 30.98231088 | P65: 19.2 | Q65: 33.6 | R65: 74.44897754 | T65: 74.44897754 | U65: 100 | V65: Участник | W65: Шинкарева ЛидияВикторовна | X65: Муниципальное бюджетное общеобразовательное учреждение "Средняя общеобразовательная школа № 54 с углубленным изучением отдельных предметов" Авиастроительного района г.Казани" | Y65: Авиастроительный район
A66: 65 | B66: Советский район | C66: МБОУ "Средняя общеобразовательная русско-татарская школа № 111" Советского района г.Казани" | D66: Зарипова | E66: Д. | F66: Р. | G66: Ж | H66: 28.01.2007 | I66: 7 | J66: 7 | K66: 28 | L66: =30*K66/45 -> 18.66666667 | M66: 10.39,3 | N66: 639.3 | O66: 25.75316753 | P66: 16.6 | Q66: =35*P66/20 -> 29.05 | R66: 73.46983419 | T66: 73.46983419 | U66: 100 | V66: Участник | W66: Клюкин ИванАлександрович | X66: Муниципальное бюджетное общеобразовательное учреждение "Средняя общеобразовательная русско-татарская школа № 111" Советского района г.Казани" | Y66: Советский район
A67: 66 | B67: Советский район | C67: МБОУ "Средняя общеобразовательная школа № 174" Советского района г.Казани" | D67: Алексеева | E67: А. | F67: Р. | G67: Ж | H67: 18.01.2007 | I67: 7 | J67: 7 | K67: 15.6 | L67: 10.4 | M67: 8.37,4 | N67: 517.4 | O67: 31.82064167 | P67: 16.8 | Q67: 29.4 | R67: 71.62064167 | T67: 71.62064167 | U67: 100 | V67: Участник | W67: Гильфанетдинов ИрекТауфикович | X67: Муниципальное бюджетное общеобразовательное учреждение "Средняя общеобразовательная школа № 174" Советского района г.Казани" | Y67: Советский район
A68: 67 | B68: Московский район | C68: МБОУ "Гимназия № 122 имени Ж.А.Зайцевой"Московского района г. Казани" | D68: Галиева | E68: С. | F68: И. | G68: Ж | H68: 08.12.2006 | I68: 7 | J68: 7 | K68: 16 | L68: 10.66666667 | M68: 9.10,9 | N68: 550.9 | O68: 29.88564168 | P68: 17.7 | Q68: 30.975 | R68: 71.52730834 | T68: 71.52730834 | U68: 100 | V68: Участник | W68: Вальтонов ВикторНиколаевич | X68: Муниципальное бюджетное общеобразовательное учреждение "Гимназия № 122 имени Ж.А.Зайцевой"Московского района г. Казани" | Y68: Московский район
A69: 68 | B69: Ново-Савиновский район | C69: МБОУ "Гимназия №7 имени Героя России А.В.Козина" Ново-Савиновского района г. Казани" | D69: Гумерова | E69: С. | F69: И. | G69: Ж | H69: 31.10.2007 | I69: 7 | J69: 7 | K69: 21 | L69: 14 | M69: 11.31,2 | N69: 691.2 | O69: 23.81944444 | P69: 19.1 | Q69: 33.425 | R69: 71.24444444 | T69: 71.24444444 | U69: 100 | V69: Участник | W69: Калашникова КсенияДмитриевна | X69: Муниципальное бюджетное общеобразовательное учреждение "Гимназия №7 имени Героя России А.В.Козина" Ново-Савиновского района г. Казани" | Y69: Ново-Савиновский район
A70: 69 | B70: Ново-Савиновский район | C70: МБОУ "Средняя общеобразовательная татарско-русская школа №71 с углубленным изучением отдельных предметов" Ново-Савиновского района г. Казани" | D70: Хабибуллина | E70: К. | F70: Д. | G70: Ж | H70: 21.11.2006 | I70: 8 | J70: 8 | K70: 15.8 | L70: 10.53333333 | M70: 8.59,3 | N70: 539.3 | O70: 30.52846282 | P70: 17.1 | Q70: 29.925 | R70: 70.98679616 | T70: 70.98679616 | U70: 100 | V70: Участник | W70: Мухаметшин АзатГазизович | X70: Муниципальное бюджетное общеобразовательное учреждение "Средняя общеобразовательная татарско-русская школа №71 с углубленным изучением отдельных предметов" Ново-Савиновского района г. Казани" | Y70: Ново-Савиновский район
A71: 70 | B71: Московский район | C71: МБОУ "Средняя общеобразовательная татарско-русская школа № 34 " Московского района г.Казани" | D71: Малышева | E71: К. | F71: А. | G71: Ж | H71: 29.08.2007 | I71: 7 | J71: 7 | K71: 13.2 | L71: 8.8 | M71: 9.30,4 | N71: 570.4 | O71: 28.86395512 | P71: 18.8 | Q71: 32.9 | R71: 70.56395512 | T71: 70.56395512 | U71: 100 | V71: Участник | W71: Волков АндрейВячеславович | X71: Муниципальное бюджетное общеобразовательное учреждение "Средняя общеобразовательная татарско-русская школа № 34 " Московского района г.Казани" | Y71: Московский район
A72: 71 | B72: Ново-Савиновский район | C72: МБОУ "Средняя общеобразовательная школа №91" Ново-Савиновского района г. Казани" | D72: Мухаметгалиева | E72: В. | F72: Э. | G72: Ж | H72: 03.02.2006 | I72: 8 | J72: 8 | K72: 19 | L72: 12.66666667 | M72: 10.28,4 | N72: 628.4 | O72: 26.19987269 | P72: 18 | Q72: 31.5 | R72: 70.36653936 | T72: 70.36653936 | U72: 100 | V72: Участник | W72: Варин РадикНависович | X72: Муниципальное бюджетное общеобразовательное учреждение "Средняя общеобразовательная школа №91" Ново-Савиновского района г. Казани" | Y72: Ново-Савиновский район
A73: 72 | B73: Авиастроительный район | C73: МБОУ "Средняя общеобразовательная школа №119" Авиастроительного района г.Казани" | D73: Евсеева | E73: А. | F73: А. | G73: Ж | H73: 10.10.2007 | I73: 7 | J73: 7 | K73: 21.8 | L73: 14.53333333 | M73: 12.55,6 | N73: 775.6 | O73: =35*470.4/N73 -> 21.22743682 | P73: 19.7 | Q73: 34.475 | R73: =L73+O73+Q73 -> 70.23577016 | T73: 70.23577016 | U73: 100 | V73: Участник | W73: Павлова АльбинаНиколаевна | X73: Муниципальное бюджетное общеобразовательное учреждение "Средняя общеобразовательная школа №119" Авиастроительного района г.Казани" | Y73: Авиастроительный район
A74: 73 | B74: Советский район | C74: МБОУ "Средняя общеобразовательная школа № 15 с углубленным изучением отдельных предметов" Советского района города Казани" | D74: Завьялова | E74: В. | F74: А. | G74: Ж | H74: 30.01.2007 | I74: 7 | J74: 7 | K74: 20.6 | L74: 13.73333333 | M74: 9.58,4 | N74: 598.4 | O74: 27.51336898 | P74: 16.2 | Q74: 28.35 | R74: 69.59670232 | T74: 69.59670232 | U74: 100 | V74: Участник | W74: Каримов МаратРамилевич | X74: Муниципальное бюджетное общеобразовательное учреждение "Средняя общеобразовательная школа № 15 с углубленным изучением отдельных предметов" Советского района города Казани" | Y74: Советский район
A75: 74 | B75: Ново-Савиновский район | C75: МБОУ "Средняя общеобразовательная школа №49" Ново-Савиновского района г.Казани" | D75: Габбазова | E75: Р. | F75: Т. | G75: Ж | H75: 14.02.2007 | I75: 7 | J75: 7 | K75: 20.8 | L75: 13.86666667 | M75: 9.54,9 | N75: 594.9 | O75: 27.67523954 | P75: 16 | Q75: 28 | R75: 69.5419062 | T75: 69.5419062 | U75: 100 | V75: Участник | W75: Сухарев ИгорьАлександрович | X75: Муниципальное бюджетное общеобразовательное учреждение "Средняя общеобразовательная школа №49" Ново-Савиновского района г.Казани" | Y75: Ново-Савиновский район
A76: 75 | B76: Приволжский район | C76: МБОУ "Гимназия №18 с татарским языком обучения" Приволжского района г.Казани" | D76: Ибатуллина | E76: С. | F76: И. | G76: Ж | H76: 10.07.2006 | I76: 7 | J76: 7 | K76: 19.2 | L76: 12.8 | M76: 9.37,0 | N76: 577 | O76: 28.53379549 | P76: 16.1 | Q76: 28.175 | R76: 69.50879549 | T76: 69.50879549 | U76: 100 | V76: Участник | W76: Максимова ЕленаИвановна | X76: Муниципальное бюджетное общеобразовательное учреждение "Гимназия №18 с татарским языком обучения" Приволжского района г.Казани" | Y76: Приволжский район
A77: 76 | B77: Кировский район | C77: МБОУ "Средняя общеобразовательная школа №153" Кировского района г. Казани | D77: Клевина | E77: А. | F77: Р. | G77: Ж | H77: 16.04.2007 | I77: 7 | J77: 7 | K77: 13.8 | L77: 9.2 | M77: 10.14,0 | N77: 614 | O77: 26.81433225 | P77: 19 | Q77: 33.25 | R77: 69.26433225 | T77: 69.26433225 | U77: 100 | V77: Участник | W77: Мандрыка ЛарисаАнатольевна | X77: Муниципальное бюджетное общеобразовательное учреждение "Средняя общеобразовательная школа №153" Кировского района г. Казани | Y77: Кировский район
A78: 77 | B78: Советский район | C78: МБОУ "Многопрофильная полилингвальная гимназия №180" Советского района г. Казани" | D78: Фалеева | E78: Д. | F78: Р. | G78: Ж | H78: 09.01.2009 | I78: 5 | J78: 7 | K78: 9.6 | L78: 6.4 | M78: 8.08,8 | N78: 488.8 | O78: 33.68248773 | P78: 16.6 | Q78: 29.05 | R78: 69.13248773 | T78: 69.13248773 | U78: 100 | V78: Участник | W78: Хабибуллина РамиляФаритовна | X78: Муниципальное бюджетное общеобразовательное учреждение "Многопрофильная полилингвальная гимназия №180" Советского района г. Казани" | Y78: Советский район
A79: 78 | B79: Приволжский район | C79: МБОУ "Средняя общеобразовательная школа №42" | D79: Хамадиярова | E79: А. | F79: И. | G79: Ж | H79: 26.04.2007 | I79: 7 | J79: 7 | K79: 15.8 | L79: 10.53333333 | M79: 9.12,9 | N79: 552.9 | O79: 29.77753663 | P79: 16.4 | Q79: 28.7 | R79: 69.01086996 | T79: 69.01086996 | U79: 100 | V79: Участник | W79: Хикматуллин МударисСултанович | X79: Муниципальное бюджетное общеобразовательное учреждение "Средняя общеобразовательная школа №42" | Y79: Приволжский район
A80: 79 | B80: Авиастроительный район | C80: МБОУ "Гимназия №36" Авиастроительного района г.Казани" | D80: Александрова | E80: А. | F80: А. | G80: Ж | H80: 28.04.2007 | I80: 7 | J80: 7 | K80: 16.2 | L80: 10.8 | M80: 10.49,5 | N80: 649.5 | O80: 25.34872979 | P80: 18.7 | Q80: 32.725 | R80: 68.87372979 | T80: 68.87372979 | U80: 100 | V80: Участник | W80: Мартынова ТатьянаГеоргиевна | X80: Муниципальное бюджетное общеобразовательное учреждение "Гимназия №36" Авиастроительного района г.Казани" | Y80: Авиастроительный район
A81: 80 | B81: Приволжский район | C81: МАОУ "Гимназия № 139" | D81: Трошина | E81: Е. | F81: Д. | G81: Ж | H81: 22.10.2007 | I81: 7 | J81: 7 | K81: 14.6 | L81: 9.733333333 | M81: 10.42,2 | N81: 642.2 | O81: 25.63687325 | P81: 18.8 | Q81: 32.9 | R81: 68.27020658 | T81: 68.27020658 | U81: 100 | V81: Участник | W81: Галкин ВикторЮрьевич | X81: Муниципальное автономное общеобразовательное учреждение "Гимназия № 139" | Y81: Приволжский район
A82: 81 | B82: Ново-Савиновский район | C82: МБОУ "Средняя общеобразовательная школа №85 с углубленным изучением отдельных предметов" Ново-Савиновского района г.Казани" | D82: Евграфова | E82: А. | F82: А. | G82: Ж | H82: 03.11.2005 | I82: 8 | J82: 8 | K82: 14.2 | L82: 9.466666667 | M82: 10.28,2 | N82: 628.2 | O82: 26.20821394 | P82: 18.6 | Q82: 32.55 | R82: 68.22488061 | T82: 68.22488061 | U82: 100 | V82: Участник | W82: Хабибрахманов БулатГабдрахманович | X82: Муниципальное бюджетное общеобразовательное учреждение "Средняя общеобразовательная школа №85 с углубленным изучением отдельных предметов" Ново-Савиновского района г.Казани" | Y82: Ново-Савиновский район
A83: 82 | B83: Приволжский район | C83: МБОУ «Многопрофильный лицей №186 - "Перспектива" Приволжского района г. Казани | D83: Хайбуллина | E83: С. | F83: И. | G83: Ж | H83: 12.12.2007 | I83: 7 | J83: 7 | K83: 20.2 | L83: 13.46666667 | M83: 10.57,8 | N83: 657.8 | O83: 25.02888416 | P83: 16.7 | Q83: 29.225 | R83: 67.72055083 | T83: 67.72055083 | U83: 100 | V83: Участник | W83: Сабирзянов РустемНагимуллович | X83: Муниципальное бюджетное общеобразовательное учреждение «Многопрофильный лицей №186 - "Перспектива" Приволжского района г. Казани | Y83: Приволжский район
A84: 83 | B84: Авиастроительный район | C84: МБОУ "Гимназия №5" | D84: Зайнуллина | E84: М. | F84: И. | G84: Ж | H84: 12.05.2007 | I84: 7 | J84: 7 | K84: 20.8 | L84: 13.86666667 | M84: 9.40,6 | N84: 580.6 | O84: 28.3568722 | P84: 14.5 | Q84: 25.375 | R84: 67.59853887 | T84: 67.59853887 | U84: 100 | V84: Участник | W84: Шакирова НазияАглулловна | X84: Муниципальное бюджетное общеобразовательное учреждение "Гимназия №5" | Y84: Авиастроительный район
A85: 84 | B85: Ново-Савиновский район | C85: МБОУ "Средняя общеобразовательная школа №9 с углубленным изучением английского языка" Ново-Савиновского района г. Казани" | D85: Мухаметзянова | E85: Р. | F85: А. | G85: Ж | H85: 02.03.2007 | I85: 7 | J85: 7 | K85: 16 | L85: 10.66666667 | M85: 10.11,3 | N85: 611.3 | O85: 26.93276624 | P85: 17 | Q85: 29.75 | R85: 67.3494329 | T85: 67.3494329 | U85: 100 | V85: Участник | W85: Зарипов ЗуфарЗиннурович | X85: Муниципальное бюджетное общеобразовательное учреждение "Средняя общеобразовательная школа №9 с углубленным изучением английского языка" Ново-Савиновского района г. Казани" | Y85: Ново-Савиновский район
A86: 85 | B86: Советский район | C86: МБОУ "Многопрофильная школа №181" Советского района г. Казани" | D86: Буторина | E86: А. | F86: С. | G86: Ж | H86: 11.08.2007 | I86: 7 | J86: 7 | K86: 12 | L86: 8 | M86: 8.51,6 | N86: 531.6 | O86: 30.97065463 | P86: 15.5 | Q86: 27.125 | R86: 66.09565463 | T86: 66.09565463 | U86: 100 | V86: Участник | W86: Садыков ТимурАйдарович | X86: Муниципальное бюджетное общеобразовательное учреждение "Многопрофильная школа №181" Советского района г. Казани" | Y86: Советский район
A87: 86 | B87: Ново-Савиновский район | C87: МБОУ "Средняя общеобразовательная школа №143 с углубленным изучением отдельных предметов" Ново-Савиновского района г.Казани" | D87: Фарзалеева | E87: Я. | F87: Р. | G87: Ж | H87: 21.07.2008 | I87: 6 | J87: 8 | K87: 11.8 | L87: 7.866666667 | M87: 8.53,3 | N87: 533.3 | O87: 30.8719295 | P87: 15.6 | Q87: 27.3 | R87: 66.03859616 | T87: 66.03859616 | U87: 100 | V87: Участник | W87: Сабитов ИльнурНаилевич | X87: Муниципальное бюджетное общеобразовательное учреждение "Средняя общеобразовательная школа №143 с углубленным изучением отдельных предметов" Ново-Савиновского района г.Казани" | Y87: Ново-Савиновский район
A88: 87 | B88: Вахитовский район | C88: МБОУ "Гимназия №27 с татарским языком обучения" | D88: Шайхелисламова | E88: А. | F88: И. | G88: Ж | H88: 17.04.2007 | I88: 7 | J88: 7 | K88: 9.6 | L88: 6.4 | M88: 8.56,3 | N88: 536.3 | O88: 30.6992355 | P88: 16.3 | Q88: 28.525 | R88: 65.6242355 | T88: 65.6242355 | U88: 100 | V88: Участник | W88: Галиуллин КамильМасхутович | X88: Муниципальное бюджетное общеобразовательное учреждение "Гимназия №27 с татарским языком обучения" | Y88: Вахитовский район
A89: 88 | B89: Советский район | C89: МАОУ "Гимназия №141" Советского района г.Казани | D89: Бутусова | E89: Е. | F89: В. | G89: Ж | H89: 20.12.2006 | I89: 8 | J89: 8 | K89: 14 | L89: 9.333333333 | M89: 12.03,1 | N89: 723.1 | O89: 22.76863504 | P89: 18 | Q89: 31.5 | R89: 63.60196838 | T89: 63.60196838 | U89: 100 | V89: Участник | W89: Митяшкин АнтонОлегович | X89: Муниципальное автономное общеобразовательное учреждение "Гимназия №141" Советского района г.Казани | Y89: Советский район
A90: 89 | B90: Приволжский район | C90: МБОУ "Средняя общеобразовательная школа №69" | D90: Володина | E90: А. | F90: И. | G90: Ж | H90: 12.01.2006 | I90: 8 | J90: 8 | K90: 13 | L90: 8.666666667 | M90: 12.16,9 | N90: 736.9 | O90: 22.34224454 | P90: 17.5 | Q90: 30.625 | R90: 61.6339112 | T90: 61.6339112 | U90: 100 | V90: Участник | W90: Еремина ЛюдмилаГеннадьевна | X90: Муниципальное бюджетное общеобразовательное учреждение "Средняя общеобразовательная школа №69" | Y90: Приволжский район
A91: 90 | B91: Вахитовский район | C91: МБОУ "Средняя общеобразовательная школа №98 (татарско-русская)" | D91: Дебердиева | E91: А. | F91: Р. | G91: Ж | H91: 29.11.2006 | I91: 7 | J91: 7 | K91: 38 | L91: 25.33333333 | M91: 0 | P91: 19 | Q91: 33.25 | R91: 58.58333333 | T91: 58.58333333 | U91: 100 | V91: Участник | W91: Сагдатуллин ГаббасГабдельбариевич | X91: Муниципальное бюджетное общеобразовательное учреждение "Средняя общеобразовательная школа №98 (татарско-русская)" | Y91: Вахитовский район
A92: 91 | B92: Советский район | C92: МБОУ "Средняя общеобразовательная русско-татарская школа № 161" Советского района г.Казани" | D92: Омельченко | E92: А. | F92: В. | G92: Ж | H92: 21.06.2007 | I92: 7 | J92: 7 | K92: 29 | L92: 19.33333333 | M92: 8.43,4 | N92: 523.4 | O92: =35*470.4/N92 -> 31.45586549 | P92: 0 | Q92: 0 | R92: 50.78919883 | T92: 50.78919883 | U92: 100 | V92: Участник | W92: Горохов МаксимВитальевич | X92: Муниципальное бюджетное общеобразовательное учреждение "Средняя общеобразовательная русско-татарская школа № 161" Советского района г.Казани" | Y92: Советский район
A93: 92 | B93: Советский район | C93: МБОУ "Средняя общеобразовательная школа № 101 имени П.А.Полушкина - Центр образования" Советского района г.Казани | D93: Логанина | E93: Э. | F93: Н. | G93: Ж | H93: 23.12.2007 | I93: 7 | J93: 7 | K93: 19.2 | L93: 12.8 | M93: 7.50,4 | N93: 470.4 | O93: 35 | P93: 0 | Q93: 0 | R93: 47.8 | T93: 47.8 | U93: 100 | V93: Участник | W93: Ермакова НадеждаЕгоровна | X93: Муниципальное бюджетное общеобразовательное учреждение "Средняя общеобразовательная школа № 101 имени П.А.Полушкина - Центр образования" Советского района г.Казани | Y93: Советский район
A94: 93 | B94: Авиастроительный район | C94: МБОУ "Гимназия №14" Авиастроительного района г.Казани" | D94: Ивашкевич | E94: Е. | F94: С. | G94: Ж | H94: 30.10.2007 | I94: 7 | J94: 7 | K94: 29 | L94: 19.33333333 | M94: 9.54,3 | N94: 594.3 | O94: 27.70318021 | P94: 0 | Q94: 0 | R94: 47.03651355 | T94: 47.03651355 | U94: 100 | V94: Участник | W94: Платонов ВячеславПетрович | X94: Муниципальное бюджетное общеобразовательное учреждение "Гимназия №14" Авиастроительного района г.Казани" | Y94: Авиастроительный район
A95: 94 | B95: Кировский район | C95: МБОУ "Гимназия №3 с татарским языком обучения" Кировского района г.Казани" | D95: Мусина | E95: А. | F95: И. | G95: Ж | H95: 25.07.2007 | I95: 7 | J95: 7 | K95: 27 | L95: 18 | M95: 9.47,6 | N95: 587.6 | O95: 28.01906059 | P95: 0 | Q95: 0 | R95: 46.01906059 | T95: 46.01906059 | U95: 100 | V95: Участник | W95: Гумеров РусланРинатович | X95: Муниципальное бюджетное общеобразовательное учреждение "Гимназия №3 с татарским языком обучения" Кировского района г.Казани" | Y95: Кировский район
A96: 95 | B96: Ново-Савиновский район | C96: МБОУ "Лицей №177" Ново-Савиновского района г. Казани" | D96: Бикьянова | E96: А. | F96: Р. | G96: Ж | H96: 23.10.2006 | I96: 8 | J96: 8 | K96: 26 | L96: 17.33333333 | M96: 9.37,5 | N96: 577.5 | O96: 28.50909091 | R96: 45.84242424 | T96: 45.84242424 | U96: 100 | V96: Участник | W96: Валиев МарсельМидхатович | X96: Муниципальное бюджетное общеобразовательное учреждение "Лицей №177" Ново-Савиновского района г. Казани" | Y96: Ново-Савиновский район
A97: 96 | B97: Московский район | C97: МБОУ "Гимназия №20"Гармония" Московского района г.Казани" | D97: Шувалова | E97: Д. | F97: В. | G97: Ж | H97: 04.10.2006 | I97: 7 | J97: 7 | K97: 31 | L97: 20.66666667 | M97: 12.28,5 | N97: 748.5 | O97: 21.99599198 | R97: 42.66265865 | T97: 42.66265865 | U97: 100 | V97: Участник | W97: Патрин АлексейАндреевич | X97: Муниципальное бюджетное общеобразовательное учреждение "Гимназия №20"Гармония" Московского района г.Казани" | Y97: Московский район
A98: 97 | B98: Советский район | C98: МБОУ "Средняя общеобразовательная школа №167 с углубленным изучением отдельных предметов" Советского района г. Казани | D98: Юсупова | E98: А. | F98: А. | G98: Ж | H98: 04.11.2005 | I98: 8 | J98: 8 | K98: 22 | L98: =30*K98/45 -> 14.66666667 | M98: 9.51,1 | N98: 591.1 | O98: 27.85315513 | P98: 0 | Q98: =35*P98/20 -> 0 | R98: 42.5198218 | T98: 42.5198218 | U98: 100 | V98: Участник | W98: Чугунова ГалинаВладимировна | X98: Муниципальное бюджетное общеобразовательное учреждение "Средняя общеобразовательная школа №167 с углубленным изучением отдельных предметов" Советского района г. Казани | Y98: Советский район
A99: 98 | B99: Приволжский район | C99: МБОУ "Русско-татарская средняя общеобразовательная школа №129" | D99: Замалеева | E99: Л. | F99: И. | G99: Ж | H99: 24.02.2006 | I99: 8 | J99: 8 | K99: 19.6 | L99: 13.06666667 | M99: 10.54,9 | N99: 654.9 | O99: 25.13971599 | P99: 0 | Q99: =35*P99/20 -> 0 | R99: 38.20638265 | T99: 38.20638265 | U99: 100 | V99: Участник | W99: Хабибуллин РавкатЯкубович | X99: Муниципальное бюджетное общеобразовательное учреждение "Русско-татарская средняя общеобразовательная школа №129" | Y99: Приволжский район
A100: 99 | B100: Приволжский район | C100: МБОУ "Татарско-русская средняя общеобразовательная школа №10 с углубленным изучением отдельных предметов" | D100: Зарипова | E100: С. | F100: А. | G100: Ж | H100: 28.02.2006 | I100: 8 | J100: 8 | K100: 21 | L100: 14 | M100: 11.45,4 | N100: 705.4 | O100: 23.33994897 | P100: 0 | Q100: =35*P100/20 -> 0 | R100: 37.33994897 | T100: 37.33994897 | U100: 100 | V100: Участник | W100: Габдрахманов РафисРашитович | X100: Муниципальное бюджетное общеобразовательное учреждение "Татарско-русская средняя общеобразовательная школа №10 с углубленным изучением отдельных предметов" | Y100: Приволжский район
A101: 100 | B101: Кировский район | C101: МБОУ "Средняя общеобразовательная школа №32" Кировского района г. Казани" | D101: Кадаш | E101: К. | F101: А. | G101: Ж | H101: 20.08.2006 | I101: 8 | J101: 8 | K101: 10 | L101: 6.666666667 | M101: 10.32,8 | N101: 632.8 | O101: 26.01769912 | P101: 0 | Q101: =35*P101/20 -> 0 | R101: 32.68436578 | T101: 32.68436578 | U101: 100 | V101: Участник | W101: Хасанов РавильГалимзянович | X101: Муниципальное бюджетное общеобразовательное учреждение "Средняя общеобразовательная школа №32" Кировского района г. Казани" | Y101: Кировский район
A102: 101 | B102: Приволжский район | C102: МБОУ "Средняя общеобразовательная школа №73" | D102: Мошнина | E102: М. | F102: А. | G102: Ж | H102: 09.04.2007 | I102: 8 | J102: 8 | K102: 13 | L102: 8.666666667 | M102: 11.55,3 | N102: 715.3 | O102: 23.01691598 | R102: 31.68358265 | T102: 31.68358265 | U102: 100 | V102: Участник | W102: Кривоногов АртёмДмитриевич | X102: Муниципальное бюджетное общеобразовательное учреждение "Средняя общеобразовательная школа №73" | Y102: Приволжский район
A103: 102 | B103: Советский район | C103: МБОУ "Средняя общеобразовательная школа № 169" Советского района г.Казани" | D103: Сайфутдинова | E103: Г. | F103: Р. | G103: Ж | H103: 25.05.2006 | I103: 8 | J103: 8 | K103: 32 | L103: 21.33333333 | Q103: =35*P103/20 -> 0 | R103: 21.33333333 | T103: 21.33333333 | U103: 100 | V103: Участник | W103: Харитонова ЛюбовьНиколаевна | X103: Муниципальное бюджетное общеобразовательное учреждение "Средняя общеобразовательная школа № 169" Советского района г.Казани" | Y103: Советский район
A104: 103 | B104: Ново-Савиновский район | C104: МБОУ "Лицей №23" Ново-Савиновского района г.Казани" | D104: Низаметдинова | E104: А. | F104: Р. | G104: Ж | H104: 15.11.2006 | I104: 8 | J104: 8 | K104: 21.8 | L104: 14.53333333 | M104: 0 | Q104: =35*P104/20 -> 0 | R104: 14.53333333 | T104: 14.53333333 | U104: 100 | V104: Участник | W104: Хабриева ГелюзаРишатовна | X104: Муниципальное бюджетное общеобразовательное учреждение "Лицей №23" Ново-Савиновского района г.Казани" | Y104: Ново-Савиновский район
A105: 104 | B105: Кировский район | C105: МБОУ "Военно-патриотический образовательный центр - школа № 67" Кировского района города Казани | D105: Курбангалиева | E105: А. | F105: Б. | G105: Ж | H105: 04.08.2006 | I105: 8 | J105: 8 | K105: 13.2 | L105: 8.8 | Q105: =35*P105/20 -> 0 | R105: =L105+O105+Q105 -> 8.8 | T105: 8.8 | U105: 100 | V105: Участник | W105: Муртазин ИльгизарИсмагилович | X105: Муниципальное бюджетное общеобразовательное учреждение "Военно-патриотический образовательный центр - школа № 67" Кировского района города Казани | Y105: Кировский район

Sheet 7-8 мал
A1: № | B1: Район | C1: Школа | D1: Фамилия | E1: Имя | F1: Отчество | G1: пол | H1: д.р. | I1: класс | J1: класс участия | K1: теория | L1: Балл | M1: легкая атлетика | N1: пересчет | O1: балл | P1: гимнастика | Q1: балл | R1: Общий балл | S1: Апел.балл | T1: Итог балл | U1: Макс.балл | V1: Статус | W1: Учитель | X1: Наименование ОУ | Y1: Район
A2: 1 | B2: Ново-Савиновский район | C2: Муниципальное бюджетное общеобразовательное учреждение "Средняя общеобразовательная татарско-русская школа №113 с углубленным изучением отдельных предметов имени Героя России М.Р.Ахметшина" Ново-Савиновского района г. Казани" | D2: Валиуллин | E2: А. | F2: Р. | G2: М | H2: 2007-10-03 | I2: 7 | J2: 7 | K2: 42.6 | L2: =30*K2/45 -> 28.4 | M2: 7.39,0 | N2: 459 | O2: =IF(N2>0,35*423.6/N2,0) -> 32.30065359 | P2: 18.8 | Q2: =35*P2/20 -> 32.9 | R2: =Q2+O2+L2 -> 93.60065359 | T2: 93.60065359 | U2: 100 | V2: Победитель | W2: Рыжов АлександрВасильевич | X2: Муниципальное бюджетное общеобразовательное учреждение "Средняя общеобразовательная татарско-русская школа №113 с углубленным изучением отдельных предметов имени Героя России М.Р.Ахметшина" Ново-Савиновского района г. Казани" | Y2: Ново-Савиновский район
A3: 2 | B3: Ново-Савиновский район | C3: Государственное автономное общеобразовательное учреждение "Полилингвальный комплекс "Адымнар - путь к знаниям и согласию" г. Казани" | D3: Солодовников | E3: С. | F3: А. | G3: М | H3: 04.12.2005 | I3: 8 | J3: 8 | K3: 37 | L3: 24.66666667 | M3: 7.17,5 | N3: 437.5 | O3: 33.888 | P3: 17.8 | Q3: 31.15 | R3: 89.70466667 | T3: 89.70466667 | U3: 100 | V3: Победитель | W3: Штыкова ОльгаВладимировна | X3: Государственное автономное общеобразовательное учреждение "Полилингвальный комплекс "Адымнар - путь к знаниям и согласию" г. Казани" | Y3: Ново-Савиновский район
A4: 3 | B4: Ново-Савиновский район | C4: Инженерный лицей-интернат КНИТУ-КАИ | D4: Смоленков | E4: Е. | F4: В. | G4: М | H4: 05.10.2005 | I4: 8 | J4: 8 | K4: 38 | L4: 25.33333333 | M4: 7.47,5 | N4: 467.5 | O4: 31.71336898 | P4: 18.1 | Q4: 31.675 | R4: 88.72170232 | T4: 88.72170232 | U4: 100 | V4: Победитель | W4: Пестова АленаВалерьевна | X4: Инженерный лицей-интернат КНИТУ-КАИ | Y4: Ново-Савиновский район
A5: 4 | B5: Вахитовский район | C5: Государственное бюджетное общеобразовательное учреждение "Казанская кадетская школа-интернат имени Героя Советского Союза Б.К.Кузнецова" | D5: Бирюлев | E5: Д. | F5: Д. | G5: М | H5: 26.05.2006 | I5: 8 | J5: 8 | K5: 41 | L5: 27.33333333 | M5: 8.12,4 | N5: 502.4 | O5: 29.51035032 | P5: 18.2 | Q5: 31.85 | R5: 88.69368365 | T5: 88.69368365 | U5: 100 | V5: Победитель | W5: Козлов ЮрийИванович | X5: Государственное бюджетное общеобразовательное учреждение "Казанская кадетская школа-интернат имени Героя Советского Союза Б.К.Кузнецова" | Y5: Вахитовский район
A6: 5 | B6: Приволжский район | C6: Муниципальное бюджетное общеобразовательное учреждение "Лицей №35 - образовательный центр "Галактика" Приволжского района города Казани" | D6: Буров | E6: М. | F6: Н. | G6: М | H6: 10.11.2005 | I6: 8 | J6: 8 | K6: 34.8 | L6: 23.2 | M6: 7.40,9 | N6: 460.9 | O6: 32.16749837 | P6: 18.6 | Q6: 32.55 | R6: 87.91749837 | T6: 87.91749837 | U6: 100 | V6: Призер | W6: Хузиахметова ИринаИльинична | X6: Муниципальное бюджетное общеобразовательное учреждение "Лицей №35 - образовательный центр "Галактика" Приволжского района города Казани" | Y6: Приволжский район
A7: 6 | B7: Приволжский район | C7: Муниципальное бюджетное общеобразовательное учреждение "Лицей №83 - Центр образования" | D7: Ключников | E7: Е. | F7: С. | G7: М | H7: 17.05.2006 | I7: 8 | J7: 8 | K7: 38 | L7: 25.33333333 | M7: 8.40,0 | N7: 520 | O7: 28.51153846 | P7: 19.4 | Q7: 33.95 | R7: 87.79487179 | T7: 87.79487179 | U7: 100 | V7: Призер | W7: Терентьев ВалерийКонстантинович | X7: Муниципальное бюджетное общеобразовательное учреждение "Лицей №83 - Центр образования" | Y7: Приволжский район
A8: 7 | B8: Вахитовский район | C8: Муниципальное бюджетное общеобразовательное учреждение "Средняя общеобразовательная школа №98 (татарско-русская)" | D8: Кротов | E8: Г. | F8: А. | G8: М | H8: 27.02.2006 | I8: 8 | J8: 8 | K8: 36 | L8: 24 | M8: 7.46,1 | N8: 466.1 | O8: 31.80862476 | P8: 18.1 | Q8: 31.675 | R8: 87.48362476 | T8: 87.48362476 | U8: 100 | V8: Призер | W8: Сагдатуллин ГаббасГабдельбариевич | X8: Муниципальное бюджетное общеобразовательное учреждение "Средняя общеобразовательная школа №98 (татарско-русская)" | Y8: Вахитовский район
A9: 8 | B9: Приволжский район | C9: Муниципальное автономное общеобразовательное учреждение "Гимназия №19" | D9: Зайдуллин | E9: А. | F9: А. | G9: М | H9: 14.11.2006 | I9: 7 | J9: 7 | K9: 41 | L9: 27.33333333 | M9: 9.16,9 | N9: 556.9 | O9: 26.62237386 | P9: 19.1 | Q9: 33.425 | R9: 87.38070719 | T9: 87.38070719 | U9: 100 | V9: Призер | W9: Зиятдинов ВадимРинатович | X9: Муниципальное автономное общеобразовательное учреждение "Гимназия №19" | Y9: Приволжский район
A10: 9 | B10: Советский район | C10: Муниципальное бюджетное общеобразовательное учреждение "Лицей № 159" Советского района г.Казани" | D10: Салахов | E10: К. | F10: И. | G10: М | H10: 24.07.2006 | I10: 8 | J10: 8 | K10: 35 | L10: 23.33333333 | M10: 8.09,9 | N10: 489.9 | O10: 30.26331904 | P10: 18.5 | Q10: 32.375 | R10: 85.97165238 | T10: 85.97165238 | U10: 100 | V10: Призер | W10: Барлев ВикторАлександрович | X10: Муниципальное бюджетное общеобразовательное учреждение "Лицей № 159" Советского района г.Казани" | Y10: Советский район
A11: 10 | B11: Ново-Савиновский район | C11: Муниципальное бюджетное общеобразовательное учреждение "Гимназия № 13 с татарским языком обучения" Ново-Савиновского района г. Казани | D11: Волков | E11: А. | F11: О. | G11: М | H11: 05.01.2006 | I11: 8 | J11: 8 | K11: 36 | L11: 24 | M11: 8.11,8 | N11: 491.8 | O11: 30.14640098 | P11: 17.5 | Q11: 30.625 | R11: 84.77140098 | T11: 84.77140098 | U11: 100 | V11: Призер | W11: Баранова АльбинаАльбертовна | X11: Муниципальное бюджетное общеобразовательное учреждение "Гимназия № 13 с татарским языком обучения" Ново-Савиновского района г. Казани | Y11: Ново-Савиновский район
A12: 11 | B12: Советский район | C12: Муниципальное бюджетное общеобразовательное учреждение "Средняя общеобразовательная школа № 84 с углубленным изучением иностранных языков" Советского района г. Казани" | D12: Ярмиев | E12: Э. | F12: Ф. | G12: М | H12: 29.07.2006 | I12: 8 | J12: 8 | K12: 34 | L12: 22.66666667 | M12: 7.21,0 | N12: 441 | O12: 33.61904762 | P12: 15.9 | Q12: 27.825 | R12: 84.11071429 | T12: 84.11071429 | U12: 100 | V12: Призер | W12: Яшина ТамараНиколаевна | X12: Муниципальное бюджетное общеобразовательное учреждение "Средняя общеобразовательная школа № 84 с углубленным изучением иностранных языков" Советского района г. Казани" | Y12: Советский район
A13: 12 | B13: Московский район | C13: Муниципальное бюджетное общеобразовательное учреждение "Средняя общеобразовательная школа № 99" Московского района г. Казани" | D13: Лаухин | E13: Д. | F13: Д. | G13: М | H13: 23.05.2007 | I13: 7 | J13: 7 | K13: 33 | L13: 22 | M13: 7.38,7 | N13: 458.7 | O13: 32.32177894 | P13: 16.7 | Q13: 29.225 | R13: 83.54677894 | T13: 83.54677894 | U13: 100 | V13: Призер | W13: Горулёва СветланаАлександровна | X13: Муниципальное бюджетное общеобразовательное учреждение "Средняя общеобразовательная школа № 99" Московского района г. Казани" | Y13: Московский район
A14: 13 | B14: Ново-Савиновский район | C14: Муниципальное бюджетное общеобразовательное учреждение "Средняя общеобразовательная татарско-русская школа №113 с углубленным изучением отдельных предметов имени Героя России М.Р.Ахметшина" Ново-Савиновского района г. Казани" | D14: Кузиков | E14: М. | F14: Д. | G14: М | H14: 30.12.2006 | I14: 7 | J14: 7 | K14: 33.6 | L14: 22.4 | M14: 8.26,0 | N14: 506 | O14: 29.30039526 | P14: 18 | Q14: 31.5 | R14: 83.20039526 | T14: 83.20039526 | U14: 100 | V14: Призер | W14: Рыжов АлександрВасильевич | X14: Муниципальное бюджетное общеобразовательное учреждение "Средняя общеобразовательная татарско-русская школа №113 с углубленным изучением отдельных предметов имени Героя России М.Р.Ахметшина" Ново-Савиновского района г. Казани" | Y14: Ново-Савиновский район
A15: 14 | B15: Приволжский район | C15: Муниципальное автономное общеобразовательное учреждение "Гимназия №19" | D15: Генч | E15: М. | F15: Л. | G15: М | H15: 02.03.2007 | I15: 7 | J15: 7 | K15: 41 | L15: 27.33333333 | M15: 9.49,9 | N15: 589.9 | O15: 25.1330734 | P15: 17.5 | Q15: 30.625 | R15: 83.09140674 | T15: 83.09140674 | U15: 100 | V15: Призер | W15: Зиятдинов ВадимРинатович | X15: Муниципальное автономное общеобразовательное учреждение "Гимназия №19" | Y15: Приволжский район
A16: 15 | B16: Вахитовский район | C16: Муниципальное автономное общеобразовательное учреждение "Средняя общеобразовательная школа №39 с углубленным изучением английского языка" | D16: Хисматуллин | E16: Э. | F16: Р. | G16: М | H16: 01.04.2007 | I16: 7 | J16: 7 | K16: 38 | L16: 25.33333333 | M16: 8.55,0 | N16: 535 | O16: 27.71214953 | P16: 16.8 | Q16: 29.4 | R16: 82.44548287 | T16: 82.44548287 | U16: 100 | V16: Призер | W16: Хусаинов ДаниярДинисламович | X16: Муниципальное автономное общеобразовательное учреждение "Средняя общеобразовательная школа №39 с углубленным изучением английского языка" | Y16: Вахитовский район
A17: 16 | B17: Советский район | C17: Муниципальное бюджетное общеобразовательное учреждение «Гимназия № 183» Советского района г.Казани | D17: Идиятуллин | E17: Р. | F17: Э. | G17: М | H17: 15.09.2006 | I17: 8 | J17: 8 | K17: 24.8 | L17: 16.53333333 | M17: 7.26,4 | N17: 446.4 | O17: 33.21236559 | P17: 18.5 | Q17: 32.375 | R17: 82.12069892 | T17: 82.12069892 | U17: 100 | V17: Призер | W17: Шамгунова ВикторияАлексеевна | X17: Муниципальное бюджетное общеобразовательное учреждение «Гимназия № 183» Советского района г.Казани | Y17: Советский район
A18: 17 | B18: Кировский район | C18: Муниципальное бюджетное общеобразовательное учреждение "Русско-татарская средняя общеобразовательная школа №81 с углубленным изучением отдельных предметов имени В.А.Григорьева" | D18: Греков | E18: И. | F18: А. | G18: М | H18: 20.04.2007 | I18: 7 | J18: 7 | K18: 33.4 | L18: 22.26666667 | M18: 8.07,8 | N18: 487.8 | O18: 30.39360394 | P18: 16.6 | Q18: 29.05 | R18: 81.7102706 | T18: 81.7102706 | U18: 100 | V18: Призер | W18: Черепанова ВалентинаВасильевна | X18: Муниципальное бюджетное общеобразовательное учреждение "Русско-татарская средняя общеобразовательная школа №81 с углубленным изучением отдельных предметов имени В.А.Григорьева" | Y18: Кировский район
A19: 18 | B19: Вахитовский район | C19: Государственное бюджетное общеобразовательное учреждение "Казанская кадетская школа-интернат имени Героя Советского Союза Б.К.Кузнецова" | D19: Никулин | E19: Ф. | F19: С. | G19: М | H19: 29.05.2007 | I19: 7 | J19: 7 | K19: 28.6 | L19: 19.06666667 | M19: 7.46,1 | N19: 466.1 | O19: 31.80862476 | P19: 17.6 | Q19: 30.8 | R19: 81.67529143 | T19: 81.67529143 | U19: 100 | V19: Призер | W19: Шамаев ДмитрийГеннадьевич | X19: Государственное бюджетное общеобразовательное учреждение "Казанская кадетская школа-интернат имени Героя Советского Союза Б.К.Кузнецова" | Y19: Вахитовский район
A20: 19 | B20: Московский район | C20: Муниципальное бюджетное общеобразовательное учреждение "Гимназия № 75" Московского района г. Казани" | D20: Ханов | E20: Г. | F20: Е. | G20: М | H20: 28.10.2007 | I20: 7 | J20: 7 | K20: 30 | L20: 20 | M20: 8.40,9 | N20: 520.9 | O20: 28.46227683 | P20: 18.8 | Q20: 32.9 | R20: 81.36227683 | T20: 81.36227683 | U20: 100 | V20: Призер | W20: Толометова ЭльвираФлитовна | X20: Муниципальное бюджетное общеобразовательное учреждение "Гимназия № 75" Московского района г. Казани" | Y20: Московский район
A21: 20 | B21: Ново-Савиновский район | C21: Муниципальное бюджетное общеобразовательное учреждение "Средняя общеобразовательная школа №132 с углубленным изучением иностранных языков" Ново-Савиновского района г. Казани" | D21: Шогин | E21: Д. | F21: Р. | G21: М | H21: 22.09.2006 | I21: 8 | J21: 8 | K21: 28 | L21: 18.66666667 | M21: 7.30,4 | N21: 450.4 | O21: 32.91740675 | P21: 17 | Q21: 29.75 | R21: 81.33407342 | T21: 81.33407342 | U21: 100 | V21: Призер | W21: Корюкина ОльгаВикторовна | X21: Муниципальное бюджетное общеобразовательное учреждение "Средняя общеобразовательная школа №132 с углубленным изучением иностранных языков" Ново-Савиновского района г. Казани" | Y21: Ново-Савиновский район
A22: 21 | B22: Кировский район | C22: Муниципальное бюджетное общеобразовательное учреждение "Гимназия №152" Кировского района г.Казани" | D22: Валеев | E22: М. | F22: И. | G22: М | H22: 13.12.2005 | I22: 8 | J22: 8 | K22: 34.2 | L22: 22.8 | M22: 9.24,8 | N22: 564.8 | O22: 26.25 | P22: 18.3 | Q22: 32.025 | R22: 81.075 | T22: 81.075 | U22: 100 | V22: Призер | W22: Цветова ГалинаФедоровна | X22: Муниципальное бюджетное общеобразовательное учреждение "Гимназия №152" Кировского района г.Казани" | Y22: Кировский район
A23: 22 | B23: Вахитовский район | C23: Муниципальное бюджетное общеобразовательное учреждение "Средняя общеобразовательная школа №12" | D23: Алякин | E23: С. | F23: Г. | G23: М | H23: 11.03.2007 | I23: 7 | J23: 7 | K23: 28 | L23: 18.66666667 | M23: 8.18,2 | N23: 498.2 | O23: 29.75913288 | P23: 18.6 | Q23: 32.55 | R23: 80.97579955 | T23: 80.97579955 | U23: 100 | V23: Призер | W23: Аверьянов ОлегАлександрович | X23: Муниципальное бюджетное общеобразовательное учреждение "Средняя общеобразовательная школа №12" | Y23: Вахитовский район
A24: 23 | B24: Приволжский район | C24: Муниципальное бюджетное общеобразовательное учреждение "Гимназия №6" | D24: Нагимов | E24: А. | F24: А. | G24: М | H24: 04.01.2006 | I24: 8 | J24: 8 | K24: 36.2 | L24: 24.13333333 | M24: 7.52,7 | N24: 472.7 | O24: 31.3645018 | P24: 14.3 | Q24: 25.025 | R24: 80.52283513 | T24: 80.52283513 | U24: 100 | V24: Призер | W24: Халимов ИльнурФиргатович | X24: Муниципальное бюджетное общеобразовательное учреждение "Гимназия №6" | Y24: Приволжский район
A25: 24 | B25: Приволжский район | C25: Муниципальное бюджетное общеобразовательное учреждение "Татаро-английская гимназия №16" | D25: Хазиев | E25: К. | F25: Р. | G25: М | H25: 17.05.2006 | I25: 8 | J25: 8 | K25: 28 | L25: 18.66666667 | M25: 8.25,0 | N25: 505 | O25: 29.35841584 | P25: 18.3 | Q25: 32.025 | R25: 80.05008251 | T25: 80.05008251 | U25: 100 | V25: Призер | W25: Лотфуллина РозаРафаиловна | X25: Муниципальное бюджетное общеобразовательное учреждение "Татаро-английская гимназия №16" | Y25: Приволжский район
A26: 25 | B26: Московский район | C26: Муниципальное бюджетное общеобразовательное учреждение "Гимназия №20"Гармония" Московского района г.Казани" | D26: Миннахметов | E26: Т. | F26: А. | G26: М | H26: 07.02.2007 | I26: 7 | J26: 7 | K26: 31 | L26: 20.66666667 | M26: 7.03,6 | N26: 423.6 | O26: 35 | P26: 13.8 | Q26: 24.15 | R26: 79.81666667 | T26: 79.81666667 | U26: 100 | V26: Призер | W26: Патрин АлексейАндреевич | X26: Муниципальное бюджетное общеобразовательное учреждение "Гимназия №20"Гармония" Московского района г.Казани" | Y26: Московский район
A27: 26 | B27: Вахитовский район | C27: Государственное бюджетное общеобразовательное учреждение "Казанская кадетская школа-интернат имени Героя Советского Союза Б.К.Кузнецова" | D27: Галиев | E27: Д. | G27: м | H27: 2006-01-26 | J27: 8 | K27: 30 | L27: 20 | M27: 8.10,2 | N27: 490.2 | O27: 30.24479804 | P27: 16.8 | Q27: 29.4 | R27: 79.64479804 | T27: 79.64479804 | U27: 100 | V27: Участник | W27: Козлов Юрий Иванович | X27: Государственное бюджетное общеобразовательное учреждение "Казанская кадетская школа-интернат имени Героя Советского Союза Б.К.Кузнецова" | Y27: Вахитовский район
A28: 27 | B28: Ново-Савиновский район | C28: Муниципальное бюджетное общеобразовательное учреждение "Средняя общеобразовательная школа №9 с углубленным изучением английского языка" Ново-Савиновского района г. Казани" | D28: Зарипов | E28: К. | F28: З. | G28: М | H28: 03.02.2006 | I28: 8 | J28: 8 | K28: 22.6 | L28: 15.06666667 | M28: 7.48,2 | N28: 468.2 | O28: 31.66595472 | P28: 18.7 | Q28: 32.725 | R28: 79.45762139 | T28: 79.45762139 | U28: 100 | V28: Участник | W28: Зарипов ЗуфарЗиннурович | X28: Муниципальное бюджетное общеобразовательное учреждение "Средняя общеобразовательная школа №9 с углубленным изучением английского языка" Ново-Савиновского района г. Казани" | Y28: Ново-Савиновский район
A29: 28 | B29: Советский район | C29: Муниципальное бюджетное общеобразовательное учреждение "Гимназия № 8 -Центр образования" Советского района г. Казани" | D29: Калинин | E29: К. | F29: А. | G29: М | H29: 02.08.2007 | I29: 7 | J29: 7 | K29: 26 | L29: 17.33333333 | M29: 7.34,5 | N29: 454.5 | O29: 32.62046205 | P29: 16.8 | Q29: 29.4 | R29: 79.35379538 | T29: 79.35379538 | U29: 100 | V29: Участник | W29: Корнеева НатальяАлексеевна | X29: Муниципальное бюджетное общеобразовательное учреждение "Гимназия № 8 -Центр образования" Советского района г. Казани" | Y29: Советский район
A30: 29 | B30: Приволжский район | C30: Муниципальное бюджетное общеобразовательное учреждение "Гимназия №21" | D30: Максимов | E30: В. | F30: В. | G30: М | H30: 07.01.2006 | I30: 8 | J30: 8 | K30: 18 | L30: 12 | M30: 7.39,1 | N30: 459.1 | O30: 32.29361795 | P30: 19.6 | Q30: 34.3 | R30: 78.59361795 | T30: 78.59361795 | U30: 100 | V30: Участник | W30: Хафизов ИльшатИсхакович | X30: Муниципальное бюджетное общеобразовательное учреждение "Гимназия №21" | Y30: Приволжский район
A31: 30 | B31: Авиастроительный район | C31: Муниципальное бюджетное общеобразовательное учреждение "Средняя общеобразовательная школа с углубленным изучением отдельных предметов №62" Авиастроительного района г.Казани" | D31: Феоктистов | E31: А. | F31: Ю. | G31: М | H31: 19.06.2006 | I31: 8 | J31: 8 | K31: 24.6 | L31: 16.4 | M31: 8.28,4 | N31: 508.4 | O31: 29.1620771 | P31: 18 | Q31: 31.5 | R31: 77.0620771 | T31: 77.0620771 | U31: 100 | V31: Участник | W31: Косова ЛюбовьНиколаевна | X31: Муниципальное бюджетное общеобразовательное учреждение "Средняя общеобразовательная школа с углубленным изучением отдельных предметов №62" Авиастроительного района г.Казани" | Y31: Авиастроительный район
A32: 31 | B32: Ново-Савиновский район | C32: Муниципальное автономное общеобразовательное учреждение "Лицей №146 "Ресурс" Ново-Савиновского района г. Казани" | D32: Иващенко | E32: Д. | F32: А. | G32: М | H32: 30.10.2007 | I32: 6 | J32: 7 | K32: 31 | L32: 20.66666667 | M32: 8.46,7 | N32: 526.7 | O32: 28.14885134 | P32: 16 | Q32: 28 | R32: 76.81551801 | T32: 76.81551801 | U32: 100 | V32: Участник | W32: Белянин АлексейАнатольевич | X32: Муниципальное автономное общеобразовательное учреждение "Лицей №146 "Ресурс" Ново-Савиновского района г. Казани" | Y32: Ново-Савиновский район
A33: 32 | B33: Приволжский район | C33: Общеобразовательная школа-интернат "IT- лицей федерального государственного автономного образовательного учреждения высшего образования "Казанский (Приволжский) федеральный университет" | D33: Юнусов | E33: Б. | F33: Э. | G33: М | H33: 05.03.2006 | I33: 8 | J33: 8 | K33: 36 | L33: 24 | M33: 9.52,9 | N33: 592.9 | O33: 25.00590319 | P33: 15.8 | Q33: 27.65 | R33: 76.65590319 | T33: 76.65590319 | U33: 100 | V33: Участник | W33: Игнатьев СергейАлександрович | X33: Общеобразовательная школа-интернат "IT- лицей федерального государственного автономного образовательного учреждения высшего образования "Казанский (Приволжский) федеральный университет" | Y33: Приволжский район
A34: 33 | B34: Авиастроительный район | C34: Муниципальное бюджетное общеобразовательное учреждение "Средняя общеобразовательная школа № 77" Авиастроительного района г.Казани" | D34: Дудукин | E34: А. | F34: С. | G34: М | H34: 01.07.2006 | I34: 8 | J34: 8 | K34: 30 | L34: =30*K34/45 -> 20 | M34: 8.33,7 | N34: 513.7 | O34: =IF(N34>0,35*423.6/N34,0) -> 28.86120304 | P34: 15.7 | Q34: =35*P34/20 -> 27.475 | R34: =Q34+O34+L34 -> 76.33620304 | T34: 76.33620304 | U34: 100 | V34: Участник | W34: Королев АндрейАнатольевич | X34: Муниципальное бюджетное общеобразовательное учреждение "Средняя общеобразовательная школа № 77" Авиастроительного района г.Казани" | Y34: Авиастроительный район
A35: 34 | B35: Кировский район | C35: Муниципальное бюджетное общеобразовательное учреждение "Татарская гимназия №15" Кировского района г.Казани | D35: Давлетшин | E35: А. | F35: А. | G35: М | H35: 31.05.2006 | I35: 8 | J35: 8 | K35: 28 | L35: 18.66666667 | M35: 8.00,4 | N35: 480.4 | O35: 30.86178185 | P35: 15.2 | Q35: 26.6 | R35: 76.12844852 | T35: 76.12844852 | U35: 100 | V35: Участник | W35: Фатыхов РусланРустамович | X35: Муниципальное бюджетное общеобразовательное учреждение "Татарская гимназия №15" Кировского района г.Казани | Y35: Кировский район
A36: 35 | B36: Советский район | C36: МБОУ"Многопрофильный лицей №185" | D36: Шаихов | E36: А. | F36: Р. | G36: М | H36: 03.07.2009 | I36: 6 | J36: 7 | K36: 30 | L36: 20 | M36: 10.24,4 | N36: 624.4 | O36: 23.74439462 | P36: 18.3 | Q36: 32.025 | R36: 75.76939462 | T36: 75.76939462 | U36: 100 | V36: Участник | W36: Апачева РезедаСаитбатталовна | X36: МБОУ"Многопрофильный лицей №185" | Y36: Советский район
A37: 36 | B37: Кировский район | C37: Муниципальное бюджетное общеобразовательное учреждение "Средняя общеобразовательная школа №70 с углубленным изучениемотдельных предметов" Кировского района г. Казани" | D37: Степанов | E37: Н. | F37: М. | G37: М | H37: 27.03.2006 | I37: 8 | J37: 8 | K37: 20 | L37: 13.33333333 | M37: 7.48,6 | N37: 468.6 | O37: 31.63892446 | P37: 17.4 | Q37: 30.45 | R37: 75.42225779 | T37: 75.42225779 | U37: 100 | V37: Участник | W37: Семенова АринаВладимировна | X37: Муниципальное бюджетное общеобразовательное учреждение "Средняя общеобразовательная школа №70 с углубленным изучениемотдельных предметов" Кировского района г. Казани" | Y37: Кировский район
A38: 37 | B38: Ново-Савиновский район | C38: Муниципальное бюджетное общеобразовательное учреждение "Средняя общеобразовательная школа №170 с углубленным изучением отдельных предметов" Ново-Савиновского района г. Казани" | D38: Садыков | E38: Т. | F38: А. | G38: М | H38: 13.11.2006 | I38: 7 | J38: 7 | K38: 21.2 | L38: 14.13333333 | M38: 9.07,6 | N38: 547.6 | O38: 27.07450694 | P38: 19 | Q38: 33.25 | R38: 74.45784027 | T38: 74.45784027 | U38: 100 | V38: Участник | W38: Сусленкова ЮлияВладимировна | X38: Муниципальное бюджетное общеобразовательное учреждение "Средняя общеобразовательная школа №170 с углубленным изучением отдельных предметов" Ново-Савиновского района г. Казани" | Y38: Ново-Савиновский район
A39: 38 | B39: Ново-Савиновский район | C39: Муниципальное бюджетное общеобразовательное учреждение "Гимназия №7 имени Героя России А.В.Козина" Ново-Савиновского района г. Казани" | D39: Акмаев | E39: Е. | F39: А. | G39: М | H39: 21.04.2006 | I39: 8 | J39: 8 | K39: 26 | L39: 17.33333333 | M39: 7.48,5 | N39: 468.5 | O39: 31.64567769 | P39: 14.4 | Q39: 25.2 | R39: 74.17901103 | T39: 74.17901103 | U39: 100 | V39: Участник | W39: Калашникова КсенияДмитриевна | X39: Муниципальное бюджетное общеобразовательное учреждение "Гимназия №7 имени Героя России А.В.Козина" Ново-Савиновского района г. Казани" | Y39: Ново-Савиновский район
A40: 39 | B40: Авиастроительный район | C40: Муниципальное бюджетное общеобразовательное учреждение "Средняя общеобразовательная школа №60" Авиастроительного района г.Казани" | D40: Купцов | E40: Р. | F40: Д. | G40: М | H40: 25.08.2007 | I40: 7 | J40: 7 | K40: 18.2 | L40: 12.13333333 | M40: 9.05,5 | N40: 545.5 | O40: 27.17873511 | P40: 19.7 | Q40: 34.475 | R40: 73.78706844 | T40: 73.78706844 | U40: 100 | V40: Участник | W40: Семагина СветланаВладимировна | X40: Муниципальное бюджетное общеобразовательное учреждение "Средняя общеобразовательная школа №60" Авиастроительного района г.Казани" | Y40: Авиастроительный район
A41: 40 | B41: Вахитовский район | C41: Государственное бюджетное общеобразовательное учреждение "Казанская кадетская школа-интернат имени Героя Советского Союза Б.К.Кузнецова" | D41: Якубов | E41: Т. | F41: Р. | G41: М | H41: 28.10.2007 | I41: 7 | J41: 7 | K41: 21 | L41: 14 | M41: 8.06,7 | N41: 486.7 | O41: 30.4622971 | P41: 16.3 | Q41: 28.525 | R41: 72.9872971 | T41: 72.9872971 | U41: 100 | V41: Участник | W41: Камалиев ТалгатФаргатович | X41: Государственное бюджетное общеобразовательное учреждение "Казанская кадетская школа-интернат имени Героя Советского Союза Б.К.Кузнецова" | Y41: Вахитовский район
A42: 41 | B42: Приволжский район | C42: Муниципальное бюджетное общеобразовательное учреждение «Многопрофильный лицей №186 - "Перспектива" Приволжского района г. Казани | D42: Шилов | E42: Д. | F42: А. | G42: М | H42: 22.06.2007 | I42: 7 | J42: 7 | K42: 17.2 | L42: 11.46666667 | M42: 9.05,0 | N42: 545 | O42: 27.20366972 | P42: 19.5 | Q42: 34.125 | R42: 72.79533639 | T42: 72.79533639 | U42: 100 | V42: Участник | W42: Сабирзянов РустемНагимуллович | X42: Муниципальное бюджетное общеобразовательное учреждение «Многопрофильный лицей №186 - "Перспектива" Приволжского района г. Казани | Y42: Приволжский район
A43: 42 | B43: Приволжский район | C43: Муниципальное автономное общеобразовательное учреждение "Гимназия № 139" | D43: Земдиханов | E43: Э. | F43: Э. | G43: М | H43: 04.10.2007 | I43: 7 | J43: 7 | K43: 27 | L43: 18 | M43: 9.12,4 | N43: 552.4 | O43: 26.83924692 | P43: 15.8 | Q43: 27.65 | R43: 72.48924692 | T43: 72.48924692 | U43: 100 | V43: Участник | W43: Галкин ВикторЮрьевич | X43: Муниципальное автономное общеобразовательное учреждение "Гимназия № 139" | Y43: Приволжский район
A44: 43 | B44: Советский район | C44: Муниципальное бюджетное общеобразовательное учреждение "Средняя общеобразовательная школа № 72 с углубленным изучением немецкого языка" Советского района г.Казани | D44: Яковлев | E44: Н. | F44: А. | G44: М | H44: 19.07.2007 | I44: 7 | J44: 7 | K44: 18.6 | L44: 12.4 | M44: 8.13,1 | N44: 493.1 | O44: 30.06692354 | P44: 17 | Q44: 29.75 | R44: 72.21692354 | T44: 72.21692354 | U44: 100 | V44: Участник | W44: Яковлева МаринаАлександровна | X44: Муниципальное бюджетное общеобразовательное учреждение "Средняя общеобразовательная школа № 72 с углубленным изучением немецкого языка" Советского района г.Казани | Y44: Советский район
A45: 44 | B45: Кировский район | C45: Муниципальное бюджетное общеобразовательное учреждение "Средняя общеобразовательная школа №153" Кировского района г. Казани | D45: Шафигуллин | E45: Т. | F45: А. | G45: М | H45: 21.01.2008 | I45: 6 | J45: 7 | K45: 19.6 | L45: 13.06666667 | M45: 8.02,4 | N45: 482.4 | O45: 30.73383085 | P45: 16.2 | Q45: 28.35 | R45: 72.15049751 | T45: 72.15049751 | U45: 100 | V45: Участник | W45: Мандрыка ЛарисаАнатольевна | X45: Муниципальное бюджетное общеобразовательное учреждение "Средняя общеобразовательная школа №153" Кировского района г. Казани | Y45: Кировский район
A46: 45 | B46: Советский район | C46: Муниципальное бюджетное общеобразовательное учреждение "Средняя общеобразовательная школа № 22 с углубленным изучением отдельных предметов - Центр образования" Советского района г.Казани" | D46: Самигуллин | E46: М. | F46: Х. | G46: М | H46: 29.09.2007 | I46: 7 | J46: 7 | K46: 21.8 | L46: 14.53333333 | M46: 8.28,0 | N46: 508 | O46: 29.18503937 | P46: 16 | Q46: 28 | R46: 71.7183727 | T46: 71.7183727 | U46: 100 | V46: Участник | W46: Жиряева РахиляРашитовна | X46: Муниципальное бюджетное общеобразовательное учреждение "Средняя общеобразовательная школа № 22 с углубленным изучением отдельных предметов - Центр образования" Советского района г.Казани" | Y46: Советский район
A47: 46 | B47: Ново-Савиновский район | C47: Муниципальное бюджетное общеобразовательное учреждение "Средняя общеобразовательная школа №132 с углубленным изучением иностранных языков" Ново-Савиновского района г. Казани" | D47: Килов | E47: Д. | F47: О. | G47: М | H47: 23.09.2006 | I47: 8 | J47: 8 | K47: 29.8 | L47: 19.86666667 | M47: 10.36,5 | N47: 636.5 | O47: 23.29300864 | P47: 15.9 | Q47: 27.825 | R47: 70.98467531 | T47: 70.98467531 | U47: 100 | V47: Участник | W47: Корюкина ОльгаВикторовна | X47: Муниципальное бюджетное общеобразовательное учреждение "Средняя общеобразовательная школа №132 с углубленным изучением иностранных языков" Ново-Савиновского района г. Казани" | Y47: Ново-Савиновский район
A48: 47 | B48: Вахитовский район | C48: Муниципальное бюджетное общеобразовательное учреждение "Гимназия №96" | D48: Хван | E48: А. | F48: Д. | G48: М | H48: 07.05.2006 | I48: 8 | J48: 8 | K48: 15.6 | L48: 10.4 | M48: 8.46,2 | N48: 526.2 | O48: 28.17559863 | P48: 17.1 | Q48: 29.925 | R48: 68.50059863 | T48: 68.50059863 | U48: 100 | V48: Участник | W48: Файсханов РузильРинатович | X48: Муниципальное бюджетное общеобразовательное учреждение "Гимназия №96" | Y48: Вахитовский район
A49: 48 | B49: Московский район | C49: Муниципальное бюджетное общеобразовательное учреждение "Гимназия № 9" Московского района г. Казани" | D49: Саламатов | E49: Т. | F49: А. | G49: М | H49: 07.12.2006 | I49: 7 | J49: 7 | K49: 14.8 | L49: 9.866666667 | M49: 9.24,2 | N49: 564.2 | O49: 26.27791563 | P49: 18.4 | Q49: 32.2 | R49: 68.3445823 | T49: 68.3445823 | U49: 100 | V49: Участник | W49: Зиновьева ЕвгенияВладимировна | X49: Муниципальное бюджетное общеобразовательное учреждение "Гимназия № 9" Московского района г. Казани" | Y49: Московский район
A50: 49 | B50: Ново-Савиновский район | C50: Муниципальное бюджетное общеобразовательное учреждение "Средняя общеобразовательная школа №89 с углубленным изучением отдельных предметов" Ново-Савиновского района г. Казани" | D50: Щеголев | E50: Л. | F50: А. | G50: М | H50: 01.05.2007 | I50: 7 | J50: 7 | K50: 13.8 | L50: 9.2 | M50: 8.21,5 | N50: 501.5 | O50: 29.56331007 | P50: 16.6 | Q50: 29.05 | R50: 67.81331007 | T50: 67.81331007 | U50: 100 | V50: Участник | W50: Гатина ОльгаЮрьевна | X50: Муниципальное бюджетное общеобразовательное учреждение "Средняя общеобразовательная школа №89 с углубленным изучением отдельных предметов" Ново-Савиновского района г. Казани" | Y50: Ново-Савиновский район
A51: 50 | B51: Авиастроительный район | C51: Муниципальное бюджетное общеобразовательное учреждение "Средняя общеобразовательная школа № 54 с углубленным изучением отдельных предметов" Авиастроительного района г.Казани" | D51: Пикин | E51: О. | F51: Е. | G51: М | H51: 27.12.2005 | I51: 8 | J51: 8 | K51: 16.2 | L51: 10.8 | M51: 7.44,7 | N51: 464.7 | O51: 31.90445449 | P51: 14.3 | Q51: 25.025 | R51: 67.72945449 | T51: 67.72945449 | U51: 100 | V51: Участник | W51: Шинкарева ЛидияВикторовна | X51: Муниципальное бюджетное общеобразовательное учреждение "Средняя общеобразовательная школа № 54 с углубленным изучением отдельных предметов" Авиастроительного района г.Казани" | Y51: Авиастроительный район
A52: 51 | B52: Московский район | C52: Муниципальное бюджетное общеобразовательное учреждение "Гимназия № 122 имени Ж.А.Зайцевой"Московского района г. Казани" | D52: Бакеев | E52: Д. | F52: Д. | G52: М | H52: 19.09.2006 | I52: 8 | J52: 8 | K52: 10.8 | L52: 7.2 | M52: 7.28,6 | N52: 448.6 | O52: 33.04948729 | P52: 15.7 | Q52: 27.475 | R52: 67.72448729 | T52: 67.72448729 | U52: 100 | V52: Участник | W52: Вальтонов ВикторНиколаевич | X52: Муниципальное бюджетное общеобразовательное учреждение "Гимназия № 122 имени Ж.А.Зайцевой"Московского района г. Казани" | Y52: Московский район
A53: 52 | B53: Ново-Савиновский район | C53: Муниципальное бюджетное общеобразовательное учреждение "Средняя общеобразовательная школа №85 с углубленным изучением отдельных предметов" Ново-Савиновского района г.Казани" | D53: Бедов | E53: И. | F53: В. | G53: М | H53: 09.02.2006 | I53: 8 | J53: 8 | K53: 12.8 | L53: 8.533333333 | M53: 8.20,1 | N53: 500.1 | O53: 29.64607079 | P53: 16.5 | Q53: 28.875 | R53: 67.05440412 | T53: 67.05440412 | U53: 100 | V53: Участник | W53: Хабибрахманов БулатГабдрахманович | X53: Муниципальное бюджетное общеобразовательное учреждение "Средняя общеобразовательная школа №85 с углубленным изучением отдельных предметов" Ново-Савиновского района г.Казани" | Y53: Ново-Савиновский район
A54: 53 | B54: Московский район | C54: Муниципальное бюджетное общеобразовательное учреждение `Средняя общеобразовательная школа №64` Московского района г.Казани | D54: Гарипов | E54: И. | F54: Р. | G54: М | H54: 19.03.2006 | I54: 8 | J54: 8 | K54: 10.8 | L54: 7.2 | M54: 8.02,1 | N54: 482.1 | O54: 30.75295582 | P54: 16.2 | Q54: 28.35 | R54: 66.30295582 | T54: 66.30295582 | U54: 100 | V54: Участник | W54: Чуприн ДмитрийЛеонидович | X54: Муниципальное бюджетное общеобразовательное учреждение `Средняя общеобразовательная школа №64` Московского района г.Казани | Y54: Московский район
A55: 54 | B55: Советский район | C55: Муниципальное бюджетное общеобразовательное учреждение "Средняя общеобразовательная школа № 101 имени П.А.Полушкина - Центр образования" Советского района г.Казани | D55: Аюбов | E55: К. | F55: Д. | G55: М | H55: 26.06.2006 | I55: 8 | J55: 8 | K55: 9.2 | L55: 6.133333333 | M55: 8.31,5 | N55: 511.5 | O55: 28.98533724 | P55: 17.1 | Q55: 29.925 | R55: 65.04367058 | T55: 65.04367058 | U55: 100 | V55: Участник | W55: Гарифзянова РезедаАльбертовна | X55: Муниципальное бюджетное общеобразовательное учреждение "Средняя общеобразовательная школа № 101 имени П.А.Полушкина - Центр образования" Советского района г.Казани | Y55: Советский район
A56: 55 | B56: Приволжский район | C56: Муниципальное бюджетное общеобразовательное учреждение "Средняя общеобразовательная школа № 173" | D56: Гатиятуллин | E56: И. | F56: А. | G56: М | H56: 16.01.2008 | I56: 7 | J56: 7 | K56: 18.6 | L56: 12.4 | M56: 9.19,2 | N56: 559.2 | O56: 26.51287554 | P56: 14.7 | Q56: 25.725 | R56: 64.63787554 | T56: 64.63787554 | U56: 100 | V56: Участник | W56: Тагирова РиммаШамильевна | X56: Муниципальное бюджетное общеобразовательное учреждение "Средняя общеобразовательная школа № 173" | Y56: Приволжский район
A57: 56 | B57: Ново-Савиновский район | C57: Муниципальное бюджетное общеобразовательное учреждение "Гимназия №179 - центр образования" Ново-Савиновского района г.Казани" | D57: Маньков | E57: М. | F57: О. | G57: М | H57: 30.06.2006 | I57: 8 | J57: 8 | K57: 15 | L57: 10 | M57: 9.24,5 | N57: 564.5 | O57: 26.2639504 | P57: 15.8 | Q57: 27.65 | R57: 63.9139504 | T57: 63.9139504 | U57: 100 | V57: Участник | W57: Ваниев ЭнверСаидович | X57: Муниципальное бюджетное общеобразовательное учреждение "Гимназия №179 - центр образования" Ново-Савиновского района г.Казани" | Y57: Ново-Савиновский район
A58: 57 | B58: Советский район | C58: Муниципальное бюджетное общеобразовательное учреждение "Средняя общеобразовательная школа № 174" Советского района г.Казани" | D58: Никитцов | E58: Д. | F58: С. | G58: М | H58: 11.09.2007 | I58: 7 | J58: 7 | K58: 13 | L58: 8.666666667 | M58: 8.28,9 | N58: 508.9 | O58: 29.13342503 | P58: 14.7 | Q58: 25.725 | R58: 63.5250917 | T58: 63.5250917 | U58: 100 | V58: Участник | W58: Гильфанетдинов ИрекТауфикович | X58: Муниципальное бюджетное общеобразовательное учреждение "Средняя общеобразовательная школа № 174" Советского района г.Казани" | Y58: Советский район
A59: 58 | B59: Приволжский район | C59: Муниципальное бюджетное общеобразовательное учреждение "Лицей №78 "Фарватер" | D59: Галеев | E59: А. | F59: Р. | G59: М | H59: 27.05.2007 | I59: 7 | J59: 7 | K59: 18 | L59: 12 | M59: 10.21,0 | N59: 621 | O59: 23.87439614 | P59: 15.4 | Q59: 26.95 | R59: 62.82439614 | T59: 62.82439614 | U59: 100 | V59: Участник | W59: Кожилкина ЮлияВладимировна | X59: Муниципальное бюджетное общеобразовательное учреждение "Лицей №78 "Фарватер" | Y59: Приволжский район
A60: 59 | B60: Приволжский район | C60: Муниципальное бюджетное общеобразовательное учреждение "Средняя общеобразовательная школа №42" | D60: Тугашев | E60: П. | F60: В. | G60: М | H60: 24.12.2006 | I60: 7 | J60: 7 | K60: 8.8 | L60: 5.866666667 | M60: 8.48,1 | N60: 528.1 | O60: 28.07422837 | P60: 16.2 | Q60: 28.35 | R60: 62.29089503 | T60: 62.29089503 | U60: 100 | V60: Участник | W60: Хикматуллин МударисСултанович | X60: Муниципальное бюджетное общеобразовательное учреждение "Средняя общеобразовательная школа №42" | Y60: Приволжский район
A61: 60 | B61: Авиастроительный район | C61: Муниципальное бюджетное общеобразовательное учреждение "Лицей №26 им. М.Джалиля" Авиастроительного района г.Казани" | D61: Поликарпов | E61: Я. | F61: С. | G61: М | H61: 07.05.2007 | I61: 7 | J61: 7 | K61: 8.2 | L61: 5.466666667 | M61: 9.29,3 | N61: 569.3 | O61: 26.04250834 | P61: 15.2 | Q61: 26.6 | R61: 58.10917501 | T61: 58.10917501 | U61: 100 | V61: Участник | W61: Мухаммадеева РалинаАльбертовна | X61: Муниципальное бюджетное общеобразовательное учреждение "Лицей №26 им. М.Джалиля" Авиастроительного района г.Казани" | Y61: Авиастроительный район
A62: 61 | B62: Советский район | C62: Муниципальное бюджетное общеобразовательное учреждение "Средняя общеобразовательная школа № 169" Советского района г.Казани" | D62: Шарафутдинов | E62: И. | F62: Д. | G62: М | H62: 07.04.2007 | I62: 7 | J62: 7 | K62: 31 | L62: 20.66666667 | M62: 8.18,8 | N62: 498.8 | O62: 29.72333601 | P62: 0 | Q62: 0 | R62: 50.39000267 | T62: 50.39000267 | U62: 100 | V62: Участник | W62: Ахмедьярова ГузельРафисовна | X62: Муниципальное бюджетное общеобразовательное учреждение "Средняя общеобразовательная школа № 169" Советского района г.Казани" | Y62: Советский район
A63: 62 | B63: Московский район | C63: Муниципальное бюджетное общеобразовательное учреждение "Гимназия № 94" Московского района г.Казани | D63: Суворов | E63: Г. | F63: Ю. | G63: М | H63: 16.02.2006 | I63: 7 | J63: 7 | K63: 26 | L63: 17.33333333 | M63: 7.33,6 | N63: 453.6 | O63: 32.68518519 | P63: 0 | Q63: 0 | R63: 50.01851852 | T63: 50.01851852 | U63: 100 | V63: Участник | W63: Павлов АндрейИгоревич | X63: Муниципальное бюджетное общеобразовательное учреждение "Гимназия № 94" Московского района г.Казани | Y63: Московский район
A64: 63 | B64: Кировский район | C64: МБОУ "Политехнический лицей № 182" | D64: Антонов | E64: В. | F64: П. | G64: М | H64: 16.11.2007 | I64: 7 | J64: 7 | K64: 30 | L64: 20 | M64: 8.37,2 | N64: 517.2 | O64: 28.66589327 | P64: 0 | Q64: 0 | R64: 48.66589327 | T64: 48.66589327 | U64: 100 | V64: Участник | W64: Антонова СнежанаНиколаевна | X64: МБОУ "Политехнический лицей № 182" | Y64: Кировский район
A65: 64 | B65: Авиастроительный район | C65: Муниципальное бюджетное общеобразовательное учреждение "Гимназия №5" | D65: Хайруллин | E65: А. | F65: Р. | G65: М | H65: 18.06.2006 | I65: 8 | J65: 8 | K65: 28 | L65: 18.66666667 | M65: 8.26,1 | N65: 506.1 | O65: 29.29460581 | P65: 0 | Q65: 0 | R65: 47.96127248 | T65: 47.96127248 | U65: 100 | V65: Участник | W65: Шакирова НазияАглулловна | X65: Муниципальное бюджетное общеобразовательное учреждение "Гимназия №5" | Y65: Авиастроительный район
A66: 65 | B66: Советский район | C66: Муниципальное бюджетное общеобразовательное учреждение "Средняя общеобразовательная школа № 15 с углубленным изучением отдельных предметов" Советского района города Казани" | D66: Михеев | E66: Т. | F66: Д. | G66: М | H66: 02.02.2007 | I66: 7 | J66: 7 | K66: 25.2 | L66: =30*K66/45 -> 16.8 | M66: 8.40,3 | N66: 520.3 | O66: =IF(N66>0,35*423.6/N66,0) -> 28.49509898 | P66: 0 | Q66: =35*P66/20 -> 0 | R66: =Q66+O66+L66 -> 45.29509898 | T66: 45.29509898 | U66: 100 | V66: Участник | W66: Каримов МаратРамилевич | X66: Муниципальное бюджетное общеобразовательное учреждение "Средняя общеобразовательная школа № 15 с углубленным изучением отдельных предметов" Советского района города Казани" | Y66: Советский район
A67: 66 | B67: Советский район | C67: Муниципальное бюджетное общеобразовательное учреждение "Средняя общеобразовательная школа № 171 с углубленным изучением отдельных предметов" Советского района г.Казани | D67: Давлетьяров | E67: К. | F67: Р. | G67: М | H67: 15.09.2006 | I67: 8 | J67: 8 | K67: 23 | L67: 15.33333333 | M67: 8.31,1 | N67: 511.1 | O67: 29.00802191 | P67: 0 | Q67: 0 | R67: 44.34135525 | T67: 44.34135525 | U67: 100 | V67: Участник | W67: Хусаинов ИльшатАсхатович | X67: Муниципальное бюджетное общеобразовательное учреждение "Средняя общеобразовательная школа № 171 с углубленным изучением отдельных предметов" Советского района г.Казани | Y67: Советский район
A68: 67 | B68: Приволжский район | C68: Муниципальное бюджетное общеобразовательное учреждение "Татарско-русская средняя общеобразовательная школа №10 с углубленным изучением отдельных предметов" | D68: Сабиров | E68: Р. | F68: Ф. | G68: М | H68: 20.08.2006 | I68: 8 | J68: 8 | K68: 23 | L68: 15.33333333 | M68: 8.39,0 | N68: 519 | O68: 28.56647399 | P68: 0 | Q68: 0 | R68: 43.89980732 | T68: 43.89980732 | U68: 100 | V68: Участник | W68: Габдрахманов РафисРашитович | X68: Муниципальное бюджетное общеобразовательное учреждение "Татарско-русская средняя общеобразовательная школа №10 с углубленным изучением отдельных предметов" | Y68: Приволжский район
A69: 68 | B69: Советский район | C69: Муниципальное бюджетное общеобразовательное учреждение "Многопрофильная полилингвальная гимназия №180" Советского района г. Казани" | D69: Игтеев | E69: М. | F69: М. | G69: М | H69: 04.11.2008 | I69: 6 | J69: 7 | K69: 16.6 | L69: 11.06666667 | M69: 7.35,1 | N69: 455.1 | O69: 32.5774555 | P69: 0 | Q69: 0 | R69: 43.64412217 | T69: 43.64412217 | U69: 100 | V69: Участник | W69: Вахитов РусланИльсурович | X69: Муниципальное бюджетное общеобразовательное учреждение "Многопрофильная полилингвальная гимназия №180" Советского района г. Казани" | Y69: Советский район
A70: 69 | B70: Ново-Савиновский район | C70: Муниципальное бюджетное общеобразовательное учреждение "Средняя общеобразовательная школа №9 с углубленным изучением английского языка" Ново-Савиновского района г. Казани" | D70: Гайнуллин | E70: Г. | F70: И. | G70: М | H70: 25.10.2005 | I70: 8 | J70: 8 | K70: 16.8 | L70: 11.2 | M70: 7.45,9 | N70: 465.9 | O70: 31.82227946 | P70: 0 | Q70: 0 | R70: 43.02227946 | T70: 43.02227946 | U70: 100 | V70: Участник | W70: Зарипов ЗуфарЗиннурович | X70: Муниципальное бюджетное общеобразовательное учреждение "Средняя общеобразовательная школа №9 с углубленным изучением английского языка" Ново-Савиновского района г. Казани" | Y70: Ново-Савиновский район
A71: 70 | B71: Вахитовский район | C71: Муниципальное бюджетное общеобразовательное учреждение "Средняя общеобразовательная школа №14" | D71: Шигапов | E71: А. | F71: С. | G71: М | H71: 10.10.2006 | I71: 8 | J71: 8 | K71: 33 | L71: 22 | M71: 12.08,3 | N71: 728.3 | O71: 20.35699574 | R71: 42.35699574 | T71: 42.35699574 | U71: 100 | V71: Участник | W71: Файзуллин ЭдуардЗавдатович | X71: Муниципальное бюджетное общеобразовательное учреждение "Средняя общеобразовательная школа №14" | Y71: Вахитовский район
A72: 71 | B72: Авиастроительный район | C72: Муниципальное бюджетное общеобразовательное учреждение "Гимназия №14" Авиастроительного района г.Казани" | D72: Газизуллин | E72: Д. | F72: Н. | G72: М | H72: 21.10.2006 | I72: 7 | J72: 7 | K72: 23 | L72: 15.33333333 | M72: 9.12,2 | N72: 552.2 | O72: 26.84896777 | P72: 0 | Q72: =35*P72/20 -> 0 | R72: 42.1823011 | T72: 42.1823011 | U72: 100 | V72: Участник | W72: Платонов ВячеславПетрович | X72: Муниципальное бюджетное общеобразовательное учреждение "Гимназия №14" Авиастроительного района г.Казани" | Y72: Авиастроительный район
A73: 72 | B73: Советский район | C73: Муниципальное бюджетное общеобразовательное учреждение "Многопрофильная школа №181" Советского района г. Казани" | D73: Хайбуллин | E73: К. | F73: И. | G73: М | H73: 19.09.2007 | I73: 7 | J73: 7 | K73: 18.2 | L73: 12.13333333 | M73: 8.54,9 | N73: 534.9 | O73: 27.71733034 | P73: 0 | Q73: =35*P73/20 -> 0 | R73: 39.85066368 | T73: 39.85066368 | U73: 100 | V73: Участник | W73: Копотилова ЕкатеринаСергеевна | X73: Муниципальное бюджетное общеобразовательное учреждение "Многопрофильная школа №181" Советского района г. Казани" | Y73: Советский район
A74: 73 | B74: Приволжский район | C74: Муниципальное бюджетное общеобразовательное учреждение "Средняя общеобразовательная школа №24 с углубленным изучением отдельных предметов" | D74: Елькин | E74: И. | F74: С. | G74: М | H74: 30.01.2006 | I74: 8 | J74: 8 | K74: 16.6 | L74: 11.06666667 | M74: 8.52,4 | N74: 532.4 | O74: 27.8474831 | R74: 38.91414976 | T74: 38.91414976 | U74: 100 | V74: Участник | W74: Лукьянов АлексейЮрьевич | X74: Муниципальное бюджетное общеобразовательное учреждение "Средняя общеобразовательная школа №24 с углубленным изучением отдельных предметов" | Y74: Приволжский район
A75: 74 | B75: Ново-Савиновский район | C75: Муниципальное бюджетное общеобразовательное учреждение "Средняя общеобразовательная школа №49" Ново-Савиновского района г.Казани" | D75: Иванов | E75: С. | G75: М | H75: 11.11.2006 | I75: 7 | J75: 7 | K75: 11.6 | L75: 7.733333333 | M75: 7.56,2 | N75: 476.2 | O75: 31.13397732 | P75: 0 | Q75: =35*P75/20 -> 0 | R75: 38.86731065 | T75: 38.86731065 | U75: 100 | V75: Участник | W75: Сухарев ИгорьАлександрович | X75: Муниципальное бюджетное общеобразовательное учреждение "Средняя общеобразовательная школа №49" Ново-Савиновского района г.Казани" | Y75: Ново-Савиновский район
A76: 75 | B76: Приволжский район | C76: Муниципальное бюджетное общеобразовательное учреждение "Средняя общеобразовательная школа №69" | D76: Губайдуллин | E76: А. | F76: Ш. | G76: М | H76: 05.10.2006 | I76: 8 | J76: 8 | K76: 15.2 | L76: 10.13333333 | M76: 8.40,5 | N76: 520.5 | O76: 28.48414986 | P76: 0 | Q76: 0 | R76: 38.61748319 | T76: 38.61748319 | U76: 100 | V76: Участник | W76: Еремина ЛюдмилаГеннадьевна | X76: Муниципальное бюджетное общеобразовательное учреждение "Средняя общеобразовательная школа №69" | Y76: Приволжский район
A77: 76 | B77: Приволжский район | C77: Муниципальное бюджетное общеобразовательное учреждение "Средняя общеобразовательная школа №73" | D77: Саляхиев | E77: К. | F77: Р. | G77: М | H77: 29.03.2006 | I77: 8 | J77: 8 | K77: 16.8 | L77: 11.2 | M77: 9.21,8 | N77: 561.8 | O77: 26.39017444 | Q77: 0 | R77: 37.59017444 | T77: 37.59017444 | U77: 100 | V77: Участник | W77: Кривоногов АртёмДмитриевич | X77: Муниципальное бюджетное общеобразовательное учреждение "Средняя общеобразовательная школа №73" | Y77: Приволжский район
A78: 77 | B78: Приволжский район | C78: Муниципальное автономное общеобразовательное учреждение "Гимназия № 139" | D78: Хамидуллин | E78: Т. | F78: Р. | G78: М | H78: 24.12.2006 | I78: 8 | J78: 8 | K78: 10.6 | L78: 7.066666667 | M78: 8.34,1 | N78: 514.1 | O78: 28.83874733 | P78: 0 | Q78: 0 | R78: 35.90541399 | T78: 35.90541399 | U78: 100 | V78: Участник | W78: Долгих ВячеславЮрьевич | X78: Муниципальное автономное общеобразовательное учреждение "Гимназия № 139" | Y78: Приволжский район
A79: 78 | B79: Ново-Савиновский район | C79: Муниципальное бюджетное общеобразовательное учреждение "Средняя общеобразовательная татарско-русская школа №71 с углубленным изучением отдельных предметов" Ново-Савиновского района г. Казани" | D79: Николаев | E79: И. | F79: Н. | G79: М | H79: 28.11.2006 | I79: 7 | J79: 7 | K79: 9.2 | L79: 6.133333333 | M79: 9.59,7 | N79: 599.7 | O79: 24.72236118 | P79: 0 | Q79: 0 | R79: 30.85569451 | T79: 30.85569451 | U79: 100 | V79: Участник | W79: Мухаметшин АзатГазизович | X79: Муниципальное бюджетное общеобразовательное учреждение "Средняя общеобразовательная татарско-русская школа №71 с углубленным изучением отдельных предметов" Ново-Савиновского района г. Казани" | Y79: Ново-Савиновский район
A80: 79 | B80: Советский район | C80: Муниципальное бюджетное общеобразовательное учреждение "Гимназия №175" Советского района г.Казани | D80: Курепанов | E80: Е. | F80: С. | G80: М | H80: 16.02.2006 | I80: 8 | J80: 8 | K80: 41 | L80: 27.33333333 | O80: 0 | Q80: 0 | R80: 27.33333333 | T80: 27.33333333 | U80: 100 | V80: Участник | W80: Кириллова ОльгаВладимировна | X80: Муниципальное бюджетное общеобразовательное учреждение "Гимназия №175" Советского района г.Казани | Y80: Советский район
A81: 80 | B81: Авиастроительный район | C81: Муниципальное бюджетное общеобразовательное учреждение "Лицей №145" Авиастроительного района г.Казани" | D81: Чеплыгов | E81: А. | F81: А. | G81: М | H81: 25.10.2005 | I81: 8 | J81: 8 | K81: 36 | L81: 24 | O81: 0 | Q81: 0 | R81: 24 | T81: 24 | U81: 100 | V81: Участник | W81: Афоньшин ВладимирВикторович | X81: Муниципальное бюджетное общеобразовательное учреждение "Лицей №145" Авиастроительного района г.Казани" | Y81: Авиастроительный район
A82: 81 | B82: Кировский район | C82: Муниципальное бюджетное общеобразовательное учреждение "Русско-татарская средняя общеобразовательная школа №81 с углубленным изучением отдельных предметов имени В.А.Григорьева" | D82: Тарасов | E82: М. | F82: В. | G82: М | H82: 03.11.2006 | I82: 8 | J82: 8 | K82: 32.4 | L82: 21.6 | O82: 0 | Q82: 0 | R82: 21.6 | T82: 21.6 | U82: 100 | V82: Участник | W82: Черепанова ВалентинаВасильевна | X82: Муниципальное бюджетное общеобразовательное учреждение "Русско-татарская средняя общеобразовательная школа №81 с углубленным изучением отдельных предметов имени В.А.Григорьева" | Y82: Кировский район
A83: 82 | B83: Приволжский район | C83: Муниципальное бюджетное общеобразовательное учреждение "Гимназия №40" | D83: Хайруллин | E83: М. | F83: Д. | G83: М | H83: 03.10.2007 | I83: 7 | J83: 7 | K83: 32 | L83: 21.33333333 | O83: 0 | Q83: 0 | R83: 21.33333333 | T83: 21.33333333 | U83: 100 | V83: Участник | W83: Колчин ИгорьИванович | X83: Муниципальное бюджетное общеобразовательное учреждение "Гимназия №40" | Y83: Приволжский район
A84: 83 | B84: Авиастроительный район | C84: Муниципальное автономное общеобразовательное учреждение "Гимназия №37" Авиастроительного района г.Казани" | D84: Прокофьев | E84: О. | F84: В. | G84: М | H84: 02.10.2006 | I84: 7 | J84: 7 | K84: 29.4 | L84: 19.6 | O84: 0 | Q84: 0 | R84: 19.6 | T84: 19.6 | U84: 100 | V84: Участник | W84: Курбанова НаиляАхметовна | X84: Муниципальное автономное общеобразовательное учреждение "Гимназия №37" Авиастроительного района г.Казани" | Y84: Авиастроительный район
A85: 84 | B85: Вахитовский район | C85: Муниципальное бюджетное общеобразовательное учреждение "Гимназия №27 с татарским языком обучения" | D85: Алексеев | E85: А. | F85: А. | G85: М | H85: 16.01.2006 | I85: 8 | J85: 8 | K85: 12.2 | L85: 8.133333333 | O85: 0 | Q85: 0 | R85: 8.133333333 | T85: 8.133333333 | U85: 100 | V85: Участник | W85: Галиуллин КамильМасхутович | X85: Муниципальное бюджетное общеобразовательное учреждение "Гимназия №27 с татарским языком обучения" | Y85: Вахитовский район

Sheet 9-11 дев
A1: № | B1: Район | C1: Школа | D1: Фамилия | E1: Имя | F1: Отчество | G1: пол | H1: д.р. | I1: класс | J1: класс участия | K1: теория | L1: Балл | M1: легкая атлетика | N1: пересчет | O1: балл | P1: гимнастика | Q1: балл | R1: Общий балл | S1: Апел.балл | T1: Итог балл | U1: Макс.балл | V1: Статус | W1: Учитель | X1: Наименование ОУ | Y1: Район
A2: 1 | B2: Приволжский район | C2: МБОУ «Многопрофильный лицей №186 - "Перспектива" Приволжского района г. Казани | D2: Трофимова | E2: В. | F2: А. | G2: Ж | H2: 2005-01-05 | I2: 9 | J2: 9 | K2: 48 | L2: =30*K2/57 -> 25.26315789 | M2: 8.16,7 | N2: 496.7 | O2: =35*486.7/N2 -> 34.29534931 | P2: 19.2 | Q2: =35*P2/20 -> 33.6 | R2: =L2+O2+Q2 -> 93.1585072 | T2: 93.1585072 | U2: 100 | V2: Победитель | W2: Булатов Ильдар Фаритович | X2: МБОУ «Многопрофильный лицей №186 - "Перспектива" Приволжского района г. Казани | Y2: Приволжский район
A3: 2 | B3: Московский район | C3: МБОУ "Татарская гимназия № 17 имени Г.Ибрагимова" Московского района г.Казани" | D3: Мингазова | E3: Э. | F3: Ф. | G3: Ж | H3: 27.06.2005 | I3: 9 | J3: 9 | K3: 46 | L3: 24.21052632 | M3: 9.07,5 | N3: 547.5 | O3: 31.11324201 | P3: 19.4 | Q3: 33.95 | R3: 89.27376832 | T3: 89.27376832 | U3: 100 | V3: Победитель | W3: Шайдуллин МаратСаматович | X3: Муниципальное бюджетное общеобразовательное учреждение "Татарская гимназия № 17 имени Г.Ибрагимова" Московского района г.Казани" | Y3: Московский район
A4: 3 | B4: Ново-Савиновский район | C4: МБОУ "Средняя общеобразовательная школа №132 с углубленным изучением иностранных языков" Ново-Савиновского района г. Казани" | D4: Вдовина | E4: А. | F4: И. | G4: Ж | H4: 14.05.2003 | I4: 11 | J4: 11 | K4: 39.5 | L4: 20.78947368 | M4: 8.50,9 | N4: 530.9 | O4: 32.08608024 | P4: 19.2 | Q4: 33.6 | R4: 86.47555393 | T4: 86.47555393 | U4: 100 | V4: Победитель | W4: Хубатуллина АльбинаИльгизовна | X4: Муниципальное бюджетное общеобразовательное учреждение "Средняя общеобразовательная школа №132 с углубленным изучением иностранных языков" Ново-Савиновского района г. Казани" | Y4: Ново-Савиновский район
A5: 4 | B5: Приволжский район | C5: МБОУ "Средняя общеобразовательная школа №42" | D5: Сенюхина | E5: В. | F5: С. | G5: Ж | H5: 14.08.2003 | I5: 11 | J5: 11 | K5: 42 | L5: 22.10526316 | M5: 9.35,9 | N5: 575.9 | O5: 29.57891995 | P5: 19 | Q5: 33.25 | R5: 84.93418311 | T5: 84.93418311 | U5: 100 | V5: Победитель | W5: Каримова ЛилианаИльдаровна | X5: Муниципальное бюджетное общеобразовательное учреждение "Средняя общеобразовательная школа №42" | Y5: Приволжский район
A6: 5 | B6: Ново-Савиновский район | C6: Инженерный лицей-интернат КНИТУ-КАИ | D6: Анюшина | E6: М. | F6: М. | G6: Ж | H6: 21.08.2003 | I6: 11 | J6: 11 | K6: 52 | L6: 27.36842105 | M6: 10.13,8 | N6: 613.8 | O6: 27.75252525 | P6: 16.7 | Q6: 29.225 | R6: 84.34594631 | T6: 84.34594631 | U6: 100 | V6: Победитель | W6: Пестова АленаВалерьевна | X6: Инженерный лицей-интернат КНИТУ-КАИ | Y6: Ново-Савиновский район
A7: 6 | B7: Ново-Савиновский район | C7: МБОУ "Средняя общеобразовательная школа №170 с углубленным изучением отдельных предметов" Ново-Савиновского района г. Казани" | D7: Сабитова | E7: Р. | F7: И. | G7: Ж | H7: 14.09.2005 | I7: 9 | J7: 9 | K7: 34.5 | L7: 18.15789474 | M7: 9.10,1 | N7: 550.1 | O7: 30.96618797 | P7: 19.9 | Q7: 34.825 | R7: 83.9490827 | T7: 83.9490827 | U7: 100 | V7: Победитель | W7: Сусленкова ЮлияВладимировна | X7: Муниципальное бюджетное общеобразовательное учреждение "Средняя общеобразовательная школа №170 с углубленным изучением отдельных предметов" Ново-Савиновского района г. Казани" | Y7: Ново-Савиновский район
A8: 7 | B8: Авиастроительный район | C8: МБОУ "Средняя общеобразовательная школа с углубленным изучением отдельных предметов №62" Авиастроительного района г.Казани" | D8: Шинкарева | E8: Д. | F8: В. | G8: Ж | H8: 03.04.2004 | I8: 10 | J8: 10 | K8: 35 | L8: 18.42105263 | M8: 9.07,7 | N8: 547.7 | O8: 31.10188059 | P8: 19.6 | Q8: 34.3 | R8: 83.82293322 | T8: 83.82293322 | U8: 100 | V8: Призер | W8: Косова ЛюбовьНиколаевна | X8: Муниципальное бюджетное общеобразовательное учреждение "Средняя общеобразовательная школа с углубленным изучением отдельных предметов №62" Авиастроительного района г.Казани" | Y8: Авиастроительный район
A9: 8 | B9: Ново-Савиновский район | C9: МБОУ "Гимназия №155 с татарским языком обучения" Ново-Савиновского района г. Казани" | D9: Ахмадуллина | E9: Д. | F9: Р. | G9: Ж | H9: 21.06.2004 | I9: 10 | J9: 10 | K9: 36 | L9: 18.94736842 | M9: 9.17,0 | N9: 557 | O9: 30.58258528 | P9: 19.5 | Q9: 34.125 | R9: 83.6549537 | T9: 83.6549537 | U9: 100 | V9: Призер | W9: Галиев МарсельВазихович | X9: Муниципальное бюджетное общеобразовательное учреждение "Гимназия №155 с татарским языком обучения" Ново-Савиновского района г. Казани" | Y9: Ново-Савиновский район
A10: 9 | B10: Кировский район | C10: МБОУ "Русско-татарская средняя общеобразовательная школа №81 с углубленным изучением отдельных предметов имени В.А.Григорьева" | D10: Плясунова | E10: Д. | F10: С. | G10: Ж | H10: 12.01.2005 | I10: 9 | J10: 9 | K10: 29 | L10: 15.26315789 | M10: 8.29,6 | N10: 509.6 | O10: 33.4271978 | P10: 19.3 | Q10: 33.775 | R10: 82.4653557 | T10: 82.4653557 | U10: 100 | V10: Призер | W10: Черепанова ВалентинаВасильевна | X10: Муниципальное бюджетное общеобразовательное учреждение "Русско-татарская средняя общеобразовательная школа №81 с углубленным изучением отдельных предметов имени В.А.Григорьева" | Y10: Кировский район
A11: 10 | B11: Вахитовский район | C11: МБОУ "Гимназия №96" | D11: Гатауллина | E11: Д. | F11: Т. | G11: Ж | H11: 03.01.2003 | I11: 11 | J11: 11 | K11: 39 | L11: 20.52631579 | M11: 9.37,6 | N11: 577.6 | O11: 29.49186288 | P11: 18.4 | Q11: 32.2 | R11: 82.21817867 | T11: 82.21817867 | U11: 100 | V11: Призер | W11: Самарина ИринаВаделеновна | X11: Муниципальное бюджетное общеобразовательное учреждение "Гимназия №96" | Y11: Вахитовский район
A12: 11 | B12: Ново-Савиновский район | C12: МАОУ "Лицей №146 "Ресурс" Ново-Савиновского района г. Казани" | D12: Садирова | E12: К. | F12: И. | G12: Ж | H12: 01.12.2004 | I12: 10 | J12: 10 | K12: 32 | L12: 16.84210526 | M12: 9.16,8 | N12: 556.8 | O12: 30.5935704 | P12: 19.7 | Q12: 34.475 | R12: 81.91067567 | T12: 81.91067567 | U12: 100 | V12: Призер | W12: Корнеева ИринаНиколаевна | X12: Муниципальное автономное общеобразовательное учреждение "Лицей №146 "Ресурс" Ново-Савиновского района г. Казани" | Y12: Ново-Савиновский район
A13: 12 | B13: Советский район | C13: МБОУ "Гимназия №175" Советского района г.Казани | D13: Алеева | E13: А. | F13: Н. | G13: Ж | H13: 07.05.2004 | I13: 10 | J13: 10 | K13: 44.5 | L13: 23.42105263 | M13: 9.14,9 | N13: 554.9 | O13: 30.69832402 | P13: 15.6 | Q13: 27.3 | R13: 81.41937665 | T13: 81.41937665 | U13: 100 | V13: Призер | W13: Смелов РусланАлександрович | X13: Муниципальное бюджетное общеобразовательное учреждение "Гимназия №175" Советского района г.Казани | Y13: Советский район
A14: 13 | B14: Ново-Савиновский район | C14: МБОУ "Средняя общеобразовательная татарско-русская школа №113 с углубленным изучением отдельных предметов имени Героя России М.Р.Ахметшина" Ново-Савиновского района г. Казани" | D14: Морозова | E14: А. | F14: С. | G14: Ж | H14: 16.06.2004 | I14: 10 | J14: 10 | K14: 34 | L14: 17.89473684 | M14: 9.46,6 | N14: 586.6 | O14: 29.03937947 | P14: 19.7 | Q14: 34.475 | R14: 81.40911632 | T14: 81.40911632 | U14: 100 | V14: Призер | W14: Рыжов АлександрВасильевич | X14: Муниципальное бюджетное общеобразовательное учреждение "Средняя общеобразовательная татарско-русская школа №113 с углубленным изучением отдельных предметов имени Героя России М.Р.Ахметшина" Ново-Савиновского района г. Казани" | Y14: Ново-Савиновский район
A15: 14 | B15: Ново-Савиновский район | C15: МБОУ "Средняя общеобразовательная школа №132 с углубленным изучением иностранных языков" Ново-Савиновского района г. Казани" | D15: Гайсина | E15: Н. | F15: Ф. | G15: Ж | H15: 14.05.2003 | I15: 11 | J15: 11 | K15: 36.5 | L15: 19.21052632 | M15: 9.34,9 | N15: 574.9 | O15: 29.6303705 | P15: 18.5 | Q15: 32.375 | R15: 81.21589682 | T15: 81.21589682 | U15: 100 | V15: Призер | W15: Хубатуллина Альбина Ильгизовна | X15: МБОУ "Школа №132" Ново-Савиновского района | Y15: Ново-Савиновский район
A16: 15 | B16: Авиастроительный район | C16: МБОУ "Средняя общеобразовательная школа № 77" Авиастроительного района г.Казани" | D16: Ефимова | E16: Л. | F16: А. | G16: Ж | H16: 05.11.2005 | I16: 9 | J16: 9 | K16: 35.5 | L16: 18.68421053 | M16: 9.23,8 | N16: 563.8 | O16: 30.21372827 | P16: 18.3 | Q16: 32.025 | R16: 80.9229388 | T16: 80.9229388 | U16: 100 | V16: Призер | W16: Бикмуллин ДинарМунирович | X16: Муниципальное бюджетное общеобразовательное учреждение "Средняя общеобразовательная школа № 77" Авиастроительного района г.Казани" | Y16: Авиастроительный район
A17: 16 | B17: Авиастроительный район | C17: МБОУ "Гимназия №36" Авиастроительного района г.Казани" | D17: Крючкова | E17: А. | F17: Е. | G17: Ж | H17: 10.01.2004 | I17: 10 | J17: 10 | K17: 30 | L17: 15.78947368 | M17: 9.07,8 | N17: 547.8 | O17: 31.09620299 | P17: 19.4 | Q17: 33.95 | R17: 80.83567668 | T17: 80.83567668 | U17: 100 | V17: Призер | W17: Мартынова ТатьянаГеоргиевна | X17: Муниципальное бюджетное общеобразовательное учреждение "Гимназия №36" Авиастроительного района г.Казани" | Y17: Авиастроительный район
A18: 17 | B18: Авиастроительный район | C18: МБОУ "Средняя общеобразовательная школа № 77" Авиастроительного района г.Казани" | D18: Сафина | E18: А. | F18: Т. | G18: Ж | H18: 28.08.2004 | I18: 10 | J18: 10 | K18: 32 | L18: 16.84210526 | M18: 8.36,1 | N18: 516.1 | O18: 33.00620035 | P18: 17.6 | Q18: 30.8 | R18: 80.64830561 | T18: 80.64830561 | U18: 100 | V18: Призер | W18: Королев АндрейАнатольевич | X18: Муниципальное бюджетное общеобразовательное учреждение "Средняя общеобразовательная школа № 77" Авиастроительного района г.Казани" | Y18: Авиастроительный район
A19: 18 | B19: Ново-Савиновский район | C19: МБОУ "Средняя общеобразовательная школа №132 с углубленным изучением иностранных языков" Ново-Савиновского района г. Казани" | D19: Барченкова | E19: Е. | F19: А. | G19: Ж | H19: 03.10.2003 | I19: 11 | J19: 11 | K19: 39 | L19: 20.52631579 | M19: 9.25,5 | N19: 565.5 | O19: 30.12290009 | P19: 17.1 | Q19: 29.925 | R19: 80.57421588 | T19: 80.57421588 | U19: 100 | V19: Призер | W19: Хубатуллина АльбинаИльгизовна | X19: Муниципальное бюджетное общеобразовательное учреждение "Средняя общеобразовательная школа №132 с углубленным изучением иностранных языков" Ново-Савиновского района г. Казани" | Y19: Ново-Савиновский район
A20: 19 | B20: Приволжский район | C20: МАОУ "Гимназия №19" | D20: Газизова | E20: Р. | F20: Р. | G20: Ж | H20: 14.10.2005 | I20: 9 | J20: 9 | K20: 45.5 | L20: 23.94736842 | M20: 11.05,0 | N20: 665 | O20: 25.61578947 | P20: 17.7 | Q20: 30.975 | R20: 80.53815789 | T20: 80.53815789 | U20: 100 | V20: Призер | W20: Куроедов Борис Борисович
A21: 20 | B21: Кировский район | C21: МБОУ "Русско-татарская средняя общеобразовательная школа №81 с углубленным изучением отдельных предметов имени В.А.Григорьева" | D21: Валиева | E21: К. | F21: Г. | G21: Ж | H21: 04.12.2005 | I21: 9 | J21: 9 | K21: 27.5 | L21: 14.47368421 | M21: 9.02,9 | N21: 542.9 | O21: 31.37686498 | P21: 19.7 | Q21: 34.475 | R21: 80.32554919 | T21: 80.32554919 | U21: 100 | V21: Призер | W21: Черепанова ВалентинаВасильевна | X21: Муниципальное бюджетное общеобразовательное учреждение "Русско-татарская средняя общеобразовательная школа №81 с углубленным изучением отдельных предметов имени В.А.Григорьева" | Y21: Кировский район
A22: 21 | B22: Вахитовский район | C22: МБОУ "Средняя общеобразовательная школа №98 (татарско-русская)" | D22: Турчак | E22: Э. | F22: Д. | G22: Ж | H22: 17.10.2005 | I22: 9 | J22: 9 | K22: 37 | L22: 19.47368421 | M22: 8.46,4 | N22: 526.4 | O22: 32.36037234 | P22: 16.1 | Q22: 28.175 | R22: 80.00905655 | T22: 80.00905655 | U22: 100 | V22: Призер | W22: Габдрахманов ФанзильИльгизович | X22: Муниципальное бюджетное общеобразовательное учреждение "Средняя общеобразовательная школа №98 (татарско-русская)" | Y22: Вахитовский район
A23: 22 | B23: Приволжский район | C23: МБОУ "Татарско-русская средняя общеобразовательная школа №10 с углубленным изучением отдельных предметов" | D23: Дмитриева | E23: А. | F23: Е. | G23: Ж | H23: 12.07.2005 | I23: 9 | J23: 9 | K23: 26.5 | L23: 13.94736842 | M23: 8.45,6 | N23: 525.6 | O23: 32.40962709 | P23: 19 | Q23: 33.25 | R23: 79.60699551 | T23: 79.60699551 | U23: 100 | V23: Призер | W23: Габдрахманов РафисРашитович | X23: Муниципальное бюджетное общеобразовательное учреждение "Татарско-русская средняя общеобразовательная школа №10 с углубленным изучением отдельных предметов" | Y23: Приволжский район
A24: 23 | B24: Приволжский район | C24: МАОУ "Гимназия № 139" | D24: Гарапшина | E24: А. | F24: Р. | G24: Ж | H24: 12.09.2004 | I24: 10 | J24: 10 | K24: 35.5 | L24: 18.68421053 | M24: 8.25,8 | N24: 505.8 | O24: 33.67833136 | P24: 15.5 | Q24: 27.125 | R24: 79.48754188 | T24: 79.48754188 | U24: 100 | V24: Призер | W24: Галкина ЕленаВитальевна | X24: Муниципальное автономное общеобразовательное учреждение "Гимназия № 139" | Y24: Приволжский район
A25: 24 | B25: Приволжский район | C25: МАОУ "Гимназия №19" | D25: Никишина | E25: К. | F25: В. | G25: Ж | H25: 27.07.2004 | I25: 10 | J25: 10 | K25: 45.5 | L25: 23.94736842 | M25: 11.05,0 | N25: 665 | O25: 25.61578947 | P25: 17 | Q25: 29.75 | R25: 79.31315789 | T25: 79.31315789 | U25: 100 | V25: Призер | W25: Баранов ГлебВалерьевич | X25: Муниципальное автономное общеобразовательное учреждение "Гимназия №19" | Y25: Приволжский район
A26: 25 | B26: Ново-Савиновский район | C26: МБОУ "Гимназия №7 имени Героя России А.В.Козина" Ново-Савиновского района г. Казани" | D26: Батманова | E26: Я. | F26: О. | G26: Ж | H26: 04.09.2003 | I26: 11 | J26: 11 | K26: 20.5 | L26: 10.78947368 | M26: 8.32,9 | N26: 512.9 | O26: 33.21212712 | P26: 20 | Q26: 35 | R26: 79.0016008 | T26: 79.0016008 | U26: 100 | V26: Призер | W26: Калашникова КсенияДмитриевна | X26: Муниципальное бюджетное общеобразовательное учреждение "Гимназия №7 имени Героя России А.В.Козина" Ново-Савиновского района г. Казани" | Y26: Ново-Савиновский район
A27: 26 | B27: Приволжский район | C27: МБОУ "Русско-татарская средняя общеобразовательная школа №136" | D27: Юдина | E27: А. | F27: Д. | G27: Ж | H27: 30.10.2004 | I27: 9 | J27: 9 | K27: 36 | L27: 18.94736842 | M27: 9.19,9 | N27: 559.9 | O27: 30.42418289 | P27: 16.8 | Q27: 29.4 | R27: 78.77155131 | T27: 78.77155131 | U27: 100 | V27: Призер | W27: Тростогон СергейАнатольевич | X27: Муниципальное бюджетное общеобразовательное учреждение "Русско-татарская средняя общеобразовательная школа №136" | Y27: Приволжский район
A28: 27 | B28: Авиастроительный район | C28: МБОУ "Средняя общеобразовательная школа № 54 с углубленным изучением отдельных предметов" Авиастроительного района г.Казани" | D28: Антонова | E28: В. | F28: В. | G28: Ж | H28: 14.08.2003 | I28: 11 | J28: 11 | K28: 31 | L28: 16.31578947 | M28: 8.50,3 | N28: 530.3 | O28: 32.12238356 | P28: 17.3 | Q28: 30.275 | R28: 78.71317303 | T28: 78.71317303 | U28: 100 | V28: Призер | W28: Шинкарева ЛидияВикторовна | X28: Муниципальное бюджетное общеобразовательное учреждение "Средняя общеобразовательная школа № 54 с углубленным изучением отдельных предметов" Авиастроительного района г.Казани" | Y28: Авиастроительный район
A29: 28 | B29: Приволжский район | C29: МБОУ "Татарско-русская средняя общеобразовательная школа №68 с углубленным изучением отдельных предметов" | D29: Габайдуллина | E29: К. | F29: И. | G29: Ж | H29: 2003-08-18 | I29: 11 | J29: 11 | K29: 39 | L29: 20.52631579 | M29: 8.26,8 | N29: 506.8 | O29: 33.61187845 | P29: 13.8 | Q29: 24.15 | R29: 78.28819424 | T29: 78.28819424 | U29: 100 | V29: Призер | W29: Хуртов Сергей Геннадьевич | X29: Школа №68 | Y29: Приволжский район
A30: 29 | B30: Ново-Савиновский район | C30: МБОУ "Гимназия №155 с татарским языком обучения" Ново-Савиновского района г. Казани" | D30: Вагизова | E30: С. | F30: И. | G30: Ж | H30: 14.10.2005 | I30: 9 | J30: 9 | K30: 35 | L30: 18.42105263 | M30: 9.13,3 | N30: 553.3 | O30: 30.78709561 | P30: 16.6 | Q30: 29.05 | R30: 78.25814824 | T30: 78.25814824 | U30: 100 | V30: Призер | W30: Галиев МарсельВазихович | X30: Муниципальное бюджетное общеобразовательное учреждение "Гимназия №155 с татарским языком обучения" Ново-Савиновского района г. Казани" | Y30: Ново-Савиновский район
A31: 30 | B31: Вахитовский район | C31: МБОУ "Лицей №116 имени Героя Советского Союза А.С. Умеркина" Вахитовского района г. Казани" | D31: Егорова | E31: К. | F31: О. | G31: Ж | H31: 27.08.2004 | I31: 10 | J31: 10 | K31: 27 | L31: 14.21052632 | M31: 8.26,9 | N31: 506.9 | O31: 33.60524758 | P31: 17.3 | Q31: 30.275 | R31: 78.0907739 | T31: 78.0907739 | U31: 100 | V31: Призер | W31: Киямутдинова ЮлдузМаратовна | X31: Муниципальное бюджетное общеобразовательное учреждение "Лицей №116 имени Героя Советского Союза А.С. Умеркина" Вахитовского района г. Казани" | Y31: Вахитовский район
A32: 31 | B32: Советский район | C32: МБОУ "Гимназия № 20 имени Абдуллы Алиша" Советского района города Казани" | D32: Галиахметова | E32: Э. | F32: И. | G32: Ж | H32: 25.01.2005 | I32: 9 | J32: 9 | K32: 27.5 | L32: 14.47368421 | M32: 9.23,4 | N32: 563.4 | O32: 30.23517927 | P32: 19 | Q32: 33.25 | R32: 77.95886348 | T32: 77.95886348 | U32: 100 | V32: Призер | W32: Тимерханов РустемХанифович | X32: Муниципальное бюджетное общеобразовательное учреждение "Гимназия № 20 имени Абдуллы Алиша" Советского района города Казани" | Y32: Советский район
A33: 32 | B33: Кировский район | C33: МБОУ "Военно-патриотический образовательный центр - школа № 67" Кировского района города Казани | D33: Королева | E33: П. | F33: Г. | G33: Ж | H33: 14.06.2004 | I33: 10 | J33: 10 | K33: 33 | L33: 17.36842105 | M33: 9.57,9 | N33: 597.9 | O33: 28.49055026 | P33: 18.1 | Q33: 31.675 | R33: 77.53397131 | T33: 77.53397131 | U33: 100 | V33: Призер | W33: Муртазин ИльгизарИсмагилович | X33: Муниципальное бюджетное общеобразовательное учреждение "Военно-патриотический образовательный центр - школа № 67" Кировского района города Казани | Y33: Кировский район
A34: 33 | B34: Авиастроительный район | C34: МБОУ "Средняя общеобразовательная школа №60" Авиастроительного района г.Казани" | D34: Яштуганова | E34: А. | F34: С. | G34: Ж | H34: 10.07.2005 | I34: 9 | J34: 9 | K34: 27.5 | L34: =30*K34/57 -> 14.47368421 | M34: 9.30,3 | N34: 570.3 | O34: =35*486.7/N34 -> 29.869367 | P34: 18.9 | Q34: =35*P34/20 -> 33.075 | R34: =L34+O34+Q34 -> 77.41805121 | T34: 77.41805121 | U34: 100 | V34: Призер | W34: Семагина СветланаВладимировна | X34: Муниципальное бюджетное общеобразовательное учреждение "Средняя общеобразовательная школа №60" Авиастроительного района г.Казани" | Y34: Авиастроительный район
A35: 34 | B35: Авиастроительный район | C35: МБОУ "Средняя общеобразовательная школа № 77" Авиастроительного района г.Казани" | D35: Асманова | E35: А. | F35: А. | G35: Ж | H35: 25.09.2005 | I35: 9 | J35: 9 | K35: 36.5 | L35: 19.21052632 | M35: 10.07,8 | N35: 607.8 | O35: 28.02648898 | P35: 17.1 | Q35: 29.925 | R35: 77.16201529 | T35: 77.16201529 | U35: 100 | V35: Участник | W35: Бикмуллин ДинарМунирович | X35: Муниципальное бюджетное общеобразовательное учреждение "Средняя общеобразовательная школа № 77" Авиастроительного района г.Казани" | Y35: Авиастроительный район
A36: 35 | B36: Советский район | C36: МАОУ "Лицей №121 имени Героя Советского Союза С.А.Ахтямова" Советского района г.Казани | D36: Якупова | E36: К. | F36: А. | G36: Ж | H36: 31.07.2005 | I36: 9 | J36: 9 | K36: 36 | L36: 18.94736842 | M36: 9.17,6 | N36: 557.6 | O36: 30.54967719 | P36: 15.7 | Q36: 27.475 | R36: 76.97204561 | T36: 76.97204561 | U36: 100 | V36: Участник | W36: Слободчиков СергейЛьвович | X36: Муниципальное автономное общеобразовательное учреждение "Лицей №121 имени Героя Советского Союза С.А.Ахтямова" Советского района г.Казани | Y36: Советский район
A37: 36 | B37: Кировский район | C37: МБОУ "Русско-татарская средняя общеобразовательная школа №81 с углубленным изучением отдельных предметов имени В.А.Григорьева" | D37: Плясунова | E37: М. | F37: С. | G37: Ж | H37: 12.01.2005 | I37: 9 | J37: 9 | K37: 22 | L37: 11.57894737 | M37: 8.44,5 | N37: 522.5 | O37: 32.60191388 | P37: 18.7 | Q37: 32.725 | R37: 76.90586124 | T37: 76.90586124 | U37: 100 | V37: Участник | W37: Черепанова ВалентинаВасильевна | X37: Муниципальное бюджетное общеобразовательное учреждение "Русско-татарская средняя общеобразовательная школа №81 с углубленным изучением отдельных предметов имени В.А.Григорьева" | Y37: Кировский район
A38: 37 | B38: Приволжский район | C38: МБОУ "Средняя общеобразовательная школа №114" | D38: Мифтахова | E38: К. | F38: В. | G38: Ж | H38: 2004-11-01 | I38: 9 | J38: 9 | K38: 34 | L38: 17.89473684 | M38: 10.04,0 | N38: 604 | O38: 28.20281457 | P38: 17.6 | Q38: 30.8 | R38: 76.89755141 | T38: 76.89755141 | U38: 100 | V38: Участник | W38: Хабиров Рафик Рафаэлевич | X38: МБОУСОШ №114» Приволжского района | Y38: Приволжский район
A39: 38 | B39: Приволжский район | C39: МБОУ "Русско-татарская средняя общеобразовательная школа №129" | D39: Сазгетдинова | E39: К. | F39: А. | G39: Ж | H39: 18.11.2002 | I39: 11 | J39: 11 | K39: 20.5 | L39: 10.78947368 | M39: 8.31,1 | N39: 511.1 | O39: 33.32909411 | P39: 18.3 | Q39: 32.025 | R39: 76.14356779 | T39: 76.14356779 | U39: 100 | V39: Участник | W39: Абзалов ГумерМиншакирович | X39: Муниципальное бюджетное общеобразовательное учреждение "Русско-татарская средняя общеобразовательная школа №129" | Y39: Приволжский район
A40: 39 | B40: Советский район | C40: МБОУ "Гимназия № 90" Советского района г.Казани" | D40: Гусева | E40: Р. | F40: Е. | G40: Ж | H40: 27.10.2003 | I40: 11 | J40: 11 | K40: 32 | L40: 16.84210526 | M40: 8.57,5 | N40: 537.5 | O40: 31.69209302 | P40: 15.5 | Q40: 27.125 | R40: 75.65919829 | T40: 75.65919829 | U40: 100 | V40: Участник | W40: Крылов НиколайСергеевич | X40: Муниципальное бюджетное общеобразовательное учреждение "Гимназия № 90" Советского района г.Казани" | Y40: Советский район
A41: 40 | B41: Вахитовский район | C41: МАОУ "Лицей №131" | D41: Спирина | E41: А. | F41: А. | G41: Ж | H41: 17.01.2005 | I41: 10 | J41: 10 | K41: 36 | L41: 18.94736842 | M41: 10.15,,8 | N41: 615.8 | O41: 27.66239039 | P41: 16.4 | Q41: 28.7 | R41: 75.30975881 | T41: 75.30975881 | U41: 100 | V41: Участник | W41: Пожидаева АидаТагировна | X41: Муниципальное автономное общеобразовательное учреждение "Лицей №131" | Y41: Вахитовский район
A42: 41 | B42: Авиастроительный район | C42: МБОУ "Средняя общеобразовательная школа № 54 с углубленным изучением отдельных предметов" Авиастроительного района г.Казани" | D42: Саматова | E42: А. | F42: Р. | G42: Ж | H42: 16.01.2003 | I42: 11 | J42: 11 | K42: 20 | L42: 10.52631579 | M42: 9.07,5 | N42: 547.5 | O42: 31.11324201 | P42: 19.1 | Q42: 33.425 | R42: 75.0645578 | T42: 75.0645578 | U42: 100 | V42: Участник | W42: Шинкарева ЛидияВикторовна | X42: Муниципальное бюджетное общеобразовательное учреждение "Средняя общеобразовательная школа № 54 с углубленным изучением отдельных предметов" Авиастроительного района г.Казани" | Y42: Авиастроительный район
A43: 42 | B43: Вахитовский район | C43: МБОУ "Гимназия №96" | D43: Чувашаева | E43: М. | F43: Ю. | G43: Ж | H43: 09.12.2004 | I43: 10 | J43: 10 | K43: 27 | L43: 14.21052632 | M43: 8.22,7 | N43: 502.7 | O43: 33.88601552 | P43: 15.4 | Q43: 26.95 | R43: 75.04654183 | T43: 75.04654183 | U43: 100 | V43: Участник | W43: Самарина ИринаВаделеновна | X43: Муниципальное бюджетное общеобразовательное учреждение "Гимназия №96" | Y43: Вахитовский район
A44: 43 | B44: Авиастроительный район | C44: МБОУ "Средняя общеобразовательная школа №119" Авиастроительного района г.Казани" | D44: Павлова | E44: А. | F44: М. | G44: Ж | H44: 14.03.2003 | I44: 11 | J44: 11 | K44: 33.5 | L44: 17.63157895 | M44: 10.43,6 | N44: 643.6 | O44: 26.46752641 | P44: 17.6 | Q44: 30.8 | R44: 74.89910536 | T44: 74.89910536 | U44: 100 | V44: Участник | W44: Павлова АльбинаНиколаевна | X44: Муниципальное бюджетное общеобразовательное учреждение "Средняя общеобразовательная школа №119" Авиастроительного района г.Казани" | Y44: Авиастроительный район
A45: 44 | B45: Авиастроительный район | C45: МБОУ "Средняя общеобразовательная русско-татарская школа № 147" Авиастроительного района г.Казани" | D45: Салахова | E45: С. | F45: О. | G45: Ж | H45: 26.01.2005 | I45: 9 | J45: 9 | K45: 34.5 | L45: 18.15789474 | M45: 9.40,2 | N45: 580.2 | O45: 29.35970355 | P45: 15.5 | Q45: 27.125 | R45: 74.64259829 | T45: 74.64259829 | U45: 100 | V45: Участник | W45: Яшина ЕкатеринаЮрьевна | X45: Муниципальное бюджетное общеобразовательное учреждение "Средняя общеобразовательная русско-татарская школа № 147" Авиастроительного района г.Казани" | Y45: Авиастроительный район
A46: 45 | B46: Кировский район | C46: МБОУ "Средняя общеобразовательная школа №153" Кировского района г. Казани | D46: Нестерова | E46: С. | F46: Е. | G46: Ж | H46: 07.01.2003 | I46: 11 | J46: 11 | K46: 28 | L46: 14.73684211 | M46: 8.18,6 | N46: 498.6 | O46: 34.16466105 | P46: 14.6 | Q46: 25.55 | R46: 74.45150316 | T46: 74.45150316 | U46: 100 | V46: Участник | W46: Васильев АндрейАлексеевич | X46: Муниципальное бюджетное общеобразовательное учреждение "Средняя общеобразовательная школа №153" Кировского района г. Казани | Y46: Кировский район
A47: 46 | B47: Авиастроительный район | C47: МАОУ "Гимназия №37" Авиастроительного района г.Казани" | D47: Тухватуллина | E47: Д. | F47: М. | G47: Ж | H47: 08.10.2003 | I47: 11 | J47: 11 | K47: 30.5 | L47: 16.05263158 | M47: 10.55,4 | N47: 655.4 | O47: 25.99099786 | P47: 18.3 | Q47: 32.025 | R47: 74.06862944 | T47: 74.06862944 | U47: 100 | V47: Участник | W47: Курбанова НаиляАхметовна | X47: Муниципальное автономное общеобразовательное учреждение "Гимназия №37" Авиастроительного района г.Казани" | Y47: Авиастроительный район
A48: 47 | B48: Советский район | C48: МБОУ "Лицей № 159" Советского района г.Казани" | D48: Хабибуллина | E48: А. | F48: Р. | G48: Ж | H48: 04.10.2003 | I48: 11 | J48: 11 | K48: 39 | L48: 20.52631579 | M48: 9.46,7 | N48: 586.7 | O48: 29.03442986 | P48: 14 | Q48: 24.5 | R48: 74.06074565 | T48: 74.06074565 | U48: 100 | V48: Участник | W48: Медова Елена Сергеевна | X48: Муниципальное бюджетное общеобразовательное учреждение "Лицей № 159" Советского района г.Казани" | Y48: Советский район
A49: 48 | B49: Авиастроительный район | C49: МБОУ "Гимназия №5" | D49: Гатиятуллина | E49: С. | F49: Р. | G49: Ж | H49: 06.09.2003 | I49: 11 | J49: 11 | K49: 39 | L49: 20.52631579 | M49: 12.08,0 | N49: 728 | O49: 23.39903846 | P49: 17.2 | Q49: 30.1 | R49: 74.02535425 | T49: 74.02535425 | U49: 100 | V49: Участник | W49: Шакирова НазияАглулловна | X49: Муниципальное бюджетное общеобразовательное учреждение "Гимназия №5" | Y49: Авиастроительный район
A50: 49 | B50: Кировский район | C50: МБОУ "Средняя общеобразовательная школа №70 с углубленным изучениемотдельных предметов" Кировского района г. Казани" | D50: Шарафиева | E50: Н. | F50: Р. | G50: Ж | H50: 17.06.2004 | I50: 10 | J50: 10 | K50: 19.5 | L50: 10.26315789 | M50: 9.33,4 | N50: 573.4 | O50: 29.7078828 | P50: 19.3 | Q50: 33.775 | R50: 73.7460407 | T50: 73.7460407 | U50: 100 | V50: Участник | W50: Семенова АринаВладимировна | X50: Муниципальное бюджетное общеобразовательное учреждение "Средняя общеобразовательная школа №70 с углубленным изучениемотдельных предметов" Кировского района г. Казани" | Y50: Кировский район
A51: 50 | B51: Ново-Савиновский район | C51: МБОУ "Лицей №23" Ново-Савиновского района г.Казани" | D51: Матвеева | E51: А. | F51: Е. | G51: Ж | H51: 30.10.2004 | I51: 10 | J51: 10 | K51: 26.5 | L51: 13.94736842 | M51: 9.37,5 | N51: 577.5 | O51: 29.4969697 | P51: 17.3 | Q51: 30.275 | R51: 73.71933812 | T51: 73.71933812 | U51: 100 | V51: Участник | W51: Мамлютова АлинаСергеевна | X51: Муниципальное бюджетное общеобразовательное учреждение "Лицей №23" Ново-Савиновского района г.Казани" | Y51: Ново-Савиновский район
A52: 51 | B52: Ново-Савиновский район | C52: ГАОУ "Полилингвальный комплекс "Адымнар - путь к знаниям и согласию" г. Казани" | D52: Шакирова | E52: А. | F52: Л. | G52: Ж | H52: 20.02.2005 | I52: 9 | J52: 9 | K52: 35 | L52: 18.42105263 | M52: 9.22,3 | N52: 562.3 | O52: 30.29432687 | P52: 14.2 | Q52: 24.85 | R52: 73.5653795 | T52: 73.5653795 | U52: 100 | V52: Участник | W52: Кривова ИринаВладимировна | X52: Государственное автономное общеобразовательное учреждение "Полилингвальный комплекс "Адымнар - путь к знаниям и согласию" г. Казани" | Y52: Ново-Савиновский район
A53: 52 | B53: Приволжский район | C53: МБОУ "Гимназия №6" | D53: Семенова | E53: Е. | F53: С. | G53: Ж | H53: 28.11.2003 | I53: 10 | J53: 10 | K53: 35.5 | L53: 18.68421053 | M53: 12.15,5 | N53: 735.5 | O53: 23.16043508 | P53: 18.1 | Q53: 31.675 | R53: 73.5196456 | T53: 73.5196456 | U53: 100 | V53: Участник | W53: Кокуркина ЛюбовьСеменовна | X53: Муниципальное бюджетное общеобразовательное учреждение "Гимназия №6" | Y53: Приволжский район
A54: 53 | B54: Советский район | C54: МБОУ "Гимназия № 8 -Центр образования" Советского района г. Казани" | D54: Чемодурова | E54: А. | F54: Ф. | G54: Ж | H54: 15.05.2005 | I54: 9 | J54: 9 | K54: 30.5 | L54: 16.05263158 | M54: 11.29,2 | N54: 689.2 | O54: 24.71633778 | P54: 18.6 | Q54: 32.55 | R54: 73.31896936 | T54: 73.31896936 | U54: 100 | V54: Участник | W54: Суслова ЕленаАлександровна | X54: Муниципальное бюджетное общеобразовательное учреждение "Гимназия № 8 -Центр образования" Советского района г. Казани" | Y54: Советский район
A55: 54 | B55: Советский район | C55: МБОУ "Средняя общеобразовательная школа №167 с углубленным изучением отдельных предметов" Советского района г. Казани | D55: Урусова | E55: А. | F55: А. | G55: Ж | H55: 01.01.2004 | I55: 10 | J55: 10 | K55: 25 | L55: 13.15789474 | M55: 8.39,6 | N55: 519.6 | O55: 32.78387221 | P55: 15.5 | Q55: 27.125 | R55: 73.06676695 | T55: 73.06676695 | U55: 100 | V55: Участник | W55: Иванова НаталияГеннадьевна | X55: Муниципальное бюджетное общеобразовательное учреждение "Средняя общеобразовательная школа №167 с углубленным изучением отдельных предметов" Советского района г. Казани | Y55: Советский район
A56: 55 | B56: Ново-Савиновский район | C56: МБОУ "Средняя общеобразовательная татарско-русская школа №113 с углубленным изучением отдельных предметов имени Героя России М.Р.Ахметшина" Ново-Савиновского района г. Казани" | D56: Арсланова | E56: Л. | F56: З. | G56: Ж | H56: 2004-02-05 | I56: 10 | J56: 10 | K56: 34.5 | L56: 18.15789474 | M56: 10.11,5 | N56: 611.5 | O56: 27.85690924 | P56: 15.3 | Q56: 26.775 | R56: 72.78980398 | T56: 72.78980398 | U56: 100 | V56: Участник | W56: Рыжов АлександрВасильевич | X56: Муниципальное бюджетное общеобразовательное учреждение "Средняя общеобразовательная татарско-русская школа №113 с углубленным изучением отдельных предметов имени Героя России М.Р.Ахметшина" Ново-Савиновского района г. Казани" | Y56: Ново-Савиновский район
A57: 56 | B57: Авиастроительный район | C57: МБОУ "Гимназия №36" Авиастроительного района г.Казани" | D57: Бусырева | E57: А. | F57: Е. | G57: Ж | H57: 16.07.2005 | I57: 9 | J57: 9 | K57: 25 | L57: 13.15789474 | M57: 9.31,5 | N57: 571.5 | O57: 29.80664917 | P57: 16.9 | Q57: 29.575 | R57: 72.53954391 | T57: 72.53954391 | U57: 100 | V57: Участник | W57: Мартынова ТатьянаГеоргиевна | X57: Муниципальное бюджетное общеобразовательное учреждение "Гимназия №36" Авиастроительного района г.Казани" | Y57: Авиастроительный район
A58: 57 | B58: Приволжский район | C58: МБОУ "Средняя общеобразовательная школа №24 с углубленным изучением отдельных предметов" | D58: Кадырова | E58: К. | F58: З. | G58: Ж | H58: 18.11.2005 | I58: 9 | J58: 9 | K58: 17.5 | L58: 9.210526316 | M58: 9.50,6 | N58: 590.6 | O58: 28.84270234 | P58: 19.5 | Q58: 34.125 | R58: 72.17822865 | T58: 72.17822865 | U58: 100 | V58: Участник | W58: Сенюхин СергейГеннадьевич | X58: Муниципальное бюджетное общеобразовательное учреждение "Средняя общеобразовательная школа №24 с углубленным изучением отдельных предметов" | Y58: Приволжский район
A59: 58 | B59: Кировский район | C59: МБОУ "Гимназия №4 с татарским языком обучения" Кировского района г. Казани" | D59: Постаромова | E59: В. | F59: А. | G59: Ж | H59: 26.04.2005 | I59: 9 | J59: 9 | K59: 14 | L59: 7.368421053 | M59: 9.01,3 | N59: 541.3 | O59: 31.4696102 | P59: 19 | Q59: 33.25 | R59: 72.08803125 | T59: 72.08803125 | U59: 100 | V59: Участник | W59: Сибгатуллин РусланДанилович | X59: Муниципальное бюджетное общеобразовательное учреждение "Гимназия №4 с татарским языком обучения" Кировского района г. Казани" | Y59: Кировский район
A60: 59 | B60: Советский район | C60: МБОУ "Средняя общеобразовательная школа № 22 с углубленным изучением отдельных предметов - Центр образования" Советского района г.Казани" | D60: Левицкова | E60: А. | F60: А. | G60: Ж | H60: 26.06.2004 | I60: 10 | J60: 10 | K60: 33.5 | L60: 17.63157895 | M60: 9.44,3 | N60: 584.3 | O60: 29.15368817 | P60: 14.4 | Q60: 25.2 | R60: 71.98526712 | T60: 71.98526712 | U60: 100 | V60: Участник | W60: Раззакова МаликаСабуровна | X60: Муниципальное бюджетное общеобразовательное учреждение "Средняя общеобразовательная школа № 22 с углубленным изучением отдельных предметов - Центр образования" Советского района г.Казани" | Y60: Советский район
A61: 60 | B61: Советский район | C61: МБОУ "Средняя общеобразовательная школа № 86 с углубленным изучением отдельных предметов" Советского района г.Казани" | D61: Олейник | E61: К. | F61: Д. | G61: Ж | H61: 20.12.2004 | I61: 9 | J61: 9 | K61: 30 | L61: 15.78947368 | M61: 10.16,9 | N61: 616.9 | O61: 27.61306533 | P61: 16.2 | Q61: 28.35 | R61: 71.75253901 | T61: 71.75253901 | U61: 100 | V61: Участник | W61: Каюмов РамильДаярович | X61: Муниципальное бюджетное общеобразовательное учреждение "Средняя общеобразовательная школа № 86 с углубленным изучением отдельных предметов" Советского района г.Казани" | Y61: Советский район
A62: 61 | B62: Ново-Савиновский район | C62: МБОУ "Средняя общеобразовательная школа №89 с углубленным изучением отдельных предметов" Ново-Савиновского района г. Казани" | D62: Матюшкина | E62: К. | F62: В. | G62: Ж | H62: 22.05.2005 | I62: 9 | J62: 9 | K62: 17.5 | L62: 9.210526316 | M62: 9.39,7 | N62: 579.7 | O62: 29.38502674 | P62: 18.6 | Q62: 32.55 | R62: 71.14555305 | T62: 71.14555305 | U62: 100 | V62: Участник | W62: Арютин АлександрНиколаевич | X62: Муниципальное бюджетное общеобразовательное учреждение "Средняя общеобразовательная школа №89 с углубленным изучением отдельных предметов" Ново-Савиновского района г. Казани" | Y62: Ново-Савиновский район
A63: 62 | B63: Ново-Савиновский район | C63: МБОУ "Гимназия №179 - центр образования" Ново-Савиновского района г.Казани" | D63: Гадельшина | E63: А. | F63: Р. | G63: Ж | H63: 28.03.2005 | I63: 9 | J63: 9 | K63: 18 | L63: 9.473684211 | M63: 9.42,3 | N63: 582.3 | O63: 29.25382105 | P63: 18.5 | Q63: 32.375 | R63: 71.10250526 | T63: 71.10250526 | U63: 100 | V63: Участник | W63: Ваниев ЭнверСаидович | X63: Муниципальное бюджетное общеобразовательное учреждение "Гимназия №179 - центр образования" Ново-Савиновского района г.Казани" | Y63: Ново-Савиновский район
A64: 63 | B64: Приволжский район | C64: МБОУ "Гимназия №18 с татарским языком обучения" Приволжского района г.Казани" | D64: Шайхеева | E64: А. | F64: А. | G64: Ж | H64: 06.04.2005 | I64: 9 | J64: 9 | K64: 17.5 | L64: 9.210526316 | M64: 9.19,9 | N64: 559.9 | O64: 30.42418289 | P64: 17.8 | Q64: 31.15 | R64: 70.78470921 | T64: 70.78470921 | U64: 100 | V64: Участник | W64: Максимова ЕленаИвановна | X64: Муниципальное бюджетное общеобразовательное учреждение "Гимназия №18 с татарским языком обучения" Приволжского района г.Казани" | Y64: Приволжский район
A65: 64 | B65: Кировский район | C65: МБОУ "Средняя общеобразовательная школа №137 с углубленным изучением отдельных предметов"Кировского района г.Казани" | D65: Габдуллина | E65: Л. | F65: Р. | G65: Ж | H65: 30.03.2004 | I65: 10 | J65: 10 | K65: 27.5 | L65: 14.47368421 | M65: 9.45,5 | N65: 585.5 | O65: 29.09393681 | P65: 15.5 | Q65: 27.125 | R65: 70.69262102 | T65: 70.69262102 | U65: 100 | V65: Участник | W65: Хайруллина ЛейсанРустэмовна | X65: Муниципальное бюджетное общеобразовательное учреждение "Средняя общеобразовательная школа №137 с углубленным изучением отдельных предметов"Кировского района г.Казани" | Y65: Кировский район
A66: 65 | B66: Авиастроительный район | C66: МБОУ "Средняя общеобразовательная школа с углубленным изучением отдельных предметов №62" Авиастроительного района г.Казани" | D66: Каримова | E66: Э. | F66: Р. | G66: Ж | H66: 23.07.2005 | I66: 9 | J66: 9 | K66: 30.5 | L66: =30*K66/57 -> 16.05263158 | M66: 9.26,2 | N66: 566.2 | O66: =35*486.7/N66 -> 30.08565878 | P66: 14 | Q66: =35*P66/20 -> 24.5 | R66: =L66+O66+Q66 -> 70.63829036 | T66: 70.63829036 | U66: 100 | V66: Участник | W66: Нурмиева РинатаМаратовна | X66: Муниципальное бюджетное общеобразовательное учреждение "Средняя общеобразовательная школа с углубленным изучением отдельных предметов №62" Авиастроительного района г.Казани" | Y66: Авиастроительный район
A67: 66 | B67: Приволжский район | C67: МБОУ "Лицей №35 - образовательный центр "Галактика" Приволжского района города Казани" | D67: Капкаева | E67: Н. | F67: М. | G67: Ж | H67: 31.03.2005 | I67: 9 | J67: 9 | K67: 27 | L67: 14.21052632 | M67: 11.02,6 | N67: 662.6 | O67: 25.70857229 | P67: 17.3 | Q67: 30.275 | R67: 70.19409861 | T67: 70.19409861 | U67: 100 | V67: Участник | W67: Хузиахметова ИринаИльинична | X67: Муниципальное бюджетное общеобразовательное учреждение "Лицей №35 - образовательный центр "Галактика" Приволжского района города Казани" | Y67: Приволжский район
A68: 67 | B68: Советский район | C68: МБОУ "Средняя общеобразовательная школа №167 с углубленным изучением отдельных предметов" Советского района г. Казани | D68: Гильфанетдинова | E68: А. | F68: И. | G68: Ж | H68: 29.09.2007 | I68: 9 | J68: 9 | K68: 24.5 | L68: 12.89473684 | M68: 9.59,8 | N68: 599.8 | O68: 28.4003001 | P68: 16.5 | Q68: 28.875 | R68: 70.17003694 | T68: 70.17003694 | U68: 100 | V68: Участник | W68: Юсупов МаратРашитович | X68: Муниципальное бюджетное общеобразовательное учреждение "Средняя общеобразовательная школа №167 с углубленным изучением отдельных предметов" Советского района г. Казани | Y68: Советский район
A69: 68 | B69: Авиастроительный район | C69: МБОУ "Лицей №145" Авиастроительного района г.Казани" | D69: Мартынова | E69: К. | F69: К. | G69: Ж | H69: 30.11.2005 | I69: 9 | J69: 9 | K69: 30.5 | L69: 16.05263158 | M69: 9.40,2 | N69: 580.2 | O69: 29.35970355 | P69: 14 | Q69: 24.5 | R69: 69.91233513 | T69: 69.91233513 | U69: 100 | V69: Участник | W69: Семагин АлександрАлексеевич | X69: Муниципальное бюджетное общеобразовательное учреждение "Лицей №145" Авиастроительного района г.Казани" | Y69: Авиастроительный район
A70: 69 | B70: Советский район | C70: МБОУ "Многопрофильная школа №181" Советского района г. Казани" | D70: Шарипова | E70: А. | F70: А. | G70: Ж | H70: 01.09.2004 | I70: 10 | J70: 10 | K70: 17.5 | L70: 9.210526316 | M70: 10.17,5 | N70: 617.5 | O70: 27.58623482 | P70: 18.9 | Q70: 33.075 | R70: 69.87176113 | T70: 69.87176113 | U70: 100 | V70: Участник | W70: Шигапова ЕленаВитальевна | X70: Муниципальное бюджетное общеобразовательное учреждение "Многопрофильная школа №181" Советского района г. Казани" | Y70: Советский район
A71: 70 | B71: Московский район | C71: МБОУ "Средняя общеобразовательная татарско-русская школа №65 с углубленным изучением отдельных предметов " Московского района г.Казани | D71: Кузьмичева | E71: А. | F71: А. | G71: Ж | H71: 27.06.2005 | I71: 9 | J71: 9 | K71: 24.5 | L71: 12.89473684 | M71: 9.02,5 | N71: 542.5 | O71: 31.4 | P71: 14.5 | Q71: 25.375 | R71: 69.66973684 | T71: 69.66973684 | U71: 100 | V71: Участник | W71: Половников ВалерийНиколаевич | X71: Муниципальное бюджетное общеобразовательное учреждение "Средняя общеобразовательная татарско-русская школа №65 с углубленным изучением отдельных предметов " Московского района г.Казани | Y71: Московский район
A72: 71 | B72: Приволжский район | C72: МБОУ "Средняя общеобразовательная школа №69" | D72: Имангулова | E72: Р. | F72: Д. | G72: Ж | H72: 06.04.2003 | I72: 11 | J72: 11 | K72: 14 | L72: 7.368421053 | M72: 10.14,6 | N72: 614.6 | O72: 27.71640091 | P72: 19.5 | Q72: 34.125 | R72: 69.20982196 | T72: 69.20982196 | U72: 100 | V72: Участник | W72: Князева ИринаЮрьевна | X72: Муниципальное бюджетное общеобразовательное учреждение "Средняя общеобразовательная школа №69" | Y72: Приволжский район
A73: 72 | B73: Советский район | C73: МБОУ "Лицей № 149 с татарским языком обучения" Советского района г.Казани" | D73: Комарова | E73: А. | F73: Р. | G73: Ж | H73: 24.06.2005 | I73: 9 | J73: 9 | K73: 26.5 | L73: 13.94736842 | M73: 9.40,5 | N73: 580.5 | O73: 29.34453058 | P73: 14.8 | Q73: 25.9 | R73: 69.191899 | T73: 69.191899 | U73: 100 | V73: Участник | W73: Закиров РанисРаисович | X73: Муниципальное бюджетное общеобразовательное учреждение "Лицей № 149 с татарским языком обучения" Советского района г.Казани" | Y73: Советский район
A74: 73 | B74: Московский район | C74: МБОУ "Средняя общеобразовательная татарско-русская школа № 34 " Московского района г.Казани" | D74: Исхакова | E74: К. | F74: И. | G74: Ж | H74: 11.04.2004 | I74: 10 | J74: 10 | K74: 16 | L74: 8.421052632 | M74: 9.32,1 | N74: 572.1 | O74: 29.77538892 | P74: 17.5 | Q74: 30.625 | R74: 68.82144155 | T74: 68.82144155 | U74: 100 | V74: Участник | W74: Волков АндрейВячеславович | X74: Муниципальное бюджетное общеобразовательное учреждение "Средняя общеобразовательная татарско-русская школа № 34 " Московского района г.Казани" | Y74: Московский район
A75: 74 | B75: Московский район | C75: МБОУ "Гимназия №20"Гармония" Московского района г.Казани" | D75: Вершинина | E75: Е. | F75: Н. | G75: Ж | H75: 12.12.2005 | I75: 9 | J75: 9 | K75: 25.5 | L75: 13.42105263 | M75: 10.12,1 | N75: 612.1 | O75: 27.82960301 | P75: 15.7 | Q75: 27.475 | R75: 68.72565564 | T75: 68.72565564 | U75: 100 | V75: Участник | W75: Колоярцев АндрейАлександрович | X75: Муниципальное бюджетное общеобразовательное учреждение "Гимназия №20"Гармония" Московского района г.Казани" | Y75: Московский район
A76: 75 | B76: Московский район | C76: МБОУ "Гимназия № 122 имени Ж.А.Зайцевой"Московского района г. Казани" | D76: Бочкарева | E76: А. | F76: Е. | G76: Ж | H76: 22.02.2006 | I76: 9 | J76: 9 | K76: 17 | L76: 8.947368421 | M76: 9.07,3 | N76: 547.3 | O76: 31.12461173 | P76: 16.3 | Q76: 28.525 | R76: 68.59698015 | T76: 68.59698015 | U76: 100 | V76: Участник | W76: Приказчикова ТатьянаВикторовна | X76: Муниципальное бюджетное общеобразовательное учреждение "Гимназия № 122 имени Ж.А.Зайцевой"Московского района г. Казани" | Y76: Московский район
A77: 76 | B77: Советский район | C77: МБОУ "Многопрофильная полилингвальная гимназия №180" Советского района г. Казани" | D77: Хисамиева | E77: А. | F77: И. | G77: Ж | H77: 21.03.2003 | I77: 11 | J77: 11 | K77: 35 | L77: 18.42105263 | M77: 13.14,0 | N77: 794 | O77: 21.45403023 | P77: 16.3 | Q77: 28.525 | R77: 68.40008286 | T77: 68.40008286 | U77: 100 | V77: Участник | W77: Яшина ЛюдмилаАнатольевна | X77: Муниципальное бюджетное общеобразовательное учреждение "Многопрофильная полилингвальная гимназия №180" Советского района г. Казани" | Y77: Советский район
A78: 77 | B78: Кировский район | C78: МБОУ "Политехнический лицей № 182" | D78: Свергузова | E78: А. | F78: В. | G78: Ж | H78: 05.04.2003 | I78: 11 | J78: 11 | K78: 30.5 | L78: 16.05263158 | M78: 10.23,4 | N78: 623.4 | O78: 27.32515239 | P78: 14.2 | Q78: 24.85 | R78: 68.22778397 | T78: 68.22778397 | U78: 100 | V78: Участник | W78: Антонова СнежанаНиколаевна | X78: МБОУ "Политехнический лицей № 182" | Y78: Кировский район
A79: 78 | B79: Ново-Савиновский район | C79: МБОУ "Гимназия № 13 с татарским языком обучения" Ново-Савиновского района г. Казани | D79: Фазылзянова | E79: Э. | F79: Р. | G79: Ж | H79: 14.02.2004 | I79: 10 | J79: 10 | K79: 16.5 | L79: 8.684210526 | M79: 9.46,6 | N79: 586.6 | O79: 29.03937947 | P79: 17.4 | Q79: 30.45 | R79: 68.17359 | T79: 68.17359 | U79: 100 | V79: Участник | W79: Баранова АльбинаАльбертовна | X79: Муниципальное бюджетное общеобразовательное учреждение "Гимназия № 13 с татарским языком обучения" Ново-Савиновского района г. Казани | Y79: Ново-Савиновский район
A80: 79 | B80: Советский район | C80: МБОУ «Гимназия № 183» Советского района г.Казани | D80: Галиуллина | E80: А. | F80: И. | G80: Ж | H80: 09.01.2005 | I80: 10 | J80: 10 | K80: 24.5 | L80: 12.89473684 | M80: 12.24,6 | N80: 744.6 | O80: 22.87738383 | P80: 18 | Q80: 31.5 | R80: 67.27212067 | T80: 67.27212067 | U80: 100 | V80: Участник | W80: Шарипзянова ЛилияВалерьевна | X80: Муниципальное бюджетное общеобразовательное учреждение «Гимназия № 183» Советского района г.Казани | Y80: Советский район
A81: 80 | B81: Московский район | C81: МБОУ "Гимназия № 122 имени Ж.А.Зайцевой"Московского района г. Казани" | D81: Косимова | E81: С. | F81: С. | G81: Ж | H81: 03.11.2004 | I81: 10 | J81: 10 | K81: 18.5 | L81: 9.736842105 | M81: 9.52,9 | N81: 592.9 | O81: 28.73081464 | P81: 16.3 | Q81: 28.525 | R81: 66.99265675 | T81: 66.99265675 | U81: 100 | V81: Участник | W81: Приказчикова ТатьянаВикторовна | X81: Муниципальное бюджетное общеобразовательное учреждение "Гимназия № 122 имени Ж.А.Зайцевой"Московского района г. Казани" | Y81: Московский район
A82: 81 | B82: Советский район | C82: МБОУ "Средняя общеобразовательная школа № 22 с углубленным изучением отдельных предметов - Центр образования" Советского района г.Казани" | D82: Самигуллина | E82: М. | F82: Х. | G82: Ж | H82: 10.01.2006 | I82: 9 | J82: 9 | K82: 24.5 | L82: 12.89473684 | M82: 11.12,7 | N82: 672.7 | O82: 25.32258065 | P82: 16.4 | Q82: 28.7 | R82: 66.91731749 | T82: 66.91731749 | U82: 100 | V82: Участник | W82: Жиряева РахиляРашитовна | X82: Муниципальное бюджетное общеобразовательное учреждение "Средняя общеобразовательная школа № 22 с углубленным изучением отдельных предметов - Центр образования" Советского района г.Казани" | Y82: Советский район
A83: 82 | B83: Ново-Савиновский район | C83: МБОУ "Средняя общеобразовательная школа №49" Ново-Савиновского района г.Казани" | D83: Валеева | E83: С. | F83: Р. | G83: Ж | H83: 21.04.2005 | I83: 9 | J83: 9 | K83: 19.5 | L83: 10.26315789 | M83: 9.59,5 | N83: 599.5 | O83: 28.41451209 | P83: 15.9 | Q83: 27.825 | R83: 66.50266999 | T83: 66.50266999 | U83: 100 | V83: Участник | W83: Садетдинов ДмитрийШейисданович | X83: Муниципальное бюджетное общеобразовательное учреждение "Средняя общеобразовательная школа №49" Ново-Савиновского района г.Казани" | Y83: Ново-Савиновский район
A84: 83 | B84: Советский район | C84: МБОУ "Средняя общеобразовательная школа № 72 с углубленным изучением немецкого языка" Советского района г.Казани | D84: Сорокина | E84: О. | F84: А. | G84: Ж | H84: 21.12.2005 | I84: 9 | J84: 9 | K84: 29 | L84: 15.26315789 | M84: 10.25,7 | N84: 625.7 | O84: 27.22470833 | P84: 13.5 | Q84: 23.625 | R84: 66.11286622 | T84: 66.11286622 | U84: 100 | V84: Участник | W84: Домолазов ВладиславМихайлович | X84: Муниципальное бюджетное общеобразовательное учреждение "Средняя общеобразовательная школа № 72 с углубленным изучением немецкого языка" Советского района г.Казани | Y84: Советский район
A85: 84 | B85: Московский район | C85: МБОУ "Средняя общеобразовательная школа №55"с углубленным изучением отдельных предметов" Московского района г.Казани" | D85: Николаева | E85: К. | F85: Д. | G85: Ж | H85: 24.11.2005 | I85: 9 | J85: 9 | K85: 17 | L85: 8.947368421 | M85: 9.05,3 | N85: 545.3 | O85: 31.23876765 | P85: 14.7 | Q85: 25.725 | R85: 65.91113607 | T85: 65.91113607 | U85: 100 | V85: Участник | W85: Солнышкова ЮляДмитриевна | X85: Муниципальное бюджетное общеобразовательное учреждение "Средняя общеобразовательная школа №55"с углубленным изучением отдельных предметов" Московского района г.Казани" | Y85: Московский район
A86: 85 | B86: Советский район | C86: МБОУ "Средняя общеобразовательная школа № 15 с углубленным изучением отдельных предметов" Советского района города Казани" | D86: Мерзахметова | E86: А. | F86: А. | G86: Ж | H86: 30.05.2004 | I86: 10 | J86: 10 | K86: 28 | L86: 14.73684211 | M86: 9.42,4 | N86: 582.4 | O86: 29.24879808 | P86: 12 | Q86: 21 | R86: 64.98564018 | T86: 64.98564018 | U86: 100 | V86: Участник | W86: Рахманова АльбинаРаисовна | X86: Муниципальное бюджетное общеобразовательное учреждение "Средняя общеобразовательная школа № 15 с углубленным изучением отдельных предметов" Советского района города Казани" | Y86: Советский район
A87: 86 | B87: Ново-Савиновский район | C87: МАОУ "Лицей №146 "Ресурс" Ново-Савиновского района г. Казани" | D87: Шамсутдинова | E87: К. | F87: Р. | G87: Ж | H87: 23.08.2005 | I87: 9 | J87: 9 | K87: 9 | L87: 4.736842105 | M87: 10.51,1 | N87: 651.1 | O87: 26.16264783 | P87: 18.8 | Q87: 32.9 | R87: 63.79948993 | T87: 63.79948993 | U87: 100 | V87: Участник | W87: Корнеева ИринаНиколаевна | X87: Муниципальное автономное общеобразовательное учреждение "Лицей №146 "Ресурс" Ново-Савиновского района г. Казани" | Y87: Ново-Савиновский район
A88: 87 | B88: Советский район | C88: МБОУ "Средняя общеобразовательная школа № 171 с углубленным изучением отдельных предметов" Советского района г.Казани | D88: Каримова | E88: К. | F88: А. | G88: Ж | H88: 30.03.2005 | I88: 9 | J88: 9 | K88: 17.5 | L88: 9.210526316 | M88: 9.14,6 | N88: 554.6 | O88: 30.71492968 | P88: 13.2 | Q88: 23.1 | R88: 63.02545599 | T88: 63.02545599 | U88: 100 | V88: Участник | W88: Хусаинов ИльшатАсхатович | X88: Муниципальное бюджетное общеобразовательное учреждение "Средняя общеобразовательная школа № 171 с углубленным изучением отдельных предметов" Советского района г.Казани | Y88: Советский район
A89: 88 | B89: Приволжский район | C89: МБОУ "Татаро-английская гимназия №16" | D89: Имангулова | E89: А. | F89: Р. | G89: Ж | H89: 27.10.2003 | I89: 10 | J89: 10 | K89: 16.5 | L89: 8.684210526 | M89: 12.58,3 | N89: 778.3 | O89: 21.88680457 | P89: 18.3 | Q89: 32.025 | R89: 62.5960151 | T89: 62.5960151 | U89: 100 | V89: Участник | W89: Газизов ИнсафМарселович | X89: Муниципальное бюджетное общеобразовательное учреждение "Татаро-английская гимназия №16" | Y89: Приволжский район
A90: 89 | B90: Советский район | C90: МБОУ "Средняя общеобразовательная школа № 144 с углубленным изучением отдельных предметов" Советского района г.Казани" | D90: Гусакова | E90: Е. | F90: Д. | G90: Ж | H90: 02.09.2003 | I90: 11 | J90: 11 | K90: 43 | L90: 22.63157895 | M90: 8.29,8 | N90: 509.8 | O90: 33.41408395 | R90: 56.0456629 | T90: 56.0456629 | U90: 100 | V90: Участник | W90: Худобко ТатьянаЕвгеньевна | X90: Муниципальное бюджетное общеобразовательное учреждение "Средняя общеобразовательная школа № 144 с углубленным изучением отдельных предметов" Советского района г.Казани" | Y90: Советский район
A91: 90 | B91: Авиастроительный район | C91: МБОУ "Гимназия №14" Авиастроительного района г.Казани" | D91: Хайруллина | E91: А. | F91: А. | G91: Ж | H91: 14.07.2005 | I91: 9 | J91: 9 | K91: 33.5 | L91: 17.63157895 | M91: 9.24,6 | N91: 564.6 | O91: 30.17091746 | P91: 0 | Q91: =35*P91/20 -> 0 | R91: 47.80249641 | T91: 47.80249641 | U91: 100 | V91: Участник | W91: Мингазов РустэмАсфандиярович | X91: Муниципальное бюджетное общеобразовательное учреждение "Гимназия №14" Авиастроительного района г.Казани" | Y91: Авиастроительный район
A92: 91 | B92: Приволжский район | C92: МБОУ "Средняя общеобразовательная школа №48 с углубленным изучением отдельных предметов" | D92: Салахова | E92: К. | F92: Р. | G92: Ж | H92: 15.12.2004 | I92: 10 | J92: 10 | K92: 33.5 | L92: 17.63157895 | M92: 9.26,0 | N92: 566 | O92: 30.09628975 | Q92: =35*P92/20 -> 0 | R92: 47.7278687 | T92: 47.7278687 | U92: 100 | V92: Участник | W92: Гисматулов РустемИльгизарович | X92: Муниципальное бюджетное общеобразовательное учреждение "Средняя общеобразовательная школа №48 с углубленным изучением отдельных предметов" | Y92: Приволжский район
A93: 92 | B93: Советский район | C93: МБОУ "Средняя общеобразовательная школа № 174" Советского района г.Казани" | D93: Назмутдинова | E93: В. | F93: С. | G93: Ж | H93: 11.01.2003 | I93: 11 | J93: 11 | K93: 17.5 | L93: 9.210526316 | M93: 8.06,7 | N93: 486.7 | O93: 35 | P93: 0 | Q93: 0 | R93: 44.21052632 | T93: 44.21052632 | U93: 100 | V93: Участник | W93: Гильфанетдинов ИрекТауфикович | X93: Муниципальное бюджетное общеобразовательное учреждение "Средняя общеобразовательная школа № 174" Советского района г.Казани" | Y93: Советский район
A94: 93 | B94: Советский район | C94: МАОУ "Гимназия №141" Советского района г.Казани | D94: Михайлова | E94: Э. | F94: Р. | G94: Ж | H94: 08.09.2003 | I94: 11 | J94: 11 | K94: 29 | L94: 15.26315789 | M94: 10.03,8 | N94: 603.8 | O94: 28.21215634 | P94: 0 | Q94: 0 | R94: 43.47531424 | T94: 43.47531424 | U94: 100 | V94: Участник | W94: Митяшкин АнтонОлегович | X94: Муниципальное автономное общеобразовательное учреждение "Гимназия №141" Советского района г.Казани | Y94: Советский район
A95: 94 | B95: Ново-Савиновский район | C95: МБОУ "Средняя общеобразовательная школа №91" Ново-Савиновского района г. Казани" | D95: Махмутова | E95: З. | F95: Р. | G95: Ж | H95: 14.09.2004 | I95: 10 | J95: 10 | K95: 26 | L95: 13.68421053 | M95: 9.45,0 | N95: 585 | O95: 29.11880342 | P95: 0 | Q95: =35*P95/20 -> 0 | R95: 42.80301395 | T95: 42.80301395 | U95: 100 | V95: Участник | W95: Гильмутдинова ФлераФоатовна | X95: Муниципальное бюджетное общеобразовательное учреждение "Средняя общеобразовательная школа №91" Ново-Савиновского района г. Казани" | Y95: Ново-Савиновский район
A96: 95 | B96: Вахитовский район | C96: МАОУ"Средняя общеобразовательная школа №18 с углубленным изучением английского языка" | D96: Нуруллина | E96: И. | F96: Р. | G96: Ж | H96: 28.01.2005 | I96: 10 | J96: 10 | K96: 16.5 | L96: 8.684210526 | M96: 8.59,4 | N96: 538.4 | O96: 31.6391159 | R96: 40.32332643 | T96: 40.32332643 | U96: 100 | V96: Участник | W96: Перетягин ФедорВячеславович | X96: Муниципальное автономное общеобразовательное учреждение"Средняя общеобразовательная школа №18 с углубленным изучением английского языка" | Y96: Вахитовский район
A97: 96 | B97: Кировский район | C97: МБОУ "Гимназия №50" Кировского района г. Казани" | D97: Петрова | E97: О. | F97: В. | G97: Ж | H97: 13.01.2005 | I97: 9 | J97: 9 | K97: 16.5 | L97: 8.684210526 | M97: 9.03,4 | N97: 543.4 | O97: 31.34799411 | R97: 40.03220464 | T97: 40.03220464 | U97: 100 | V97: Участник | W97: Мычилкина ЗояДмитриевна | X97: Муниципальное бюджетное общеобразовательное учреждение "Гимназия №50" Кировского района г. Казани" | Y97: Кировский район
A98: 97 | B98: Авиастроительный район | C98: МБОУ "Гимназия №5" | D98: Валиуллина | E98: А. | F98: Р. | G98: Ж | H98: 07.09.2003 | I98: 11 | J98: 11 | K98: 14 | L98: =30*K98/57 -> 7.368421053 | M98: 9.24,8 | N98: 564.8 | O98: =35*486.7/N98 -> 30.16023371 | P98: 0 | Q98: =35*P98/20 -> 0 | R98: =L98+O98+Q98 -> 37.52865476 | T98: 37.52865476 | U98: 100 | V98: Участник | W98: Шакирова НазияАглулловна | X98: Муниципальное бюджетное общеобразовательное учреждение "Гимназия №5" | Y98: Авиастроительный район
A99: 98 | B99: Авиастроительный район | C99: МБОУ "Средняя общеобразовательная школа № 117" Авиастроительного района г.Казани" | D99: Гатауллина | E99: Д. | F99: Р. | G99: Ж | H99: 13.07.2003 | I99: 11 | J99: 11 | K99: 18 | L99: 9.473684211 | M99: 10.18,7 | N99: 618.7 | O99: 27.53272992 | P99: 0 | Q99: =35*P99/20 -> 0 | R99: 37.00641413 | T99: 37.00641413 | U99: 100 | V99: Участник | W99: Шагивалиев ИльнарМиннурович | X99: Муниципальное бюджетное общеобразовательное учреждение "Средняя общеобразовательная школа № 117" Авиастроительного района г.Казани" | Y99: Авиастроительный район
A100: 99 | B100: Приволжский район | C100: МБОУ "Средняя общеобразовательная школа № 173" | D100: Гонина | E100: К. | F100: Т. | G100: Ж | H100: 25.10.2004 | I100: 10 | J100: 10 | K100: 0 | M100: 8.26,9 | N100: 506.9 | O100: 33.60524758 | P100: 0 | Q100: =35*P100/20 -> 0 | R100: 33.60524758 | T100: 33.60524758 | U100: 100 | V100: Участник | W100: Тагирова РиммаШамильевна | X100: Муниципальное бюджетное общеобразовательное учреждение "Средняя общеобразовательная школа № 173" | Y100: Приволжский район
A101: 100 | B101: Авиастроительный район | C101: МБОУ "Средняя общеобразовательная школа №112" Авиастроительного района г.Казани | D101: Закирова | E101: А. | F101: Р. | G101: Ж | H101: 28.02.2004 | I101: 10 | J101: 10 | K101: 17.5 | L101: =30*K101/57 -> 9.210526316 | P101: 13.6 | Q101: =35*P101/20 -> 23.8 | R101: 33.01052632 | T101: 33.01052632 | U101: 100 | V101: Участник | W101: Чагаев ИрекИльдарович | X101: Муниципальное бюджетное общеобразовательное учреждение "Средняя общеобразовательная школа №112" Авиастроительного района г.Казани | Y101: Авиастроительный район
A102: 101 | B102: Московский район | C102: МБОУ "Средняя общеобразовательная русско-татарская школа № 87" Московского района г.Казани" | D102: Липатова | E102: А. | F102: Д. | G102: Ж | H102: 04.06.2004 | I102: 10 | J102: 10 | K102: 12.5 | L102: 6.578947368 | M102: 10.45,8 | N102: 645.8 | O102: =35*486.7/N102 -> 26.37736141 | R102: 32.95630878 | T102: 32.95630878 | U102: 100 | V102: Участник | W102: Назгинова ПолинаВладимировна | X102: Муниципальное бюджетное общеобразовательное учреждение "Средняя общеобразовательная русско-татарская школа № 87" Московского района г.Казани" | Y102: Московский район
A103: 102 | B103: Советский район | C103: МБОУ "Средняя общеобразовательная школа № 84 с углубленным изучением иностранных языков" Советского района г. Казани" | D103: Ершова | E103: А. | F103: С. | G103: Ж | H103: 18.02.2005 | I103: 9 | J103: 9 | K103: 9.5 | L103: 5 | M103: 11.52,4 | N103: 712.4 | O103: =35*486.7/N103 -> 23.91142617 | P103: 0 | Q103: =35*P103/20 -> 0 | R103: 28.91142617 | T103: 28.91142617 | U103: 100 | V103: Участник | W103: Степанов АлександрИванович | X103: Муниципальное бюджетное общеобразовательное учреждение "Средняя общеобразовательная школа № 84 с углубленным изучением иностранных языков" Советского района г. Казани" | Y103: Советский район
A104: 103 | B104: Ново-Савиновский район | C104: МБОУ "Средняя общеобразовательная татарско-русская школа №113 с углубленным изучением отдельных предметов имени Героя России М.Р.Ахметшина" Ново-Савиновского района г. Казани" | D104: Орлова | E104: Е. | F104: В. | G104: Ж | H104: 10.11.2005 | I104: 9 | J104: 9 | K104: 42.5 | L104: 22.36842105 | R104: 22.36842105 | T104: 22.36842105 | U104: 100 | V104: Участник | W104: Рыжов АлександрВасильевич | X104: Муниципальное бюджетное общеобразовательное учреждение "Средняя общеобразовательная татарско-русская школа №113 с углубленным изучением отдельных предметов имени Героя России М.Р.Ахметшина" Ново-Савиновского района г. Казани" | Y104: Ново-Савиновский район
A105: 104 | B105: Приволжский район | C105: МБОУ "Лицей №78 "Фарватер" | D105: Хрустова | E105: Д. | F105: С. | G105: Ж | H105: 01.06.2005 | I105: 9 | J105: 9 | K105: 33.5 | L105: 17.63157895 | R105: 17.63157895 | T105: 17.63157895 | U105: 100 | V105: Участник | W105: Кожилкина ЮлияВладимировна | X105: Муниципальное бюджетное общеобразовательное учреждение "Лицей №78 "Фарватер" | Y105: Приволжский район
A106: 105 | B106: Вахитовский район | C106: МБОУ "Гимназия №96" | D106: Бабич | E106: Д. | F106: Д. | G106: Ж | H106: 27.05.2005 | I106: 9 | J106: 9 | K106: 30.5 | L106: 16.05263158 | R106: 16.05263158 | T106: 16.05263158 | U106: 100 | V106: Участник | W106: Зиновьева ОльгаФеликсовна | X106: Муниципальное бюджетное общеобразовательное учреждение "Гимназия №96" | Y106: Вахитовский район
A107: 106 | B107: Кировский район | C107: МБОУ "Русско-татарская средняя общеобразовательная школа №81 с углубленным изучением отдельных предметов имени В.А.Григорьева" | D107: Абдурашидова | E107: З. | F107: Р. | G107: Ж | H107: 04.12.2003 | I107: 11 | J107: 11 | K107: 27.5 | L107: 14.47368421 | R107: 14.47368421 | T107: 14.47368421 | U107: 100 | V107: Участник | W107: Черепанова ВалентинаВасильевна | X107: Муниципальное бюджетное общеобразовательное учреждение "Русско-татарская средняя общеобразовательная школа №81 с углубленным изучением отдельных предметов имени В.А.Григорьева" | Y107: Кировский район
A108: 107 | B108: Советский район | C108: МБОУ "Гимназия № 125" Советского района г.Казани" | D108: Грачева | E108: В. | F108: В. | G108: Ж | H108: 04.12.2004 | I108: 11 | J108: 11 | K108: 26 | L108: 13.68421053 | R108: 13.68421053 | T108: 13.68421053 | U108: 100 | V108: Участник | W108: Салимова Елена Вадимовна | X108: Муниципальное бюджетное общеобразовательное учреждение "Гимназия № 125" Советского района г.Казани" | Y108: Советский район
A109: 108 | B109: Вахитовский район | C109: МАОУ "Средняя общеобразовательная школа №39 с углубленным изучением английского языка" | D109: Калинкина | E109: Е. | F109: О. | G109: Ж | H109: 17.09.2003 | I109: 11 | J109: 11 | K109: 23.5 | L109: 12.36842105 | R109: 12.36842105 | T109: 12.36842105 | U109: 100 | V109: Участник | W109: Зарубина ЕленаАлександровна | X109: Муниципальное автономное общеобразовательное учреждение "Средняя общеобразовательная школа №39 с углубленным изучением английского языка" | Y109: Вахитовский район
A110: 109 | B110: Ново-Савиновский район | C110: МБОУ "Средняя общеобразовательная татарско-русская школа №71 с углубленным изучением отдельных предметов" Ново-Савиновского района г. Казани" | D110: Карпакова | E110: К. | F110: А. | G110: Ж | H110: 09.09.2005 | I110: 9 | J110: 9 | K110: 19.5 | L110: 10.26315789 | R110: 10.26315789 | T110: 10.26315789 | U110: 100 | V110: Участник | W110: Мухаметшин АзатГазизович | X110: Муниципальное бюджетное общеобразовательное учреждение "Средняя общеобразовательная татарско-русская школа №71 с углубленным изучением отдельных предметов" Ново-Савиновского района г. Казани" | Y110: Ново-Савиновский район
A111: 110 | B111: Авиастроительный район | C111: МБОУ "Лицей №26 им. М.Джалиля" Авиастроительного района г.Казани" | D111: Арифуллина | E111: А. | F111: А. | G111: Ж | H111: 26.08.2005 | I111: 9 | J111: 9 | K111: 15.5 | L111: 8.157894737 | Q111: =35*P111/20 -> 0 | R111: 8.157894737 | T111: 8.157894737 | U111: 100 | V111: Участник | W111: Мухаммадеева РалинаАльбертовна | X111: Муниципальное бюджетное общеобразовательное учреждение "Лицей №26 им. М.Джалиля" Авиастроительного района г.Казани" | Y111: Авиастроительный район
A112: 111 | B112: Приволжский район | C112: МБОУ "Средняя общеобразовательная школа №127" | D112: Рычакова | E112: А. | F112: П. | G112: Ж | H112: 30.04.2005 | I112: 9 | J112: 9 | K112: 13 | L112: 6.842105263 | P112: 0 | Q112: 0 | R112: 6.842105263 | T112: 6.842105263 | U112: 100 | V112: Участник | W112: Токранова ЗинаидаЛеонидовна | X112: Муниципальное бюджетное общеобразовательное учреждение "Средняя общеобразовательная школа №127" | Y112: Приволжский район

Sheet 9-11 мал
A1: № | B1: Район | C1: Школа | D1: Фамилия | E1: Имя | F1: Отчество | G1: пол | H1: д.р. | I1: класс | J1: класс участия | K1: теория | L1: Балл | M1: легкая атлетика | N1: пересчет | O1: балл | P1: гимнастика | Q1: балл | R1: Общий балл | S1: Апел.балл | T1: Итог балл | U1: Макс.балл | V1: Статус | W1: Учитель | X1: Наименование ОУ | Y1: Район
A2: 1 | B2: Ново-Савиновский район | C2: Инженерный лицей-интернат КНИТУ-КАИ | D2: Хусаенов | E2: А. | F2: Д. | G2: М | H2: 26.03.2005 | I2: 9 | J2: 9 | K2: 51 | L2: =30*K2/57 -> 26.84210526 | M2: 13.23,8 | N2: 803.8 | O2: =35*632.3/N2 -> 27.53234635 | P2: 19.4 | Q2: =35*P2/20 -> 33.95 | R2: =L2+O2+Q2 -> 88.32445162 | T2: 88.32445162 | U2: 100 | V2: Победитель | W2: Пестова АленаВалерьевна | X2: Инженерный лицей-интернат КНИТУ-КАИ | Y2: Ново-Савиновский район
A3: 2 | B3: Приволжский район | C3: МАОУ "Гимназия №19" | D3: Салахатдинов | E3: Э. | F3: Х. | G3: М | H3: 05.05.2005 | I3: 9 | J3: 9 | K3: 46 | L3: 24.21052632 | M3: 12.21,3 | N3: 741.3 | O3: 29.85363551 | P3: 19.3 | Q3: 33.775 | R3: 87.83916182 | T3: 87.83916182 | U3: 100 | V3: Победитель | W3: Куроедов Борис Борисович | X3: МАОУ "Гимназия №19"
A4: 3 | B4: Приволжский район | C4: МАОУ "Гимназия №19" | D4: Нигматуллин | E4: Э. | F4: Р. | G4: М | H4: 20.10.2005 | I4: 9 | J4: 9 | K4: 46.5 | L4: 24.47368421 | M4: 11.42,2 | N4: 702.2 | O4: 31.51594987 | P4: 18.1 | Q4: 31.675 | R4: 87.66463408 | T4: 87.66463408 | U4: 100 | V4: Победитель | W4: Куроедов БорисБорисович | X4: Муниципальное автономное общеобразовательное учреждение "Гимназия №19" | Y4: Приволжский район
A5: 4 | B5: Ново-Савиновский район | C5: Инженерный лицей-интернат КНИТУ-КАИ | D5: Кирснаускас | E5: Д. | F5: А. | G5: М | H5: 11.10.2004 | I5: 10 | J5: 10 | K5: 45.5 | L5: 23.94736842 | M5: 12.03,0 | N5: 723 | O5: 30.60926694 | P5: 18.9 | Q5: 33.075 | R5: 87.63163536 | T5: 87.63163536 | U5: 100 | V5: Победитель | W5: Пестова АленаВалерьевна | X5: Инженерный лицей-интернат КНИТУ-КАИ | Y5: Ново-Савиновский район
A6: 5 | B6: Советский район | C6: МБОУ "Средняя общеобразовательная школа № 86 с углубленным изучением отдельных предметов" Советского района г.Казани" | D6: Сайфуллин | E6: Б. | F6: А. | G6: М | H6: 29.06.2004 | I6: 10 | J6: 10 | K6: 42 | L6: 22.10526316 | M6: 12.23,5 | N6: 743.5 | O6: 29.76529926 | P6: 19.2 | Q6: 33.6 | R6: 85.47056242 | T6: 85.47056242 | U6: 100 | V6: Победитель | W6: Киямов АйнурАйратович | X6: Муниципальное бюджетное общеобразовательное учреждение "Средняя общеобразовательная школа № 86 с углубленным изучением отдельных предметов" Советского района г.Казани" | Y6: Советский район
A7: 6 | B7: Вахитовский район | C7: Государственное бюджетное общеобразовательное учреждение "Казанская кадетская школа-интернат имени Героя Советского Союза Б.К.Кузнецова" | D7: Булатов | E7: Э. | F7: Р. | G7: М | H7: 12.05.2003 | I7: 11 | J7: 11 | K7: 41.5 | L7: 21.84210526 | M7: 11.28,0 | N7: 688 | O7: 32.16642442 | P7: 17.3 | Q7: 30.275 | R7: 84.28352968 | T7: 84.28352968 | U7: 100 | V7: Победитель | W7: Шамаев ДмитрийГеннадьевич | X7: Государственное бюджетное общеобразовательное учреждение "Казанская кадетская школа-интернат имени Героя Советского Союза Б.К.Кузнецова" | Y7: Вахитовский район
A8: 7 | B8: Ново-Савиновский район | C8: МБОУ "Средняя общеобразовательная татарско-русская школа №113 с углубленным изучением отдельных предметов имени Героя России М.Р.Ахметшина" Ново-Савиновского района г. Казани" | D8: Мезрин | E8: Е. | F8: К. | G8: М | H8: 09.03.2003 | I8: 11 | J8: 11 | K8: 47.5 | L8: 25 | M8: 13.09,4 | N8: 789.4 | O8: 28.03458323 | P8: 17.7 | Q8: 30.975 | R8: 84.00958323 | T8: 84.00958323 | U8: 100 | V8: Призер | W8: Рыжов АлександрВасильевич | X8: Муниципальное бюджетное общеобразовательное учреждение "Средняя общеобразовательная татарско-русская школа №113 с углубленным изучением отдельных предметов имени Героя России М.Р.Ахметшина" Ново-Савиновского района г. Казани" | Y8: Ново-Савиновский район
A9: 8 | B9: Ново-Савиновский район | C9: МБОУ "Средняя общеобразовательная татарско-русская школа №113 с углубленным изучением отдельных предметов имени Героя России М.Р.Ахметшина" Ново-Савиновского района г. Казани" | D9: Хасанов | E9: Р. | F9: А. | G9: М | H9: 09.06.2003 | I9: 11 | J9: 11 | K9: 38.5 | L9: 20.26315789 | M9: 11.45,4 | N9: 705.4 | O9: 31.37297987 | P9: 18.4 | Q9: 32.2 | R9: 83.83613776 | T9: 83.83613776 | U9: 100 | V9: Призер | W9: Рыжов АлександрВасильевич | X9: Муниципальное бюджетное общеобразовательное учреждение "Средняя общеобразовательная татарско-русская школа №113 с углубленным изучением отдельных предметов имени Героя России М.Р.Ахметшина" Ново-Савиновского района г. Казани" | Y9: Ново-Савиновский район
A10: 9 | B10: Ново-Савиновский район | C10: МБОУ "Средняя общеобразовательная школа №132 с углубленным изучением иностранных языков" Ново-Савиновского района г. Казани" | D10: Осипов | E10: М. | F10: А. | G10: М | H10: 01.03.2003 | I10: 11 | J10: 11 | K10: 39 | L10: 20.52631579 | M10: 11.57,5 | N10: 717.5 | O10: 30.84390244 | P10: 18.5 | Q10: 32.375 | R10: 83.74521823 | T10: 83.74521823 | U10: 100 | V10: Призер | W10: Хубатуллина АльбинаИльгизовна | X10: Муниципальное бюджетное общеобразовательное учреждение "Средняя общеобразовательная школа №132 с углубленным изучением иностранных языков" Ново-Савиновского района г. Казани" | Y10: Ново-Савиновский район
A11: 10 | B11: Вахитовский район | C11: МАОУ "Средняя общеобразовательная школа №39 с углубленным изучением английского языка" | D11: Фомин | E11: А. | F11: Д. | G11: М | H11: 26.01.2005 | I11: 9 | J11: 9 | K11: 42.5 | L11: 22.36842105 | M11: 11.42,3 | N11: 702.3 | O11: 31.51146234 | P11: 17 | Q11: 29.75 | R11: 83.62988339 | T11: 83.62988339 | U11: 100 | V11: Призер | W11: Хусаинов ДаниярДинисламович | X11: Муниципальное автономное общеобразовательное учреждение "Средняя общеобразовательная школа №39 с углубленным изучением английского языка" | Y11: Вахитовский район
A12: 11 | B12: Советский район | C12: МБОУ "Гимназия № 8 -Центр образования" Советского района г. Казани" | D12: Громов | E12: Д. | F12: К. | G12: М | H12: 10.05.2003 | I12: 11 | J12: 11 | K12: 37 | L12: 19.47368421 | M12: 11.58,2 | N12: 718.2 | O12: 30.81384016 | P12: 18.9 | Q12: 33.075 | R12: 83.36252437 | T12: 83.36252437 | U12: 100 | V12: Призер | W12: Корнеева НатальяАлексеевна | X12: Муниципальное бюджетное общеобразовательное учреждение "Гимназия № 8 -Центр образования" Советского района г. Казани" | Y12: Советский район
A13: 12 | B13: Советский район | C13: МБОУ"Многопрофильный лицей №185" | D13: Латыпов | E13: И. | F13: Р. | G13: М | H13: 09.02.2005 | I13: 9 | J13: 9 | K13: 41 | L13: 21.57894737 | M13: 11.13,2 | N13: 673.2 | O13: 32.87358883 | P13: 16.1 | Q13: 28.175 | R13: 82.6275362 | T13: 82.6275362 | U13: 100 | V13: Призер | W13: Гатауллин МаксимЭдуардович | X13: МБОУ"Многопрофильный лицей №185" | Y13: Советский район
A14: 13 | B14: Ново-Савиновский район | C14: МБОУ "Средняя общеобразовательная школа №132 с углубленным изучением иностранных языков" Ново-Савиновского района г. Казани" | D14: Халимбаев | E14: А. | F14: Р. | G14: М | H14: 16.04.2003 | I14: 11 | J14: 11 | K14: 39 | L14: 20.52631579 | M14: 11.39,9 | N14: 699.9 | O14: 31.61951707 | P14: 17.4 | Q14: 30.45 | R14: 82.59583286 | T14: 82.59583286 | U14: 100 | V14: Призер | W14: Хубатуллина Альбина Ильгизовна | X14: МБОУ "Школа №132" Ново-Савиновского района | Y14: Ново-Савиновский район
A15: 14 | B15: Вахитовский район | C15: Государственное бюджетное общеобразовательное учреждение "Казанская кадетская школа-интернат имени Героя Советского Союза Б.К.Кузнецова" | D15: Спиридонов | E15: Р. | F15: Е. | G15: М | H15: 16.07.2004 | I15: 10 | J15: 10 | K15: 33.5 | L15: 17.63157895 | M15: 11.31,6 | N15: 691.6 | O15: 31.99898785 | P15: 18.7 | Q15: 32.725 | R15: 82.3555668 | T15: 82.3555668 | U15: 100 | V15: Призер | W15: Шамаев ДмитрийГеннадьевич | X15: Государственное бюджетное общеобразовательное учреждение "Казанская кадетская школа-интернат имени Героя Советского Союза Б.К.Кузнецова" | Y15: Вахитовский район
A16: 15 | B16: Ново-Савиновский район | C16: МБОУ "Средняя общеобразовательная татарско-русская школа №113 с углубленным изучением отдельных предметов имени Героя России М.Р.Ахметшина" Ново-Савиновского района г. Казани" | D16: Перфилов | E16: Т. | F16: М. | G16: М | H16: 27.01.2003 | I16: 11 | J16: 11 | K16: 46 | L16: 24.21052632 | M16: 14.35,2 | N16: 875.2 | O16: 25.28622029 | P16: 18.6 | Q16: 32.55 | R16: 82.04674661 | T16: 82.04674661 | U16: 100 | V16: Призер | W16: Рыжов АлександрВасильевич | X16: Муниципальное бюджетное общеобразовательное учреждение "Средняя общеобразовательная татарско-русская школа №113 с углубленным изучением отдельных предметов имени Героя России М.Р.Ахметшина" Ново-Савиновского района г. Казани" | Y16: Ново-Савиновский район
A17: 16 | B17: Ново-Савиновский район | C17: ГАОУ "Полилингвальный комплекс "Адымнар - путь к знаниям и согласию" г. Казани" | D17: Андреев | E17: К. | F17: В. | G17: М | H17: 07.04.2004 | I17: 10 | J17: 10 | K17: 40.5 | L17: 21.31578947 | M17: 11.40,4 | N17: 700.4 | O17: 31.5969446 | P17: 16.6 | Q17: 29.05 | R17: 81.96273408 | T17: 81.96273408 | U17: 100 | V17: Призер | W17: Штыкова ОльгаВладимировна | X17: Государственное автономное общеобразовательное учреждение "Полилингвальный комплекс "Адымнар - путь к знаниям и согласию" г. Казани" | Y17: Ново-Савиновский район
A18: 17 | B18: Московский район | C18: МБОУ "Татарская гимназия № 17 имени Г.Ибрагимова" Московского района г.Казани" | D18: Шаронич | E18: Д. | F18: В. | G18: М | H18: 08.09.2005 | I18: 9 | J18: 9 | K18: 42 | L18: 22.10526316 | M18: 11.38,8 | N18: 698.8 | O18: 31.66929021 | P18: 16 | Q18: 28 | R18: 81.77455337 | T18: 81.77455337 | U18: 100 | V18: Призер | W18: Шайдуллин МаратСаматович | X18: Муниципальное бюджетное общеобразовательное учреждение "Татарская гимназия № 17 имени Г.Ибрагимова" Московского района г.Казани" | Y18: Московский район
A19: 18 | B19: Приволжский район | C19: МАОУ "Гимназия №19" | D19: Даутов | E19: Э. | F19: А. | G19: М | H19: 09.06.2005 | I19: 9 | J19: 9 | K19: 45.5 | L19: 23.94736842 | M19: 15.47,4 | N19: 947.4 | O19: 23.35919358 | P19: 19.2 | Q19: 33.6 | R19: 80.906562 | T19: 80.906562 | U19: 100 | V19: Призер | W19: Хабибрахмонов Рият Ядгарович | X19: МАОУ "Гимназия №19"
A20: 19 | B20: Вахитовский район | C20: Государственное бюджетное общеобразовательное учреждение "Казанская кадетская школа-интернат имени Героя Советского Союза Б.К.Кузнецова" | D20: Артемьев | E20: В. | F20: Б. | G20: М | H20: 26.05.2003 | I20: 11 | J20: 11 | K20: 34 | L20: 17.89473684 | M20: 11.59,7 | N20: 719.7 | O20: 30.7496179 | P20: 17.9 | Q20: 31.325 | R20: 79.96935474 | T20: 79.96935474 | U20: 100 | V20: Призер | W20: Шамаев ДмитрийГеннадьевич | X20: Государственное бюджетное общеобразовательное учреждение "Казанская кадетская школа-интернат имени Героя Советского Союза Б.К.Кузнецова" | Y20: Вахитовский район
A21: 20 | B21: Приволжский район | C21: ОШИ"IT- лицей федерального государственного автономного образовательного учреждения высшего образования "Казанский (Приволжский) федеральный университет" | D21: Павлов | E21: А. | F21: Э. | G21: М | H21: 10.05.2004 | I21: 10 | J21: 10 | K21: 40 | L21: 21.05263158 | M21: 13.02,9 | N21: 782.9 | O21: 28.26733938 | P21: 17.4 | Q21: 30.45 | R21: 79.76997096 | T21: 79.76997096 | U21: 100 | V21: Призер | W21: Игнатьев СергейАлександрович | X21: Общеобразовательная школа-интернат "IT- лицей федерального государственного автономного образовательного учреждения высшего образования "Казанский (Приволжский) федеральный университет" | Y21: Приволжский район
A22: 21 | B22: Советский район | C22: МБОУ «Гимназия № 183» Советского района г.Казани | D22: Гаврилов | E22: С. | F22: В. | G22: М | H22: 05.11.2005 | I22: 9 | J22: 9 | K22: 37.5 | L22: 19.73684211 | M22: 12.48,7 | N22: 768.7 | O22: 28.78951477 | P22: 17.4 | Q22: 30.45 | R22: 78.97635687 | T22: 78.97635687 | U22: 100 | V22: Призер | W22: Валиахметов ИльшатГайсович | X22: Муниципальное бюджетное общеобразовательное учреждение «Гимназия № 183» Советского района г.Казани | Y22: Советский район
A23: 22 | B23: Вахитовский район | C23: МБОУ "Средняя общеобразовательная школа № 51" | D23: Шагиев | E23: С. | F23: А. | G23: М | H23: 23.06.2004 | I23: 10 | J23: 10 | K23: 32.5 | L23: 17.10526316 | M23: 11.49,6 | N23: 709.6 | O23: 31.18728861 | P23: 17.5 | Q23: 30.625 | R23: 78.91755177 | T23: 78.91755177 | U23: 100 | V23: Призер | W23: Шарафутдинов АльбертШамильевич | X23: Муниципальное бюджетное общеобразовательное учреждение "Средняя общеобразовательная школа № 51" | Y23: Вахитовский район
A24: 23 | B24: Ново-Савиновский район | C24: МБОУ "Средняя общеобразовательная школа №132 с углубленным изучением иностранных языков" Ново-Савиновского района г. Казани" | D24: Яковчук | E24: М. | F24: П. | G24: М | H24: 07.11.2004 | I24: 9 | J24: 9 | K24: 36.5 | L24: 19.21052632 | M24: 12.55,8 | N24: 775.8 | O24: 28.52603764 | P24: 17.8 | Q24: 31.15 | R24: 78.88656395 | T24: 78.88656395 | U24: 100 | V24: Призер | W24: Ганиев ЭмильРафкатович | X24: Муниципальное бюджетное общеобразовательное учреждение "Средняя общеобразовательная школа №132 с углубленным изучением иностранных языков" Ново-Савиновского района г. Казани" | Y24: Ново-Савиновский район
A25: 24 | B25: Авиастроительный район | C25: МБОУ "Средняя общеобразовательная школа № 77" Авиастроительного района г.Казани" | D25: Федосеев | E25: А. | F25: Е. | G25: М | H25: 16.01.2003 | I25: 11 | J25: 11 | K25: 30.5 | L25: 16.05263158 | M25: 10.59,6 | N25: 659.6 | O25: 33.55139478 | P25: 16.6 | Q25: 29.05 | R25: 78.65402636 | T25: 78.65402636 | U25: 100 | V25: Призер | W25: Королев АндрейАнатольевич | X25: Муниципальное бюджетное общеобразовательное учреждение "Средняя общеобразовательная школа № 77" Авиастроительного района г.Казани" | Y25: Авиастроительный район
A26: 25 | B26: Кировский район | C26: МБОУ "Гимназия №50" Кировского района г. Казани" | D26: Гресь | E26: А. | F26: Е. | G26: М | H26: 28.06.2003 | I26: 11 | J26: 11 | K26: 30 | L26: 15.78947368 | M26: 12.02,9 | N26: 722.9 | O26: 30.61350118 | P26: 18.3 | Q26: 32.025 | R26: 78.42797486 | T26: 78.42797486 | U26: 100 | V26: Призер | W26: Мычилкина ЗояДмитриевна | X26: Муниципальное бюджетное общеобразовательное учреждение "Гимназия №50" Кировского района г. Казани" | Y26: Кировский район
A27: 26 | B27: Советский район | C27: МБОУ "Лицей № 159" Советского района г.Казани" | D27: Иванов | E27: Н. | F27: Д. | G27: М | H27: 24.06.2003 | I27: 11 | J27: 11 | K27: 38 | L27: 20 | M27: 13.28,1 | N27: 808.1 | O27: 27.38584334 | P27: 17.6 | Q27: 30.8 | R27: 78.18584334 | T27: 78.18584334 | U27: 100 | V27: Призер | W27: Барлев ВикторАлександрович | X27: Муниципальное бюджетное общеобразовательное учреждение "Лицей № 159" Советского района г.Казани" | Y27: Советский район
A28: 27 | B28: Ново-Савиновский район | C28: МБОУ "Лицей №177" Ново-Савиновского района г. Казани" | D28: Загеров | E28: А. | F28: А. | G28: М | H28: 22.03.2004 | I28: 10 | J28: 10 | K28: 39.5 | L28: 20.78947368 | M28: 11.33,3 | N28: 693.3 | O28: 31.92052503 | P28: 14.4 | Q28: 25.2 | R28: 77.90999871 | T28: 77.90999871 | U28: 100 | V28: Призер | W28: Гладков СергейВладимирович | X28: Муниципальное бюджетное общеобразовательное учреждение "Лицей №177" Ново-Савиновского района г. Казани" | Y28: Ново-Савиновский район
A29: 28 | B29: Советский район | C29: МАОУ "Лицей №121 имени Героя Советского Союза С.А.Ахтямова" Советского района г.Казани | D29: Сафуанов | E29: К. | F29: Р. | G29: М | H29: 02.08.2005 | I29: 9 | J29: 9 | K29: 29.5 | L29: 15.52631579 | M29: 11.09,5 | N29: 669.5 | O29: 33.05526512 | P29: 16.7 | Q29: 29.225 | R29: 77.80658091 | T29: 77.80658091 | U29: 100 | V29: Призер | W29: Слободчиков СергейЛьвович | X29: Муниципальное автономное общеобразовательное учреждение "Лицей №121 имени Героя Советского Союза С.А.Ахтямова" Советского района г.Казани | Y29: Советский район
A30: 29 | B30: Приволжский район | C30: МБОУ "Татарско-русская средняя общеобразовательная школа №68 с углубленным изучением отдельных предметов" | D30: Фахрутдинов | E30: Р. | F30: И. | G30: М | H30: 23.02.2003 | I30: 11 | J30: 11 | K30: 38 | L30: 20 | M30: 12.49,8 | N30: 769.8 | O30: 28.7483762 | P30: 16.6 | Q30: 29.05 | R30: 77.7983762 | T30: 77.7983762 | U30: 100 | V30: Призер | W30: Хуртов СергейГеннадьевич | X30: Муниципальное бюджетное общеобразовательное учреждение "Татарско-русская средняя общеобразовательная школа №68 с углубленным изучением отдельных предметов" | Y30: Приволжский район
A31: 30 | B31: Московский район | C31: МБОУ "Гимназия № 75" Московского района г. Казани" | D31: Алмеков | E31: Т. | F31: С. | G31: М | H31: 06.04.2004 | I31: 10 | J31: 10 | K31: 36 | L31: 18.94736842 | M31: 11.50,9 | N31: 710.9 | O31: 31.13025742 | P31: 15.8 | Q31: 27.65 | R31: 77.72762584 | T31: 77.72762584 | U31: 100 | V31: Призер | W31: Чебуков ИгорьАлексеевич | X31: Муниципальное бюджетное общеобразовательное учреждение "Гимназия № 75" Московского района г. Казани" | Y31: Московский район
A32: 31 | B32: Кировский район | C32: МБОУ "Средняя общеобразовательная школа №70 с углубленным изучениемотдельных предметов" Кировского района г. Казани" | D32: Иванов | E32: М. | F32: С. | G32: М | H32: 27.11.2002 | I32: 11 | J32: 11 | K32: 28.5 | L32: 15 | M32: 11.40,5 | N32: 700.5 | O32: 31.59243398 | P32: 17.6 | Q32: 30.8 | R32: 77.39243398 | T32: 77.39243398 | U32: 100 | V32: Призер | W32: Власова АллаВладимировна | X32: Муниципальное бюджетное общеобразовательное учреждение "Средняя общеобразовательная школа №70 с углубленным изучениемотдельных предметов" Кировского района г. Казани" | Y32: Кировский район
A33: 32 | B33: Вахитовский район | C33: МБОУ "Гимназия №27 с татарским языком обучения" | D33: Мухаметзянов | E33: И. | F33: И. | G33: М | H33: 19.10.2003 | I33: 11 | J33: 11 | K33: 26 | L33: 13.68421053 | M33: 11.42,4 | N33: 702.4 | O33: 31.50697608 | P33: 18.1 | Q33: 31.675 | R33: 76.86618661 | T33: 76.86618661 | U33: 100 | V33: Призер | W33: Галиуллин КамильМасхутович | X33: Муниципальное бюджетное общеобразовательное учреждение "Гимназия №27 с татарским языком обучения" | Y33: Вахитовский район
A34: 33 | B34: Кировский район | C34: МБОУ "Средняя общеобразовательная школа №137 с углубленным изучением отдельных предметов"Кировского района г.Казани" | D34: Гибадуллин | E34: Р. | F34: Р. | G34: М | H34: 10.11.2004 | I34: 9 | J34: 9 | K34: 34.5 | L34: =30*K34/57 -> 18.15789474 | M34: 12.16,3 | N34: 736.3 | O34: =35*632.3/N34 -> 30.0563629 | P34: 16 | Q34: =35*P34/20 -> 28 | R34: =L34+O34+Q34 -> 76.21425763 | S34: 0.53 | T34: 76.74057342 | U34: 100 | V34: Призер | W34: Баранов ВладимирГеннадьевич | X34: Муниципальное бюджетное общеобразовательное учреждение "Средняя общеобразовательная школа №137 с углубленным изучением отдельных предметов"Кировского района г.Казани" | Y34: Кировский район
A35: 34 | B35: Ново-Савиновский район | C35: МАОУ "Лицей №146 "Ресурс" Ново-Савиновского района г. Казани" | D35: Салихов | E35: Д. | F35: М. | G35: М | H35: 06.09.2004 | I35: 10 | J35: 10 | K35: 33 | L35: 17.36842105 | M35: 14.29,4 | N35: 809.4 | O35: 27.34185817 | P35: 18.2 | Q35: 31.85 | R35: 76.56027922 | T35: 76.56027922 | U35: 100 | V35: Призер | W35: Белянин АлексейАнатольевич | X35: Муниципальное автономное общеобразовательное учреждение "Лицей №146 "Ресурс" Ново-Савиновского района г. Казани" | Y35: Ново-Савиновский район
A36: 35 | B36: Вахитовский район | C36: МБОУ "Средняя общеобразовательная школа №98 (татарско-русская)" | D36: Торсуков | E36: А. | F36: Р. | G36: М | H36: 04.04.2005 | I36: 9 | J36: 9 | K36: 37 | L36: 19.47368421 | M36: 12.49,0 | N36: 769 | O36: 28.77828349 | P36: 16.1 | Q36: 28.175 | R36: 76.4269677 | T36: 76.4269677 | U36: 100 | V36: Призер | W36: Габдрахманов ФанзильИльгизович | X36: Муниципальное бюджетное общеобразовательное учреждение "Средняя общеобразовательная школа №98 (татарско-русская)" | Y36: Вахитовский район
A37: 36 | B37: Советский район | C37: МБОУ "Гимназия №175" Советского района г.Казани | D37: Нуруллин | E37: А. | F37: А. | G37: М | H37: 12.10.2004 | I37: 10 | J37: 10 | K37: 45.5 | L37: 23.94736842 | M37: 13.27,8 | N37: 807.8 | O37: 27.39601386 | P37: 14.3 | Q37: 25.025 | R37: 76.36838229 | T37: 76.36838229 | U37: 100 | V37: Участник | W37: Сабиров РамильГабделфартович | X37: Муниципальное бюджетное общеобразовательное учреждение "Гимназия №175" Советского района г.Казани | Y37: Советский район
A38: 37 | B38: Ново-Савиновский район | C38: МБОУ "Средняя общеобразовательная школа №170 с углубленным изучением отдельных предметов" Ново-Савиновского района г. Казани" | D38: Громков | E38: Е. | F38: А. | G38: М | H38: 29.04.2005 | I38: 9 | J38: 9 | K38: 35.5 | L38: 18.68421053 | M38: 12.50,4 | N38: 770.4 | O38: 28.7259865 | P38: 16.1 | Q38: 28.175 | R38: 75.58519703 | T38: 75.58519703 | U38: 100 | V38: Участник | W38: Сусленкова ЮлияВладимировна | X38: Муниципальное бюджетное общеобразовательное учреждение "Средняя общеобразовательная школа №170 с углубленным изучением отдельных предметов" Ново-Савиновского района г. Казани" | Y38: Ново-Савиновский район
A39: 38 | B39: Ново-Савиновский район | C39: ГАОУ "Полилингвальный комплекс "Адымнар - путь к знаниям и согласию" г. Казани" | D39: Лебедев | E39: Д. | F39: С. | G39: М | H39: 15.03.2003 | I39: 9 | J39: 9 | K39: 36.5 | L39: 19.21052632 | M39: 13.21,9 | N39: 801.9 | O39: 27.59758075 | P39: 16.1 | Q39: 28.175 | R39: 74.98310706 | T39: 74.98310706 | U39: 100 | V39: Участник | W39: Кривова ИринаВладимировна | X39: Государственное автономное общеобразовательное учреждение "Полилингвальный комплекс "Адымнар - путь к знаниям и согласию" г. Казани" | Y39: Ново-Савиновский район
A40: 39 | B40: Авиастроительный район | C40: МБОУ "Гимназия №10" Авиастроительного района г.Казани" | D40: Яруллин | E40: Р. | F40: Р. | G40: М | H40: 07.03.2003 | I40: 11 | J40: 11 | K40: 33.5 | L40: 17.63157895 | M40: 14.38,2 | N40: 878.2 | O40: 25.19984058 | P40: 18 | Q40: 31.5 | R40: 74.33141953 | T40: 74.33141953 | U40: 100 | V40: Участник | W40: Мубаракшина ФаридаМаликовна | X40: Муниципальное бюджетное общеобразовательное учреждение "Гимназия №10" Авиастроительного района г.Казани" | Y40: Авиастроительный район
A41: 40 | B41: Авиастроительный район | C41: МБОУ "Средняя общеобразовательная школа №119" Авиастроительного района г.Казани" | D41: Рустамов | E41: Т. | F41: Ш. | G41: М | H41: 01.09.2002 | I41: 11 | J41: 11 | K41: 35.5 | L41: 18.68421053 | M41: 13.49,0 | N41: 829 | O41: 26.69541616 | P41: 16.3 | Q41: 28.525 | R41: 73.90462669 | T41: 73.90462669 | U41: 100 | V41: Участник | W41: Павлова АльбинаНиколаевна | X41: Муниципальное бюджетное общеобразовательное учреждение "Средняя общеобразовательная школа №119" Авиастроительного района г.Казани" | Y41: Авиастроительный район
A42: 41 | B42: Авиастроительный район | C42: МБОУ "Средняя общеобразовательная школа № 77" Авиастроительного района г.Казани" | D42: Филипов | E42: Я. | F42: А. | G42: М | H42: 05.12.2004 | I42: 9 | J42: 9 | K42: 34.5 | L42: 18.15789474 | M42: 12.06,1 | N42: 726.1 | O42: 30.47858422 | P42: 14.4 | Q42: 25.2 | R42: 73.83647895 | T42: 73.83647895 | U42: 100 | V42: Участник | W42: Бикмуллин ДинарМунирович | X42: Муниципальное бюджетное общеобразовательное учреждение "Средняя общеобразовательная школа № 77" Авиастроительного района г.Казани" | Y42: Авиастроительный район
A43: 42 | B43: Ново-Савиновский район | C43: МБОУ "Средняя общеобразовательная татарско-русская школа №113 с углубленным изучением отдельных предметов имени Героя России М.Р.Ахметшина" Ново-Савиновского района г. Казани" | D43: Мухаметшин | E43: Д. | F43: И. | G43: М | H43: 2005-11-15 | I43: 9 | J43: 9 | K43: 40 | L43: 21.05263158 | M43: 16.48,0 | N43: 1008 | O43: 21.95486111 | P43: 17.4 | Q43: 30.45 | R43: 73.45749269 | T43: 73.45749269 | U43: 100 | V43: Участник | W43: Рыжов АлександрВасильевич | X43: Муниципальное бюджетное общеобразовательное учреждение "Средняя общеобразовательная татарско-русская школа №113 с углубленным изучением отдельных предметов имени Героя России М.Р.Ахметшина" Ново-Савиновского района г. Казани" | Y43: Ново-Савиновский район
A44: 43 | B44: Приволжский район | C44: МБОУ "Лицей №35 - образовательный центр "Галактика" Приволжского района города Казани" | D44: Ибрагимов | E44: А. | F44: Р. | G44: М | H44: 29.09.2005 | I44: 9 | J44: 9 | K44: 22 | L44: 11.57894737 | M44: 12.19,3 | N44: 739.3 | O44: 29.9343974 | P44: 18.1 | Q44: 31.675 | R44: 73.18834477 | T44: 73.18834477 | U44: 100 | V44: Участник | W44: Хузиахметова ИринаИльинична | X44: Муниципальное бюджетное общеобразовательное учреждение "Лицей №35 - образовательный центр "Галактика" Приволжского района города Казани" | Y44: Приволжский район
A45: 44 | B45: Советский район | C45: МБОУ "Средняя общеобразовательная школа № 169" Советского района г.Казани" | D45: Загрутдинов | E45: Д. | F45: Р. | G45: М | H45: 06.04.2003 | I45: 11 | J45: 11 | K45: 33 | L45: 17.36842105 | M45: 11.50,5 | N45: 710.5 | O45: 31.14778325 | P45: 13.9 | Q45: 24.325 | R45: 72.8412043 | T45: 72.8412043 | U45: 100 | V45: Участник | W45: Забиров РинатРифатович | X45: Муниципальное бюджетное общеобразовательное учреждение "Средняя общеобразовательная школа № 169" Советского района г.Казани" | Y45: Советский район
A46: 45 | B46: Московский район | C46: МБОУ "Средняя общеобразовательная татарско-русская школа №65 с углубленным изучением отдельных предметов " Московского района г.Казани | D46: Латыпов | E46: М. | F46: А. | G46: М | H46: 04.08.2004 | I46: 10 | J46: 10 | K46: 29 | L46: 15.26315789 | M46: 12.29,7 | N46: 749.7 | O46: 29.51914099 | P46: 16 | Q46: 28 | R46: 72.78229888 | T46: 72.78229888 | U46: 100 | V46: Участник | W46: Половников ВалерийНиколаевич | X46: Муниципальное бюджетное общеобразовательное учреждение "Средняя общеобразовательная татарско-русская школа №65 с углубленным изучением отдельных предметов " Московского района г.Казани | Y46: Московский район
A47: 46 | B47: Московский район | C47: МБОУ "Средняя общеобразовательная русско-татарская школа № 87" Московского района г.Казани" | D47: Боровков | E47: Д. | F47: А. | G47: М | H47: 10.07.2005 | I47: 9 | J47: 9 | K47: 30 | L47: 15.78947368 | M47: 11.35,9 | N47: 695.9 | O47: 31.80126455 | P47: 14.1 | Q47: 24.675 | R47: 72.26573823 | T47: 72.26573823 | U47: 100 | V47: Участник | W47: Киндеров ЮрийДмитриевич | X47: Муниципальное бюджетное общеобразовательное учреждение "Средняя общеобразовательная русско-татарская школа № 87" Московского района г.Казани" | Y47: Московский район
A48: 47 | B48: Советский район | C48: МБОУ "Средняя общеобразовательная школа № 171 с углубленным изучением отдельных предметов" Советского района г.Казани | D48: Шафигуллин | E48: Т. | F48: Р. | G48: М | H48: 14.07.2003 | I48: 11 | J48: 11 | K48: 27 | L48: 14.21052632 | M48: 12.44,5 | N48: 764.5 | O48: 28.94767822 | P48: 16.5 | Q48: 28.875 | R48: 72.03320454 | T48: 72.03320454 | U48: 100 | V48: Участник | W48: Хусаинов ИльшатАсхатович | X48: Муниципальное бюджетное общеобразовательное учреждение "Средняя общеобразовательная школа № 171 с углубленным изучением отдельных предметов" Советского района г.Казани | Y48: Советский район
A49: 48 | B49: Авиастроительный район | C49: МБОУ "Средняя общеобразовательная школа с углубленным изучением отдельных предметов №62" Авиастроительного района г.Казани" | D49: Сайфуллин | E49: Р. | F49: Р. | G49: М | H49: 03.10.2003 | I49: 11 | J49: 11 | K49: 28 | L49: 14.73684211 | M49: 12.50,0 | N49: 770 | O49: 28.74090909 | P49: 16.1 | Q49: 28.175 | R49: 71.6527512 | T49: 71.6527512 | U49: 100 | V49: Участник | W49: Садыков РамазанЕвгеньевич | X49: Муниципальное бюджетное общеобразовательное учреждение "Средняя общеобразовательная школа с углубленным изучением отдельных предметов №62" Авиастроительного района г.Казани" | Y49: Авиастроительный район
A50: 49 | B50: Авиастроительный район | C50: МБОУ "Гимназия №36" Авиастроительного района г.Казани" | D50: Иньков | E50: М. | F50: Д. | G50: М | H50: 04.03.2005 | I50: 9 | J50: 9 | K50: 20.5 | L50: 10.78947368 | M50: 11.57,5 | N50: 717.5 | O50: 30.84390244 | P50: 17 | Q50: 29.75 | R50: 71.38337612 | T50: 71.38337612 | U50: 100 | V50: Участник | W50: Мартынова ТатьянаГеоргиевна | X50: Муниципальное бюджетное общеобразовательное учреждение "Гимназия №36" Авиастроительного района г.Казани" | Y50: Авиастроительный район
A51: 50 | B51: Вахитовский район | C51: МАОУ "Средняя общеобразовательная школа №39 с углубленным изучением английского языка" | D51: Мустаев | E51: Д. | F51: С. | G51: М | H51: 20.05.2004 | I51: 10 | J51: 10 | K51: 30 | L51: 15.78947368 | M51: 15.30,7 | N51: 830.7 | O51: 26.64078488 | P51: 16.3 | Q51: 28.525 | R51: 70.95525856 | T51: 70.95525856 | U51: 100 | V51: Участник | W51: Файзулаев АдельЛинарович | X51: Муниципальное автономное общеобразовательное учреждение "Средняя общеобразовательная школа №39 с углубленным изучением английского языка" | Y51: Вахитовский район
A52: 51 | B52: Московский район | C52: МБОУ "Средняя общеобразовательная школа №55"с углубленным изучением отдельных предметов" Московского района г.Казани" | D52: Солнышков | E52: Д. | F52: Д. | G52: М | H52: 15.07.2003 | I52: 11 | J52: 11 | K52: 28 | L52: 14.73684211 | M52: 11.38,6 | N52: 698.6 | O52: 31.67835671 | P52: 13.6 | Q52: 23.8 | R52: 70.21519882 | T52: 70.21519882 | U52: 100 | V52: Участник | W52: Евдокимов АндрейВикторович | X52: Муниципальное бюджетное общеобразовательное учреждение "Средняя общеобразовательная школа №55"с углубленным изучением отдельных предметов" Московского района г.Казани" | Y52: Московский район
A53: 52 | B53: Приволжский район | C53: МБОУ "Средняя общеобразовательная школа №24 с углубленным изучением отдельных предметов" | D53: Имаев | E53: Б. | F53: Р. | G53: М | H53: 2005-03-03 | I53: 9 | J53: 9 | K53: 17.5 | L53: 9.210526316 | M53: 12.31,1 | N53: 751.1 | O53: 29.46411929 | P53: 17.6 | Q53: 30.8 | R53: 69.47464561 | T53: 69.47464561 | U53: 100 | V53: Участник | W53: Шарай Роман Александрович | X53: МБОУШкола № 24» Приволжского района | Y53: Приволжский район
A54: 53 | B54: Московский район | C54: МБОУ "Средняя общеобразовательная татарско-русская школа № 34 " Московского района г.Казани" | D54: Шалушкин | E54: Д. | F54: О. | G54: М | H54: 09.09.2004 | I54: 10 | J54: 10 | K54: 30.5 | L54: 16.05263158 | M54: 15.13,6 | N54: 913.6 | O54: 24.22340193 | P54: 16.5 | Q54: 28.875 | R54: 69.15103351 | T54: 69.15103351 | U54: 100 | V54: Участник | W54: Багаутдинов ИльдарЗияфович | X54: Муниципальное бюджетное общеобразовательное учреждение "Средняя общеобразовательная татарско-русская школа № 34 " Московского района г.Казани" | Y54: Московский район
A55: 54 | B55: Авиастроительный район | C55: МБОУ "Гимназия №5" | D55: Валиуллин | E55: А. | F55: Р. | G55: М | H55: 07.09.2003 | I55: 11 | J55: 11 | K55: 15 | L55: 7.894736842 | M55: 12.03,5 | N55: 723.5 | O55: 30.58811334 | P55: 17.4 | Q55: 30.45 | R55: 68.93285018 | T55: 68.93285018 | U55: 100 | V55: Участник | W55: Шакирова НазияАглулловна | X55: Муниципальное бюджетное общеобразовательное учреждение "Гимназия №5" | Y55: Авиастроительный район
A56: 55 | B56: Приволжский район | C56: МБОУ "Средняя общеобразовательная школа №127" | D56: Николаев | E56: Р. | F56: А. | G56: М | H56: 06.11.2004 | I56: 10 | J56: 10 | K56: 19.5 | L56: 10.26315789 | M56: 12.17,4 | N56: 737.4 | O56: 30.01152699 | P56: 16.3 | Q56: 28.525 | R56: 68.79968488 | T56: 68.79968488 | U56: 100 | V56: Участник | W56: Токранова ЗинаидаЛеонидовна | X56: Муниципальное бюджетное общеобразовательное учреждение "Средняя общеобразовательная школа №127" | Y56: Приволжский район
A57: 56 | B57: Московский район | C57: МБОУ "Гимназия №20"Гармония" Московского района г.Казани" | D57: Корчаков | E57: А. | F57: С. | G57: М | H57: 11.05.2005 | I57: 9 | J57: 9 | K57: 25.5 | L57: 13.42105263 | M57: 13.48,2 | N57: 828.2 | O57: 26.72120261 | P57: 16.3 | Q57: 28.525 | R57: 68.66725524 | T57: 68.66725524 | U57: 100 | V57: Участник | W57: Колоярцев АндрейАлександрович | X57: Муниципальное бюджетное общеобразовательное учреждение "Гимназия №20"Гармония" Московского района г.Казани" | Y57: Московский район
A58: 57 | B58: Советский район | C58: МБОУ "Лицей № 149 с татарским языком обучения" Советского района г.Казани" | D58: Хуснутдинов | E58: С. | F58: И. | G58: М | H58: 07.03.2004 | I58: 10 | J58: 10 | K58: 33 | L58: 17.36842105 | M58: 14.09,6 | N58: 849.6 | O58: 26.0481403 | P58: 14.2 | Q58: 24.85 | R58: 68.26656135 | T58: 68.26656135 | U58: 100 | V58: Участник | W58: Бурханова ГульчачакГаптерауфовна | X58: Муниципальное бюджетное общеобразовательное учреждение "Лицей № 149 с татарским языком обучения" Советского района г.Казани" | Y58: Советский район
A59: 58 | B59: Приволжский район | C59: МБОУ "Русско-татарская средняя общеобразовательная школа №97" | D59: Морозов | E59: Д. | F59: С. | G59: М | H59: 25.09.2004 | I59: 10 | J59: 10 | K59: 15 | L59: 7.894736842 | M59: 11.48,2 | N59: 708.2 | O59: 31.24894098 | P59: 16.4 | Q59: 28.7 | R59: 67.84367782 | T59: 67.84367782 | U59: 100 | V59: Участник | W59: Ахметзянов АмирИльшатович | X59: Муниципальное бюджетное общеобразовательное учреждение "Русско-татарская средняя общеобразовательная школа №97" | Y59: Приволжский район
A60: 59 | B60: Советский район | C60: МБОУ «Средняя общеобразовательная школа с углубленным изучением отдельных предметов №184 им.М.И.Махмутова» | D60: Кузнецов | E60: Е. | F60: В. | G60: М | H60: 18.08.2004 | I60: 10 | J60: 10 | K60: 18.5 | L60: 9.736842105 | M60: 13.31,4 | N60: 811.4 | O60: 27.27446389 | P60: 17.5 | Q60: 30.625 | R60: 67.63630599 | T60: 67.63630599 | U60: 100 | V60: Участник | W60: Бутовецкая ОльгаНиколаевна | X60: Муниципальное бюджетное общеобразовательное учреждение «Средняя общеобразовательная школа с углубленным изучением отдельных предметов №184 им.М.И.Махмутова» | Y60: Советский район
A61: 60 | B61: Авиастроительный район | C61: МБОУ "Средняя общеобразовательная школа № 117" Авиастроительного района г.Казани" | D61: Смирнов | E61: В. | F61: Е. | G61: М | H61: 30.09.2003 | I61: 11 | J61: 11 | K61: 20.5 | L61: 10.78947368 | M61: 12.43,9 | N61: 763.9 | O61: 28.97041498 | P61: 15.9 | Q61: 27.825 | R61: 67.58488866 | T61: 67.58488866 | U61: 100 | V61: Участник | W61: Топунов АлександрЛеонидович | X61: Муниципальное бюджетное общеобразовательное учреждение "Средняя общеобразовательная школа № 117" Авиастроительного района г.Казани" | Y61: Авиастроительный район
A62: 61 | B62: Ново-Савиновский район | C62: МБОУ "Средняя общеобразовательная школа №9 с углубленным изучением английского языка" Ново-Савиновского района г. Казани" | D62: Мустафин | E62: Э. | F62: Г. | G62: М | H62: 08.03.2005 | I62: 9 | J62: 9 | K62: 20 | L62: 10.52631579 | M62: 16.10,8 | N62: 970.8 | O62: 22.79614751 | P62: 19.5 | Q62: 34.125 | R62: 67.4474633 | T62: 67.4474633 | U62: 100 | V62: Участник | W62: Стариков АндрейИванович | X62: Муниципальное бюджетное общеобразовательное учреждение "Средняя общеобразовательная школа №9 с углубленным изучением английского языка" Ново-Савиновского района г. Казани" | Y62: Ново-Савиновский район
A63: 62 | B63: Кировский район | C63: МБОУ "Русско-татарская средняя общеобразовательная школа №81 с углубленным изучением отдельных предметов имени В.А.Григорьева" | D63: Абдуллаев | E63: Р. | F63: Г. | G63: М | H63: 16.11.2005 | I63: 9 | J63: 9 | K63: 24 | L63: 12.63157895 | M63: 12.55,8 | N63: 775.8 | O63: 28.52603764 | P63: 14.7 | Q63: 25.725 | R63: 66.88261659 | T63: 66.88261659 | U63: 100 | V63: Участник | W63: Черепанова ВалентинаВасильевна | X63: Муниципальное бюджетное общеобразовательное учреждение "Русско-татарская средняя общеобразовательная школа №81 с углубленным изучением отдельных предметов имени В.А.Григорьева" | Y63: Кировский район
A64: 63 | B64: Вахитовский район | C64: МАОУ "Лицей №131" | D64: Цымбал | E64: И. | F64: Р. | G64: М | H64: 03.11.2005 | I64: 9 | J64: 9 | K64: 19 | L64: 10 | M64: 12.50,0 | N64: 770 | O64: 28.74090909 | P64: 15.8 | Q64: 27.65 | R64: 66.39090909 | T64: 66.39090909 | U64: 100 | V64: Участник | W64: Пожидаева АидаТагировна | X64: Муниципальное автономное общеобразовательное учреждение "Лицей №131" | Y64: Вахитовский район
A65: 64 | B65: Кировский район | C65: МБОУ "Средняя общеобразовательная школа №137 с углубленным изучением отдельных предметов"Кировского района г.Казани" | D65: Алешин | E65: И. | F65: В. | G65: М | H65: 14.04.2003 | I65: 11 | J65: 11 | K65: 28 | L65: 14.73684211 | M65: 13.27,0 | N65: 807 | O65: 27.42317224 | P65: 13.4 | Q65: 23.45 | R65: 65.61001435 | T65: 65.61001435 | U65: 100 | V65: Участник | W65: Баранов ВладимирГеннадьевич | X65: Муниципальное бюджетное общеобразовательное учреждение "Средняя общеобразовательная школа №137 с углубленным изучением отдельных предметов"Кировского района г.Казани" | Y65: Кировский район
A66: 65 | B66: Авиастроительный район | C66: МБОУ "Средняя общеобразовательная школа № 54 с углубленным изучением отдельных предметов" Авиастроительного района г.Казани" | D66: Молгачев | E66: Н. | F66: С. | G66: М | H66: 02.04.2004 | I66: 10 | J66: 10 | K66: 21 | L66: =30*K66/57 -> 11.05263158 | M66: 14.07,7 | N66: 847.7 | O66: =35*632.3/N66 -> 26.10652353 | P66: 16 | Q66: =35*P66/20 -> 28 | R66: =L66+O66+Q66 -> 65.15915511 | T66: 65.15915511 | U66: 100 | V66: Участник | W66: Сафин ИльдарГусманович | X66: Муниципальное бюджетное общеобразовательное учреждение "Средняя общеобразовательная школа № 54 с углубленным изучением отдельных предметов" Авиастроительного района г.Казани" | Y66: Авиастроительный район
A67: 66 | B67: Ново-Савиновский район | C67: МБОУ "Средняя общеобразовательная школа №49" Ново-Савиновского района г.Казани" | D67: Карамаев | E67: Е. | F67: n. | G67: М | H67: 04.04.2003 | I67: 11 | J67: 11 | K67: 20 | L67: 10.52631579 | M67: 14.19,2 | N67: 859.2 | O67: 25.75709963 | P67: 16.5 | Q67: 28.875 | R67: 65.15841542 | T67: 65.15841542 | U67: 100 | V67: Участник | W67: Раджабов РаджабВалиевич | X67: Муниципальное бюджетное общеобразовательное учреждение "Средняя общеобразовательная школа №49" Ново-Савиновского района г.Казани" | Y67: Ново-Савиновский район
A68: 67 | B68: Ново-Савиновский район | C68: МБОУ "Средняя общеобразовательная школа №143 с углубленным изучением отдельных предметов" Ново-Савиновского района г.Казани" | D68: Сафиуллин | E68: Р. | F68: С. | G68: М | H68: 08.08.2005 | I68: 9 | J68: 9 | K68: 18 | L68: 9.473684211 | M68: 17.01,3 | N68: 1021.3 | O68: 21.66895134 | P68: 18.6 | Q68: 32.55 | R68: 63.69263555 | T68: 63.69263555 | U68: 100 | V68: Участник | W68: Сабитов ИльнурНаилевич | X68: Муниципальное бюджетное общеобразовательное учреждение "Средняя общеобразовательная школа №143 с углубленным изучением отдельных предметов" Ново-Савиновского района г.Казани" | Y68: Ново-Савиновский район
A69: 68 | B69: Московский район | C69: МБОУ "Средняя общеобразовательная татарско-русская школа № 34 " Московского района г.Казани" | D69: Фомин | E69: И. | F69: А. | G69: М | H69: 15.06.2004 | I69: 10 | J69: 10 | K69: 11.5 | L69: 6.052631579 | M69: 12.14,7 | N69: 734.7 | O69: 30.12181843 | P69: 15.3 | Q69: 26.775 | R69: 62.94945001 | T69: 62.94945001 | U69: 100 | V69: Участник | W69: Багаутдинов ИльдарЗияфович | X69: Муниципальное бюджетное общеобразовательное учреждение "Средняя общеобразовательная татарско-русская школа № 34 " Московского района г.Казани" | Y69: Московский район
A70: 69 | B70: Ново-Савиновский район | C70: МБОУ "Средняя общеобразовательная школа №89 с углубленным изучением отдельных предметов" Ново-Савиновского района г. Казани" | D70: Шафиков | E70: Р. | F70: Р. | G70: М | H70: 30.05.2004 | I70: 10 | J70: 10 | K70: 17.5 | L70: 9.210526316 | M70: 12.15,4 | N70: 735.4 | O70: 30.09314659 | P70: 13.5 | Q70: 23.625 | R70: 62.9286729 | T70: 62.9286729 | U70: 100 | V70: Участник | W70: Арютин АлександрНиколаевич | X70: Муниципальное бюджетное общеобразовательное учреждение "Средняя общеобразовательная школа №89 с углубленным изучением отдельных предметов" Ново-Савиновского района г. Казани" | Y70: Ново-Савиновский район
A71: 70 | B71: Ново-Савиновский район | C71: МБОУ "Средняя общеобразовательная татарско-русская школа №71 с углубленным изучением отдельных предметов" Ново-Савиновского района г. Казани" | D71: Голиков | E71: А. | F71: А. | G71: М | H71: 24.10.2004 | I71: 9 | J71: 9 | K71: 16 | L71: 8.421052632 | M71: 12.52,1 | N71: 772.1 | O71: 28.66273799 | P71: 14.6 | Q71: 25.55 | R71: 62.63379062 | T71: 62.63379062 | U71: 100 | V71: Участник | W71: Мухаметшин АзатГазизович | X71: Муниципальное бюджетное общеобразовательное учреждение "Средняя общеобразовательная татарско-русская школа №71 с углубленным изучением отдельных предметов" Ново-Савиновского района г. Казани" | Y71: Ново-Савиновский район
A72: 71 | B72: Авиастроительный район | C72: МБОУ "Средняя общеобразовательная школа №112" Авиастроительного района г.Казани | D72: Хаялеев | E72: Ф. | F72: И. | G72: М | H72: 19.03.2005 | I72: 9 | J72: 9 | K72: 15 | L72: 7.894736842 | M72: 13.01,6 | N72: 781.6 | O72: 28.31435517 | P72: 13.1 | Q72: 22.925 | R72: 59.13409201 | T72: 59.13409201 | U72: 100 | V72: Участник | W72: Чагаев ИрекИльдарович | X72: Муниципальное бюджетное общеобразовательное учреждение "Средняя общеобразовательная школа №112" Авиастроительного района г.Казани | Y72: Авиастроительный район
A73: 72 | B73: Приволжский район | C73: МБОУ "Средняя общеобразовательная школа №42" | D73: Нуреев | E73: Т. | F73: Р. | G73: М | H73: 20.05.2004 | I73: 10 | J73: 10 | K73: 39 | L73: 20.52631579 | M73: 11.02,6 | N73: 662.6 | O73: 33.39948687 | P73: 0 | Q73: 0 | R73: 53.92580266 | T73: 53.92580266 | U73: 100 | V73: Участник | W73: Хикматуллин МударисСултанович | X73: Муниципальное бюджетное общеобразовательное учреждение "Средняя общеобразовательная школа №42" | Y73: Приволжский район
A74: 73 | B74: Приволжский район | C74: МБОУ "Лицей №83 - Центр образования" | D74: Аитов | E74: Т. | F74: Л. | G74: М | H74: 29.07.2005 | I74: 9 | J74: 9 | K74: 31.5 | L74: 16.57894737 | M74: 10.32,3 | N74: 632.3 | O74: 35 | P74: 0 | Q74: 0 | R74: 51.57894737 | T74: 51.57894737 | U74: 100 | V74: Участник | W74: Исакова ИннаЮрьевна | X74: Муниципальное бюджетное общеобразовательное учреждение "Лицей №83 - Центр образования" | Y74: Приволжский район
A75: 74 | B75: Советский район | C75: МБОУ "Средняя общеобразовательная школа № 144 с углубленным изучением отдельных предметов" Советского района г.Казани" | D75: Гимадиев | E75: Б. | F75: И. | G75: М | H75: 01.07.2003 | I75: 11 | J75: 11 | K75: 40.5 | L75: 21.31578947 | M75: 12.19,6 | N75: 739.6 | O75: 29.92225527 | R75: 51.23804475 | T75: 51.23804475 | U75: 100 | V75: Участник | W75: Саидгараев ФаридФайзулхакович | X75: Муниципальное бюджетное общеобразовательное учреждение "Средняя общеобразовательная школа № 144 с углубленным изучением отдельных предметов" Советского района г.Казани" | Y75: Советский район
A76: 75 | B76: Советский район | C76: МБОУ "Средняя общеобразовательная школа № 72 с углубленным изучением немецкого языка" Советского района г.Казани | D76: Егоров | E76: М. | F76: А. | G76: М | H76: 03.04.2003 | I76: 11 | J76: 11 | K76: 36.5 | L76: 19.21052632 | M76: 11.57,2 | N76: 717.2 | O76: 30.85680424 | P76: 0 | Q76: =35*P76/20 -> 0 | R76: 50.06733055 | T76: 50.06733055 | U76: 100 | V76: Участник | W76: Тимергалиев ДамирМиннехазипович | X76: Муниципальное бюджетное общеобразовательное учреждение "Средняя общеобразовательная школа № 72 с углубленным изучением немецкого языка" Советского района г.Казани | Y76: Советский район
A77: 76 | B77: Советский район | C77: МБОУ "Гимназия № 8 -Центр образования" Советского района г. Казани" | D77: Парфенов | E77: Н. | F77: П. | G77: М | H77: 14.07.2005 | I77: 9 | J77: 9 | K77: 31.5 | L77: 16.57894737 | M77: 11.07,4 | N77: 667.4 | O77: 33.1592748 | P77: 0 | Q77: =35*P77/20 -> 0 | R77: 49.73822217 | T77: 49.73822217 | U77: 100 | V77: Участник | W77: Суслова ЕленаАлександровна | Y77: Советский район
A78: 77 | B78: Ново-Савиновский район | C78: МБОУ "Средняя общеобразовательная школа №143 с углубленным изучением отдельных предметов" Ново-Савиновского района г.Казани" | D78: Гализянов | E78: Р. | F78: Р. | G78: М | H78: 09.11.2003 | I78: 11 | J78: 11 | K78: 34.5 | L78: 18.15789474 | M78: 11.41,0 | N78: 701 | O78: 31.56990014 | P78: 0 | Q78: =35*P78/20 -> 0 | R78: 49.72779488 | T78: 49.72779488 | U78: 100 | V78: Участник | W78: Билялов РафаэльУзбекович | X78: Муниципальное бюджетное общеобразовательное учреждение "Средняя общеобразовательная школа №143 с углубленным изучением отдельных предметов" Ново-Савиновского района г.Казани" | Y78: Ново-Савиновский район
A79: 78 | B79: Советский район | C79: МБОУ "Средняя общеобразовательная школа № 72 с углубленным изучением немецкого языка" Советского района г.Казани | D79: Байрамов | E79: С. | F79: Б. | G79: М | H79: 17.06.2005 | I79: 9 | J79: 9 | K79: 36 | L79: 18.94736842 | M79: 12.10,3 | N79: 730.3 | O79: 30.30330001 | P79: 0 | Q79: =35*P79/20 -> 0 | R79: 49.25066843 | T79: 49.25066843 | U79: 100 | V79: Участник | W79: Тимергалиев ДамирМиннехазипович | X79: Муниципальное бюджетное общеобразовательное учреждение "Средняя общеобразовательная школа № 72 с углубленным изучением немецкого языка" Советского района г.Казани | Y79: Советский район
A80: 79 | B80: Авиастроительный район | C80: МБОУ "Лицей №145" Авиастроительного района г.Казани" | D80: Хайбуллин | E80: Д. | F80: Р. | G80: М | H80: 14.06.2005 | I80: 9 | J80: 9 | K80: 36 | L80: 18.94736842 | M80: 12.11,4 | N80: 731.4 | O80: 30.25772491 | P80: 0 | Q80: =35*P80/20 -> 0 | R80: 49.20509333 | T80: 49.20509333 | U80: 100 | V80: Участник | W80: Семагин АлександрАлексеевич | X80: Муниципальное бюджетное общеобразовательное учреждение "Лицей №145" Авиастроительного района г.Казани" | Y80: Авиастроительный район
A81: 80 | B81: Кировский район | C81: МБОУ "Русско-татарская средняя общеобразовательная школа №81 с углубленным изучением отдельных предметов имени В.А.Григорьева" | D81: Румянцев | E81: Е. | F81: С. | G81: М | H81: 09.02.2004 | I81: 10 | J81: 10 | K81: 31.5 | L81: 16.57894737 | M81: 11.29,5 | N81: 689.5 | O81: 32.0964467 | R81: 48.67539407 | T81: 48.67539407 | U81: 100 | V81: Участник | W81: Черепанова ВалентинаВасильевна | X81: Муниципальное бюджетное общеобразовательное учреждение "Русско-татарская средняя общеобразовательная школа №81 с углубленным изучением отдельных предметов имени В.А.Григорьева" | Y81: Кировский район
A82: 81 | B82: Ново-Савиновский район | C82: МБОУ "Гимназия №7 имени Героя России А.В.Козина" Ново-Савиновского района г. Казани" | D82: Мифтахов | E82: А. | F82: И. | G82: М | H82: 16.12.2003 | I82: 10 | J82: 10 | K82: 32.5 | L82: 17.10526316 | M82: 11.42,0 | N82: 702 | O82: 31.52492877 | P82: 0 | Q82: =35*P82/20 -> 0 | R82: 48.63019193 | T82: 48.63019193 | U82: 100 | V82: Участник | W82: Калашникова КсенияДмитриевна | X82: Муниципальное бюджетное общеобразовательное учреждение "Гимназия №7 имени Героя России А.В.Козина" Ново-Савиновского района г. Казани" | Y82: Ново-Савиновский район
A83: 82 | B83: Советский район | C83: МБОУ "Средняя общеобразовательная школа № 22 с углубленным изучением отдельных предметов - Центр образования" Советского района г.Казани" | D83: Хурмиев | E83: Р. | F83: Т. | G83: М | H83: 07.11.2003 | I83: 11 | J83: 11 | K83: 35 | L83: 18.42105263 | M83: 12.22,3 | N83: 742.3 | O83: 29.81341776 | P83: 0 | Q83: =35*P83/20 -> 0 | R83: 48.23447039 | T83: 48.23447039 | U83: 100 | V83: Участник | W83: Жиряева РахиляРашитовна | X83: Муниципальное бюджетное общеобразовательное учреждение "Средняя общеобразовательная школа № 22 с углубленным изучением отдельных предметов - Центр образования" Советского района г.Казани" | Y83: Советский район
A84: 83 | B84: Приволжский район | C84: МБОУ "Средняя общеобразовательная школа № 173" | D84: Матюгин | E84: И. | F84: А. | G84: М | H84: 22.01.2006 | I84: 9 | J84: 9 | K84: 33.5 | L84: 17.63157895 | M84: 12.32,5 | N84: 752.5 | O84: 29.40930233 | P84: 0 | Q84: =35*P84/20 -> 0 | R84: 47.04088127 | T84: 47.04088127 | U84: 100 | V84: Участник | W84: Тагирова РиммаШамильевна | X84: Муниципальное бюджетное общеобразовательное учреждение "Средняя общеобразовательная школа № 173" | Y84: Приволжский район
A85: 84 | B85: Приволжский район | C85: МБОУ "Русско-татарская средняя общеобразовательная школа №136" | D85: Фахрутдинов | E85: Д. | F85: М. | G85: М | H85: 10.03.2005 | I85: 9 | J85: 9 | K85: 34 | L85: 17.89473684 | R85: 17.89473684 | T85: 46.94473684 | U85: 100 | V85: Участник | W85: Корнетов ВячеславВладимирович | X85: Муниципальное бюджетное общеобразовательное учреждение "Русско-татарская средняя общеобразовательная школа №136" | Y85: Приволжский район
A86: 85 | B86: Авиастроительный район | C86: МБОУ "Средняя общеобразовательная школа №60" Авиастроительного района г.Казани" | D86: Шакиров | E86: М. | F86: Ф. | G86: М | H86: 15.08.2002 | I86: 11 | J86: 11 | K86: 25 | L86: 13.15789474 | M86: 10.59,5 | N86: 659.5 | O86: =35*632.3/N86 -> 33.55648218 | P86: 0 | Q86: =35*P86/20 -> 0 | R86: 46.71437692 | T86: 46.71437692 | U86: 100 | V86: Участник | W86: Семагина СветланаВладимировна | X86: Муниципальное бюджетное общеобразовательное учреждение "Средняя общеобразовательная школа №60" Авиастроительного района г.Казани" | Y86: Авиастроительный район
A87: 86 | B87: Приволжский район | C87: МБОУ "Лицей №78 "Фарватер" | D87: Сунгатуллин | E87: А. | F87: А. | G87: М | H87: 12.04.2004 | I87: 10 | J87: 10 | K87: 30.5 | L87: 16.05263158 | M87: 12.18,5 | N87: 738.5 | O87: 29.96682464 | P87: 0 | Q87: =35*P87/20 -> 0 | R87: 46.01945622 | T87: 46.01945622 | U87: 100 | V87: Участник | W87: Мамыков НиколайЛьвович | X87: Муниципальное бюджетное общеобразовательное учреждение "Лицей №78 "Фарватер" | Y87: Приволжский район
A88: 87 | B88: Советский район | C88: МБОУ "Средняя общеобразовательная школа № 15 с углубленным изучением отдельных предметов" Советского района города Казани" | D88: Гарипов | E88: М. | F88: Р. | G88: М | H88: 21.05.2004 | I88: 10 | J88: 10 | K88: 26.5 | L88: 13.94736842 | M88: 11.57,0 | N88: 717 | O88: 30.86541144 | P88: 0 | Q88: =35*P88/20 -> 0 | R88: 44.81277986 | T88: 44.81277986 | U88: 100 | V88: Участник | W88: Рахманова АльбинаРаисовна | X88: Муниципальное бюджетное общеобразовательное учреждение "Средняя общеобразовательная школа № 15 с углубленным изучением отдельных предметов" Советского района города Казани" | Y88: Советский район
A89: 88 | B89: Советский район | C89: МБОУ "Многопрофильная полилингвальная гимназия №180" Советского района г. Казани" | D89: Рахимов | E89: Б. | F89: А. | G89: М | H89: 12.02.2003 | I89: 11 | J89: 11 | K89: 32 | L89: 16.84210526 | M89: 13.11,7 | N89: 791.7 | O89: 27.95313882 | P89: 0 | Q89: =35*P89/20 -> 0 | R89: 44.79524408 | T89: 44.79524408 | U89: 100 | V89: Участник | W89: Долганов МихаилАнатольевич | X89: Муниципальное бюджетное общеобразовательное учреждение "Многопрофильная полилингвальная гимназия №180" Советского района г. Казани" | Y89: Советский район
A90: 89 | B90: Ново-Савиновский район | C90: МБОУ "Лицей №23" Ново-Савиновского района г.Казани" | D90: Добросов | E90: О. | F90: С. | G90: М | H90: 06.10.2003 | I90: 10 | J90: 10 | K90: 34 | L90: 17.89473684 | M90: 13.49,9 | N90: 829.9 | O90: 26.66646584 | R90: 44.56120268 | T90: 44.56120268 | U90: 100 | V90: Участник | W90: Мухаммадиев АльмирСиренович | X90: Муниципальное бюджетное общеобразовательное учреждение "Лицей №23" Ново-Савиновского района г.Казани" | Y90: Ново-Савиновский район
A91: 90 | B91: Авиастроительный район | C91: МБОУ "Гимназия №33" Авиастроительного района г.Казани" | D91: Валиуллин | E91: Б. | F91: Д. | G91: М | H91: 29.09.2005 | I91: 9 | J91: 9 | K91: 27.5 | L91: 14.47368421 | M91: 12.37,6 | N91: 757.6 | O91: 29.21132524 | Q91: =35*P91/20 -> 0 | R91: 43.68500945 | T91: 43.68500945 | U91: 100 | V91: Участник | W91: Аввакумова ЕкатеринаВикторовна | X91: Муниципальное бюджетное общеобразовательное учреждение "Гимназия №33" Авиастроительного района г.Казани" | Y91: Авиастроительный район
A92: 91 | B92: Советский район | C92: МБОУ "Гимназия №93" Советского района г. Казани | D92: Галкин | E92: Э. | F92: В. | G92: М | H92: 15.09.2005 | I92: 9 | J92: 9 | K92: 28 | L92: 14.73684211 | M92: 12.52,3 | N92: 772.3 | O92: 28.65531529 | P92: 0 | Q92: 0 | R92: 43.3921574 | T92: 43.3921574 | U92: 100 | V92: Участник | W92: Шкаева АлинаИльинична | X92: Муниципальное бюджетное общеобразовательное учреждение "Гимназия №93" Советского района г. Казани | Y92: Советский район
A93: 92 | B93: Авиастроительный район | C93: МБОУ "Гимназия №5" | D93: Хафизов | E93: И. | F93: М. | G93: М | H93: 07.04.2005 | I93: 9 | J93: 9 | K93: 30.5 | L93: 16.05263158 | M93: 13.59,3 | N93: 839.3 | O93: 26.36780651 | P93: 0 | Q93: 0 | R93: 42.42043808 | T93: 42.42043808 | U93: 100 | V93: Участник | W93: Шакирова НазияАглулловна | X93: Муниципальное бюджетное общеобразовательное учреждение "Гимназия №5" | Y93: Авиастроительный район
A94: 93 | B94: Ново-Савиновский район | C94: МБОУ "Средняя общеобразовательная школа №91" Ново-Савиновского района г. Казани" | D94: Гришин | E94: Н. | F94: А. | G94: М | H94: 05.12.2003 | I94: 10 | J94: 10 | K94: 19 | L94: 10 | M94: 11.33,3 | N94: 693.3 | O94: 31.92052503 | P94: 0 | Q94: 0 | R94: 41.92052503 | T94: 41.92052503 | U94: 100 | V94: Участник | W94: Гильмутдинова ФлераФоатовна | X94: Муниципальное бюджетное общеобразовательное учреждение "Средняя общеобразовательная школа №91" Ново-Савиновского района г. Казани" | Y94: Ново-Савиновский район
A95: 94 | B95: Приволжский район | C95: МБОУ "Татарско-русская средняя общеобразовательная школа №10 с углубленным изучением отдельных предметов" | D95: Ягфаров | E95: А. | F95: А. | G95: М | H95: 30.06.2005 | I95: 9 | J95: 9 | K95: 22.5 | L95: 11.84210526 | M95: 12.19,7 | N95: 739.7 | O95: 29.91821009 | P95: 0 | Q95: 0 | R95: 41.76031535 | T95: 41.76031535 | U95: 100 | V95: Участник | W95: Габдрахманов РафисРашитович | X95: Муниципальное бюджетное общеобразовательное учреждение "Татарско-русская средняя общеобразовательная школа №10 с углубленным изучением отдельных предметов" | Y95: Приволжский район
A96: 95 | B96: Советский район | C96: МБОУ "Средняя общеобразовательная школа № 84 с углубленным изучением иностранных языков" Советского района г. Казани" | D96: Трофимов | E96: А. | F96: Р. | G96: М | H96: 29.12.2003 | I96: 10 | J96: 10 | K96: 19 | L96: 10 | M96: 11.43,8 | N96: 703.8 | O96: 31.44430236 | P96: 0 | Q96: 0 | R96: 41.44430236 | T96: 41.44430236 | U96: 100 | V96: Участник | W96: Яшина ТамараНиколаевна | X96: Муниципальное бюджетное общеобразовательное учреждение "Средняя общеобразовательная школа № 84 с углубленным изучением иностранных языков" Советского района г. Казани" | Y96: Советский район
A97: 96 | B97: Приволжский район | C97: МБОУ "Русско-татарская средняя общеобразовательная школа №129" | D97: Христофоров | E97: Е. | F97: В. | G97: М | H97: 01.08.2005 | I97: 9 | J97: 9 | K97: 23 | L97: 12.10526316 | M97: 12.46,5 | N97: 766.5 | O97: 28.87214612 | P97: 0 | Q97: 0 | R97: 40.97740928 | T97: 40.97740928 | U97: 100 | V97: Участник | W97: Абзалов ГумерМиншакирович | X97: Муниципальное бюджетное общеобразовательное учреждение "Русско-татарская средняя общеобразовательная школа №129" | Y97: Приволжский район
A98: 97 | B98: Приволжский район | C98: МАОУ "Гимназия № 139" | D98: Галимов | E98: Р. | F98: Р. | G98: М | H98: 02.12.2004 | I98: 10 | J98: 10 | K98: 27 | L98: =30*K98/57 -> 14.21052632 | M98: 13.56,2 | N98: 836.2 | O98: 26.46555848 | P98: 0 | Q98: 0 | R98: =L98+O98+Q98 -> 40.67608479 | T98: 40.67608479 | U98: 100 | V98: Участник | W98: Галкин ВикторЮрьевич | X98: Муниципальное автономное общеобразовательное учреждение "Гимназия № 139" | Y98: Приволжский район
A99: 98 | B99: Авиастроительный район | C99: МБОУ "Гимназия №14" Авиастроительного района г.Казани" | D99: Хуснутдинов | E99: А. | F99: Р. | G99: М | H99: 19.04.2005 | I99: 9 | J99: 9 | K99: 27 | L99: 14.21052632 | M99: 14.00,6 | N99: 840.6 | O99: 26.32702831 | P99: 0 | Q99: 0 | R99: 40.53755463 | T99: 40.53755463 | U99: 100 | V99: Участник | W99: Мингазов РустэмАсфандиярович | X99: Муниципальное бюджетное общеобразовательное учреждение "Гимназия №14" Авиастроительного района г.Казани" | Y99: Авиастроительный район
A100: 99 | B100: Кировский район | C100: МБОУ "Политехнический лицей № 182" | D100: Дуженков | E100: Н. | F100: Р. | G100: М | H100: 05.10.2004 | I100: 10 | J100: 10 | K100: 34.5 | L100: 18.15789474 | M100: 16.43,6 | N100: 1003.6 | O100: 22.05111598 | P100: 0 | Q100: 0 | R100: 40.20901072 | T100: 40.20901072 | U100: 100 | V100: Участник | W100: Латыпов ИльшатЮриевич | X100: МБОУ "Политехнический лицей № 182" | Y100: Кировский район
A101: 100 | B101: Кировский район | C101: МБОУ "Средняя общеобразовательная школа №32" Кировского района г. Казани" | D101: Станков | E101: С. | F101: А. | G101: М | H101: 31.10.2004 | I101: 9 | J101: 9 | K101: 10.5 | L101: 5.526315789 | M101: 10.50,1 | N101: 650.1 | O101: 34.04168589 | P101: 0 | Q101: 0 | R101: 39.56800168 | T101: 39.56800168 | U101: 100 | V101: Участник | W101: Хасанов РавильГалимзянович | X101: Муниципальное бюджетное общеобразовательное учреждение "Средняя общеобразовательная школа №32" Кировского района г. Казани" | Y101: Кировский район
A102: 101 | B102: Советский район | C102: МБОУ "Гимназия № 20 имени Абдуллы Алиша" Советского района города Казани" | D102: Александров | E102: А. | F102: С. | G102: М | H102: 16.03.2005 | I102: 9 | J102: 9 | K102: 20 | L102: 10.52631579 | M102: 12.51,2 | N102: 771.2 | O102: 28.69618776 | P102: 0 | Q102: 0 | R102: 39.22250355 | T102: 39.22250355 | U102: 100 | V102: Участник | W102: Тимерханов РустемХанифович | X102: Муниципальное бюджетное общеобразовательное учреждение "Гимназия № 20 имени Абдуллы Алиша" Советского района города Казани" | Y102: Советский район
A103: 102 | B103: Московский район | C103: МБОУ «Средняя общеобразовательная школа №130 имени Героя Российской Федерации майора С.А. Ашихмина» Московского района г. Казани | D103: Гужов | E103: П. | F103: Ю. | G103: М | H103: 18.12.2004 | I103: 9 | J103: 9 | K103: 12.5 | L103: 6.578947368 | M103: 11.37,1 | N103: 697.1 | O103: 31.7465213 | P103: 0 | Q103: 0 | R103: 38.32546867 | T103: 38.32546867 | U103: 100 | V103: Участник | W103: Васильев АлександрАнатольевич | X103: Муниципальное бюджетное общеобразовательное учреждение «Средняя общеобразовательная школа №130 имени Героя Российской Федерации майора С.А. Ашихмина» Московского района г. Казани | Y103: Московский район
A104: 103 | B104: Ново-Савиновский район | C104: МАОУ "Лицей-интернат №7" Ново-Савиновского района г. Казани" | D104: Гарипов | E104: Д. | F104: А. | G104: М | H104: 10.07.2004 | I104: 10 | J104: 10 | K104: 17 | L104: 8.947368421 | M104: 13.11,0 | N104: 791 | O104: 27.97787611 | Q104: 0 | R104: 36.92524453 | T104: 36.92524453 | U104: 100 | V104: Участник | W104: Кульманов РегинРафисович | X104: Муниципальное автономное общеобразовательное учреждение "Лицей-интернат №7" Ново-Савиновского района г. Казани" | Y104: Ново-Савиновский район
A105: 104 | B105: Приволжский район | C105: МБОУ "Средняя общеобразовательная школа №69" | D105: Максимов | E105: В. | F105: Д. | G105: М | H105: 05.03.2005 | I105: 9 | J105: 9 | K105: 11.5 | L105: 6.052631579 | M105: 12.24,1 | N105: 744.1 | O105: 29.74129821 | P105: 0 | Q105: 0 | R105: 35.79392979 | T105: 35.79392979 | U105: 100 | V105: Участник | W105: Степанова РозалияРифкатовна | X105: Муниципальное бюджетное общеобразовательное учреждение "Средняя общеобразовательная школа №69" | Y105: Приволжский район
A106: 105 | B106: Приволжский район | C106: МБОУ "Средняя общеобразовательная школа №24 с углубленным изучением отдельных предметов" | D106: Эверсков | E106: В. | F106: А. | G106: М | H106: 28.09.2005 | I106: 9 | J106: 9 | K106: 11.5 | L106: 6.052631579 | M106: 13.54,2 | N106: 834.2 | O106: 26.52900983 | R106: 32.58164141 | T106: 32.58164141 | U106: 100 | V106: Участник | W106: Сенюхин СергейГеннадьевич | X106: Муниципальное бюджетное общеобразовательное учреждение "Средняя общеобразовательная школа №24 с углубленным изучением отдельных предметов" | Y106: Приволжский район
A107: 106 | B107: Приволжский район | C107: МБОУ "Гимназия№52" | D107: Федоров | E107: Д. | F107: В. | G107: М | H107: 30.01.2005 | I107: 9 | J107: 9 | K107: 8.5 | L107: 4.473684211 | M107: 14.44,2 | N107: 884.2 | O107: 25.02883963 | P107: 0 | Q107: =35*P107/20 -> 0 | R107: 29.50252384 | T107: 29.50252384 | U107: 100 | V107: Участник | W107: Михеева ДиляраФаридовна | X107: Муниципальное бюджетное общеобразовательное учреждение "Гимназия№52" | Y107: Приволжский район
A108: 107 | B108: Приволжский район | C108: МБОУ "Средняя общеобразовательная школа №48 с углубленным изучением отдельных предметов" | D108: Левин | E108: Н. | F108: А. | G108: М | H108: 24.04.2004 | I108: 10 | J108: 10 | K108: 34 | L108: 17.89473684 | R108: 17.89473684 | T108: 17.89473684 | U108: 100 | V108: Участник | W108: Гисматулов РустемИльгизарович | X108: Муниципальное бюджетное общеобразовательное учреждение "Средняя общеобразовательная школа №48 с углубленным изучением отдельных предметов" | Y108: Приволжский район
A109: 108 | B109: Приволжский район | C109: МБОУ "Лицей №78 "Фарватер" | D109: Гафиатуллин | E109: А. | F109: А. | G109: М | H109: 18.12.2004 | I109: 9 | J109: 9 | K109: 32.5 | L109: 17.10526316 | P109: 0 | Q109: =35*P109/20 -> 0 | R109: 17.10526316 | T109: 17.10526316 | U109: 100 | V109: Участник | W109: Набиев Ленар Ринатович | Y109: Приволжский район
A110: 109 | B110: Авиастроительный район | C110: МАОУ "Гимназия №37" Авиастроительного района г.Казани" | D110: Сафин | E110: А. | F110: Л. | G110: М | H110: 19.09.2005 | I110: 9 | J110: 9 | K110: 30 | L110: 15.78947368 | R110: 15.78947368 | T110: 15.78947368 | U110: 100 | V110: Участник | W110: Сарбаев ИгорьЕвгеньевич | X110: Муниципальное автономное общеобразовательное учреждение "Гимназия №37" Авиастроительного района г.Казани" | Y110: Авиастроительный район
A111: 110 | B111: Советский район | C111: МБОУ "Многопрофильная школа №181" Советского района г. Казани" | D111: Классен | E111: Д. | F111: Д. | G111: М | H111: 19.04.2003 | I111: 11 | J111: 11 | K111: 28.5 | L111: 15 | R111: 15 | T111: 15 | U111: 100 | V111: Участник | W111: Садыков ТимурАйдарович | X111: Муниципальное бюджетное общеобразовательное учреждение "Многопрофильная школа №181" Советского района г. Казани" | Y111: Советский район
A112: 111 | B112: Советский район | C112: МБОУ "Средняя общеобразовательная школа №167 с углубленным изучением отдельных предметов" Советского района г. Казани | D112: Цхай | E112: В. | F112: А. | G112: М | H112: 14.02.2004 | I112: 10 | J112: 10 | K112: 23.5 | L112: 12.36842105 | P112: 0 | Q112: =35*P112/20 -> 0 | R112: 12.36842105 | T112: 12.36842105 | U112: 100 | V112: Участник | W112: Мухаметзянов АсгатХатипович | X112: Муниципальное бюджетное общеобразовательное учреждение "Средняя общеобразовательная школа №167 с углубленным изучением отдельных предметов" Советского района г. Казани | Y112: Советский район
A113: 112 | B113: Приволжский район | C113: МБОУ «Многопрофильный лицей №186 - "Перспектива" Приволжского района г. Казани | D113: Плотников | E113: Д. | F113: И. | G113: М | H113: 17.05.2005 | I113: 9 | J113: 9 | K113: 19 | L113: 10 | R113: 10 | T113: 10 | U113: 100 | V113: Участник | W113: Сабирзянов РустемНагимуллович | X113: Муниципальное бюджетное общеобразовательное учреждение «Многопрофильный лицей №186 - "Перспектива" Приволжского района г. Казани | Y113: Приволжский район
A114: 113 | B114: Кировский район | C114: МБОУ "Средняя русско-татарская общеобразовательная школа №57" г.Казани" | D114: Фадеев | E114: Е. | F114: А. | G114: М | H114: 05.02.2005 | I114: 9 | J114: 9 | K114: 17 | L114: 8.947368421 | R114: 8.947368421 | T114: 8.947368421 | U114: 100 | V114: Участник | W114: Сайдулин ИгорьВитальевич | X114: Муниципальное бюджетное общеобразовательное учреждение "Средняя русско-татарская общеобразовательная школа №57" г.Казани" | Y114: Кировский район
A115: 114 | B115: Ново-Савиновский район | C115: МБОУ "Средняя общеобразовательная школа №85 с углубленным изучением отдельных предметов" Ново-Савиновского района г.Казани" | D115: Миндубаев | E115: Р. | F115: Р. | G115: М | H115: 21.09.2004 | I115: 10 | J115: 10 | K115: 16.5 | L115: 8.684210526 | R115: 8.684210526 | T115: 8.684210526 | U115: 100 | V115: Участник | W115: Хабибрахманов БулатГабдрахманович | X115: Муниципальное бюджетное общеобразовательное учреждение "Средняя общеобразовательная школа №85 с углубленным изучением отдельных предметов" Ново-Савиновского района г.Казани" | Y115: Ново-Савиновский район
A116: 115 | B116: Авиастроительный район | C116: МБОУ "Лицей №26 им. М.Джалиля" Авиастроительного района г.Казани" | D116: Ахметов | E116: К. | F116: М. | G116: М | H116: 25.10.2004 | I116: 9 | J116: 9 | K116: 9 | L116: 4.736842105 | R116: 4.736842105 | T116: 4.736842105 | U116: 100 | V116: Участник | W116: Мухаммадеева РалинаАльбертовна | X116: Муниципальное бюджетное общеобразовательное учреждение "Лицей №26 им. М.Джалиля" Авиастроительного района г.Казани" | Y116: Авиастроительный район
